Workbook

Sheet Navigation
K7: Gupta Traders and Auto Agencies
L8: Stock and Sales FOR THE PERIOD 01-Apr-2020 TO 31-Mar-2021

Sheet Dealer Report
A1: GUPTA TRADERS & AUTO AGENCIES TONK - (From 1-Apr-2014)
A2: Jain Nasinya Kota Road Tonk
A3: (Raj.) Tin No.08200450280
A4: Mob. 9414029062
A5: 01432-253412
A6: Pan No-ABYPG2066R
A7: LICENCE NO PP 385 LIFE TIME
A8: Contact : 253412 -253414,9414029062 ,9414039062
A9: Bayer Liq.
A10: Stock Summary
A11: 1-Apr-2020 to 31-Mar-2021
B12: Bayer Liq.
B13: GUPTA TRADERS & AUTO AGENCIES TONK - (From 1-Apr-2014)
A14: Particulars | B14: 1-Apr-2020 to 31-Mar-2021
B15: Opening Balance | C15: Inwards | D15: Outwards | E15: Closing Balance
B16: Quantity | C16: Quantity | D16: Quantity | E16: Quantity | F16: SALS
A17: Alanto Sc 240 50x100ml Bayer | B17: 0 | C17: 0 | D17: 0 | E17: 0 | F17: =IFERROR(VLOOKUP(A17,'[3]P SALE'!$A$4:$B$77,2,0),0) -> 0
A18: Ambition Bayer 10 X 1ltr | B18: 0 | C18: 30 | D18: 10 | E18: 20 | F18: =IFERROR(VLOOKUP(A18,'[3]P SALE'!$A$4:$B$77,2,0),0) -> 10
A19: Ambition Bayer 20 X500ml | B19: 5.5 | C19: 80 | D19: 73 | E19: 12.5 | F19: =IFERROR(VLOOKUP(A19,'[3]P SALE'!$A$4:$B$77,2,0),0) -> 73
A20: Ambition Bayer 40 X250ml | B20: 20 | C20: 20 | D20: 17.75 | E20: 22.25 | F20: =IFERROR(VLOOKUP(A20,'[3]P SALE'!$A$4:$B$77,2,0),0) -> 17.75
A21: Bayfolan Algae Bayer 20x500ml | B21: 0 | C21: 10 | D21: 0 | E21: 10 | F21: =IFERROR(VLOOKUP(A21,'[3]P SALE'!$A$4:$B$77,2,0),0) -> 0
A22: Bayfolan Algae Bayer 40x250ml | B22: 0 | C22: 10 | D22: 0 | E22: 10 | F22: =IFERROR(VLOOKUP(A22,'[3]P SALE'!$A$4:$B$77,2,0),0) -> 0
A23: Belt Expert Sc480 Bayer 100 Ml | B23: 0 | C23: 0 | D23: 0 | E23: 0 | F23: =IFERROR(VLOOKUP(A23,'[3]P SALE'!$A$4:$B$77,2,0),0) -> 0
A24: BUONOS (Metal+Chloro)SC430 Bayer 40X250 ML | B24: 0 | C24: 10 | D24: 5 | E24: 5 | F24: =IFERROR(VLOOKUP(A24,'[3]P SALE'!$A$4:$B$77,2,0),0) -> 5
A25: Confidor Sl 200 100ml Bayer | B25: 0 | C25: 0 | D25: 0 | E25: 0 | F25: =IFERROR(VLOOKUP(A25,'[3]P SALE'!$A$4:$B$77,2,0),0) -> 0
A26: Confidor Sl 200 250ml Bayer | B26: 0 | C26: 0 | D26: 0 | E26: 0 | F26: =IFERROR(VLOOKUP(A26,'[3]P SALE'!$A$4:$B$77,2,0),0) -> 0
A27: Confidor Sl 200 500ml Bayer | B27: 0 | C27: 0 | D27: 0 | E27: 0 | F27: =IFERROR(VLOOKUP(A27,'[3]P SALE'!$A$4:$B$77,2,0),0) -> 0
A28: Confidor Sl 200 50ml Bayer | B28: 0 | C28: 0 | D28: 0 | E28: 0 | F28: =IFERROR(VLOOKUP(A28,'[3]P SALE'!$A$4:$B$77,2,0),0) -> 0
A29: Decis(Deltamethrin)100 Bayer 100 Ml | B29: 0 | C29: 0 | D29: 0 | E29: 0 | F29: =IFERROR(VLOOKUP(A29,'[3]P SALE'!$A$4:$B$77,2,0),0) -> 0
A30: Decis(Deltamethrin)100 Bayer 250 Ml | B30: 0 | C30: 0 | D30: 0 | E30: 0 | F30: =IFERROR(VLOOKUP(A30,'[3]P SALE'!$A$4:$B$77,2,0),0) -> 0
A31: Decis(Deltamethrin)2.8% Bayer 100 Ml | B31: 0 | C31: 0 | D31: 0 | E31: 0 | F31: =IFERROR(VLOOKUP(A31,'[3]P SALE'!$A$4:$B$77,2,0),0) -> 0
A32: Decis(Deltamethrin)2.8% Bayer 10 X 1 Lt | B32: 75 | C32: 0 | D32: 59 | E32: 16 | F32: =IFERROR(VLOOKUP(A32,'[3]P SALE'!$A$4:$B$77,2,0),0) -> 59
A33: Decis(Deltamethrin)2.8% Bayer 20 X 500 Ml | B33: 120.5 | C33: 0 | D33: 87.5 | E33: 33 | F33: =IFERROR(VLOOKUP(A33,'[3]P SALE'!$A$4:$B$77,2,0),0) -> 87.5
A34: Decis(Deltamethrin)2.8% Bayer 40 X 250 Ml | B34: 0 | C34: 30 | D34: 13.75 | E34: 16.25 | F34: =IFERROR(VLOOKUP(A34,'[3]P SALE'!$A$4:$B$77,2,0),0) -> 13.75
A35: Decis(Deltamethrin)2.8% Bayer 5ltr | B35: 0 | C35: 0 | D35: 0 | E35: 0 | F35: =IFERROR(VLOOKUP(A35,'[3]P SALE'!$A$4:$B$77,2,0),0) -> 0
A36: Endosulfan Ec 35% BAYER 100 ML | B36: 0 | C36: 0 | D36: 0 | E36: 0 | F36: =IFERROR(VLOOKUP(A36,'[3]P SALE'!$A$4:$B$77,2,0),0) -> 0
A37: Endosulfan Ec 35% BAYER 1 LT | B37: 0 | C37: 0 | D37: 0 | E37: 0 | F37: =IFERROR(VLOOKUP(A37,'[3]P SALE'!$A$4:$B$77,2,0),0) -> 0
A38: Endosulfan Ec 35% BAYER 250 ML | B38: 0 | C38: 0 | D38: 0 | E38: 0 | F38: =IFERROR(VLOOKUP(A38,'[3]P SALE'!$A$4:$B$77,2,0),0) -> 0
A39: Endosulfan Ec 35% BAYER 500 ML | B39: 0 | C39: 0 | D39: 0 | E39: 0 | F39: =IFERROR(VLOOKUP(A39,'[3]P SALE'!$A$4:$B$77,2,0),0) -> 0
A40: Evergol Xtend Fs308 Bayer 100x40ml | B40: 2.84 | C40: 48 | D40: 50.84 | E40: 0 | F40: =IFERROR(VLOOKUP(A40,'[3]P SALE'!$A$4:$B$77,2,0),0) -> 50.84
A41: Evergol Xtend Fs308 Bayer 50 X100ml | B41: 7 | C41: 0 | D41: 7 | E41: 0 | F41: =IFERROR(VLOOKUP(A41,'[3]P SALE'!$A$4:$B$77,2,0),0) -> 7
A42: Fame(Flubendiamide)480 Sc Bayer 10 X (20 X 10) Ml | B42: 1.3 | C42: 4 | D42: 1.86 | E42: 3.44 | F42: =IFERROR(VLOOKUP(A42,'[3]P SALE'!$A$4:$B$77,2,0),0) -> 1.86
A43: Fame(Flubendiamide)480 Sc Bayer 20 X 100 Ml | B43: 2.4 | C43: 8 | D43: 7 | E43: 3.4 | F43: =IFERROR(VLOOKUP(A43,'[3]P SALE'!$A$4:$B$77,2,0),0) -> 7
A44: Fame(Flubendiamide)480 Sc Bayer 4 X 500 Ml | B44: 0 | C44: 0 | D44: 0 | E44: 0 | F44: =IFERROR(VLOOKUP(A44,'[3]P SALE'!$A$4:$B$77,2,0),0) -> 0
A45: Fame(Flubendiamide)480 Sc Bayer 50 Ml | B45: 0 | C45: 0 | D45: 0 | E45: 0 | F45: =IFERROR(VLOOKUP(A45,'[3]P SALE'!$A$4:$B$77,2,0),0) -> 0
A46: Fame(Flubendiamide)480 Sc Bayer 50 Ml NEW | B46: 0 | C46: 12 | D46: 9.95 | E46: 2.05 | F46: =IFERROR(VLOOKUP(A46,'[3]P SALE'!$A$4:$B$77,2,0),0) -> 9.95
A47: Fame(Flubendiamide)480 Sc Bayer 8 X 250 Ml | B47: 6.75 | C47: 12 | D47: 10.75 | E47: 8 | F47: =IFERROR(VLOOKUP(A47,'[3]P SALE'!$A$4:$B$77,2,0),0) -> 10.75
A48: Fenos Quick Sc150 Bayer 50x100ml | B48: 0 | C48: 5 | D48: 3.4 | E48: 1.6 | F48: =IFERROR(VLOOKUP(A48,'[3]P SALE'!$A$4:$B$77,2,0),0) -> 3.4
A49: Folicur(Tebuconazol) 250ec Bayer- 10 X 1 Ltr | B49: 0 | C49: 10 | D49: 10 | E49: 0 | F49: =IFERROR(VLOOKUP(A49,'[3]P SALE'!$A$4:$B$77,2,0),0) -> 10
A50: Folicur(Tebuconazole)250ec Bayer 20 X 500 Ml | B50: 0 | C50: 10 | D50: 10 | E50: 0 | F50: =IFERROR(VLOOKUP(A50,'[3]P SALE'!$A$4:$B$77,2,0),0) -> 10
A51: Folicur(Tebuconazole)250ec Bayer 40 X 250 Ml | B51: 7.25 | C51: 30 | D51: 28.75 | E51: 8.5 | F51: =IFERROR(VLOOKUP(A51,'[3]P SALE'!$A$4:$B$77,2,0),0) -> 28.75
A52: Folicur(Tebuconazole)250ec Bayer 50 X 100 Ml | B52: 4.5 | C52: 15 | D52: 19 | E52: 0.5 | F52: =IFERROR(VLOOKUP(A52,'[3]P SALE'!$A$4:$B$77,2,0),0) -> 19
A53: Gaucho(Imidaclorpid)48% Bayer 100X 50 Ml | B53: 19.1 | C53: 150 | D53: 140.45 | E53: 28.65 | F53: =IFERROR(VLOOKUP(A53,'[3]P SALE'!$A$4:$B$77,2,0),0) -> 140.45
A54: Gaucho(Imidaclorpid)48% Bayer 10X 1 Lt | B54: 63 | C54: 330 | D54: 325 | E54: 68 | F54: =IFERROR(VLOOKUP(A54,'[3]P SALE'!$A$4:$B$77,2,0),0) -> 325
A55: Gaucho(Imidaclorpid)48% Bayer 2 X 5 Lt | B55: 0 | C55: 20 | D55: 20 | E55: 0 | F55: =IFERROR(VLOOKUP(A55,'[3]P SALE'!$A$4:$B$77,2,0),0) -> 20
A56: Gaucho(Imidaclorpid)48% Bayer40X 250 Ml | B56: 58.5 | C56: 1600 | D56: 1639 | E56: 19.5 | F56: =IFERROR(VLOOKUP(A56,'[3]P SALE'!$A$4:$B$77,2,0),0) -> 1639
A57: Gaucho(Imidaclorpid)48% Bayer 50X100 Ml | B57: 69.1 | C57: 860 | D57: 739.3 | E57: 189.8 | F57: =IFERROR(VLOOKUP(A57,'[3]P SALE'!$A$4:$B$77,2,0),0) -> 739.3
A58: Hostathion(Triazophos)40% Bayer 100 Ml | B58: 0 | C58: 0 | D58: 0 | E58: 0 | F58: =IFERROR(VLOOKUP(A58,'[3]P SALE'!$A$4:$B$77,2,0),0) -> 0
A59: Hostathion(Triazophos)40% Bayer 1 Lt | B59: 0 | C59: 0 | D59: 0 | E59: 0 | F59: =IFERROR(VLOOKUP(A59,'[3]P SALE'!$A$4:$B$77,2,0),0) -> 0
A60: Hostathion(Triazophos)40% Bayer 250 Ml | B60: 0 | C60: 0 | D60: 0 | E60: 0 | F60: =IFERROR(VLOOKUP(A60,'[3]P SALE'!$A$4:$B$77,2,0),0) -> 0
A61: Hostathion(Triazophos)40% Bayer 500 Ml | B61: 0 | C61: 0 | D61: 0 | E61: 0 | F61: =IFERROR(VLOOKUP(A61,'[3]P SALE'!$A$4:$B$77,2,0),0) -> 0
A62: Imidaclorpid 17.8% Bayer 100 X 50 Ml | B62: 12.55 | C62: 15 | D62: 18.2 | E62: 9.35 | F62: =IFERROR(VLOOKUP(A62,'[3]P SALE'!$A$4:$B$77,2,0),0) -> 18.2
A63: Imidaclorpid 17.8% Bayer 1 Lt | B63: 0 | C63: 0 | D63: 0 | E63: 0 | F63: =IFERROR(VLOOKUP(A63,'[3]P SALE'!$A$4:$B$77,2,0),0) -> 0
A64: Imidaclorpid 17.8% Bayer 20 X 250 Ml | B64: 0 | C64: 25 | D64: 24 | E64: 1 | F64: =IFERROR(VLOOKUP(A64,'[3]P SALE'!$A$4:$B$77,2,0),0) -> 24
A65: Imidaclorpid 17.8% Bayer 20 X 500 Ml | B65: 0 | C65: 8 | D65: 8 | E65: 0 | F65: =IFERROR(VLOOKUP(A65,'[3]P SALE'!$A$4:$B$77,2,0),0) -> 8
A66: Imidaclorpid 17.8% Bayer 50 X 100 Ml | B66: 0 | C66: 140 | D66: 126.7 | E66: 13.3 | F66: =IFERROR(VLOOKUP(A66,'[3]P SALE'!$A$4:$B$77,2,0),0) -> 126.7
A67: IMIDA(Confidor Super)350 BAYER 100 Ml | B67: 0 | C67: 0 | D67: 0 | E67: 0 | F67: =IFERROR(VLOOKUP(A67,'[3]P SALE'!$A$4:$B$77,2,0),0) -> 0
A68: IMIDA(Confidor Super)350 BAYER 250 Ml | B68: 0 | C68: 0 | D68: 0 | E68: 0 | F68: =IFERROR(VLOOKUP(A68,'[3]P SALE'!$A$4:$B$77,2,0),0) -> 0
A69: IMIDA(Confidor Super)350 BAYER 50 Ml | B69: 0 | C69: 0 | D69: 0 | E69: 0 | F69: =IFERROR(VLOOKUP(A69,'[3]P SALE'!$A$4:$B$77,2,0),0) -> 0
A70: IMIDA(Confidor Super)SL200 BAYER 50 Ml | B70: 0 | C70: 0 | D70: 0 | E70: 0 | F70: =IFERROR(VLOOKUP(A70,'[3]P SALE'!$A$4:$B$77,2,0),0) -> 0
A71: IMIDA(Confidor Super)SL200 BAYER 50X 100 ML | B71: 0 | C71: 0 | D71: 0 | E71: 0 | F71: =IFERROR(VLOOKUP(A71,'[3]P SALE'!$A$4:$B$77,2,0),0) -> 0
A72: INFINITO (Protectant & Cur) SC687 5 Bayer 50X100ML | B72: 0 | C72: 10 | D72: 4.2 | E72: 5.8 | F72: =IFERROR(VLOOKUP(A72,'[3]P SALE'!$A$4:$B$77,2,0),0) -> 4.2
A73: LAUDIS 34.4%BOTIN BAYER 10X 57.5ML | B73: 0 | C73: 0 | D73: 0 | E73: 0 | F73: =IFERROR(VLOOKUP(A73,'[3]P SALE'!$A$4:$B$77,2,0),0) -> 0
A74: LUDIS SC630 BAYER 10X57.5 ML | B74: 0 | C74: 11.5 | D74: 8.625 | E74: 2.875 | F74: =IFERROR(VLOOKUP(A74,'[3]P SALE'!$A$4:$B$77,2,0),0) -> 8.625
A75: LUDIS SC630 BAYER 3 X 230ML | B75: 0 | C75: 0 | D75: 0 | E75: 0 | F75: =IFERROR(VLOOKUP(A75,'[3]P SALE'!$A$4:$B$77,2,0),0) -> 0
A76: LUDIS SC630 BAYER 8X115ML | B76: 0 | C76: 3.68 | D76: 2.3 | E76: 1.38 | F76: =IFERROR(VLOOKUP(A76,'[3]P SALE'!$A$4:$B$77,2,0),0) -> 2.3
A77: Luna Experience Sc400 Bayer 40x250ml | B77: 0 | C77: 40 | D77: 18.5 | E77: 21.5 | F77: =IFERROR(VLOOKUP(A77,'[3]P SALE'!$A$4:$B$77,2,0),0) -> 18.5
A78: Luna Experience Sc400 Bayer 50x100ml | B78: 0 | C78: 45 | D78: 36.6 | E78: 8.4 | F78: =IFERROR(VLOOKUP(A78,'[3]P SALE'!$A$4:$B$77,2,0),0) -> 36.6
A79: MOVENTO ENERGY BAYER 40 X 250ML | B79: 2.5 | C79: 0 | D79: 2.5 | E79: 0 | F79: =IFERROR(VLOOKUP(A79,'[3]P SALE'!$A$4:$B$77,2,0),0) -> 2.5
A80: MOVENTO ENERGY BAYER 50 X 100ML | B80: 8.7 | C80: 0 | D80: 8.7 | E80: 0 | F80: =IFERROR(VLOOKUP(A80,'[3]P SALE'!$A$4:$B$77,2,0),0) -> 8.7
A81: Oberon(Spiromesiften)Sc 240 Bayer 40 X 200 Ml | B81: 0 | C81: 152 | D81: 150.2 | E81: 1.8 | F81: =IFERROR(VLOOKUP(A81,'[3]P SALE'!$A$4:$B$77,2,0),0) -> 150.2
A82: Oberon(Spiromesiften)Sc 240 Bayer 50 Ml | B82: 0 | C82: 0 | D82: 0 | E82: 0 | F82: =IFERROR(VLOOKUP(A82,'[3]P SALE'!$A$4:$B$77,2,0),0) -> 0
A83: Oberon(Spiromesiften)Sc 240 Bayer 50 x 100 Ml | B83: 0.2 | C83: 139.9 | D83: 131.4 | E83: 8.7 | F83: =IFERROR(VLOOKUP(A83,'[3]P SALE'!$A$4:$B$77,2,0),0) -> 131.4
A84: Planofix 4.5%Ana.Bayer 50 X 100 Ml | B84: 3.4 | C84: 125 | D84: 95.7 | E84: 32.7 | F84: =IFERROR(VLOOKUP(A84,'[3]P SALE'!$A$4:$B$77,2,0),0) -> 95.7
A85: Raft(Oxadiargyl)Ec 6% Bayer 1 Lt. | B85: 0 | C85: 0 | D85: 0 | E85: 0 | F85: =IFERROR(VLOOKUP(A85,'[3]P SALE'!$A$4:$B$77,2,0),0) -> 0
A86: Raft(Oxadiargyl)Ec 6% Bayer 40 X 250 Ml | B86: 0 | C86: 0 | D86: 0 | E86: 0 | F86: =IFERROR(VLOOKUP(A86,'[3]P SALE'!$A$4:$B$77,2,0),0) -> 0
A87: Raft(Oxadiargyl)Ec 6% Bayer 500 Ml | B87: 0 | C87: 0 | D87: 0 | E87: 0 | F87: =IFERROR(VLOOKUP(A87,'[3]P SALE'!$A$4:$B$77,2,0),0) -> 0
A88: Raxil(Tebuconazole)2% Bayer 50 Ml | B88: 0 | C88: 0 | D88: 0 | E88: 0 | F88: =IFERROR(VLOOKUP(A88,'[3]P SALE'!$A$4:$B$77,2,0),0) -> 0
A89: Regent(Fipronil)5% BAYER 20 X 250 Ml | B89: 0 | C89: 745 | D89: 695.75 | E89: 49.25 | F89: =IFERROR(VLOOKUP(A89,'[3]P SALE'!$A$4:$B$77,2,0),0) -> 695.75
A90: Regent(Fipronil)5% BAYER 20 X 500 Ml | B90: 14.5 | C90: 550 | D90: 564.5 | E90: 0 | F90: =IFERROR(VLOOKUP(A90,'[3]P SALE'!$A$4:$B$77,2,0),0) -> 564.5
A91: Regent(Fipronil)5% BAYER 50 X 100 Ml | B91: 52 | C91: 250 | D91: 292.4 | E91: 9.6 | F91: =IFERROR(VLOOKUP(A91,'[3]P SALE'!$A$4:$B$77,2,0),0) -> 292.4
A92: Regent(Flpronil) 5% Bayer - 10 X 1Ltr | B92: 60 | C92: 180 | D92: 227 | E92: 13 | F92: =IFERROR(VLOOKUP(A92,'[3]P SALE'!$A$4:$B$77,2,0),0) -> 227
A93: Sivanto Prime Sl 200 Bayer 100ml | B93: 5 | C93: -5 | D93: 0 | E93: 0 | F93: =IFERROR(VLOOKUP(A93,'[3]P SALE'!$A$4:$B$77,2,0),0) -> 0
A94: Solitude (Imiza) 1ltr - Bayer | B94: 0 | C94: 0 | D94: 0 | E94: 0 | F94: =IFERROR(VLOOKUP(A94,'[3]P SALE'!$A$4:$B$77,2,0),0) -> 0
A95: Solomon -20X 500 Ml Bayer | B95: 0 | C95: 30 | D95: 30 | E95: 0 | F95: =IFERROR(VLOOKUP(A95,'[3]P SALE'!$A$4:$B$77,2,0),0) -> 30
A96: Solomon - 40 X 250 Ml Bayer | B96: 2.25 | C96: 130 | D96: 112.75 | E96: 19.5 | F96: =IFERROR(VLOOKUP(A96,'[3]P SALE'!$A$4:$B$77,2,0),0) -> 112.75
A97: Solomon (Betacyful 8.49%+Imida 19.81% 10X 1lt Bayer | B97: 0 | C97: 20 | D97: 20 | E97: 0 | F97: =IFERROR(VLOOKUP(A97,'[3]P SALE'!$A$4:$B$77,2,0),0) -> 20
A98: SolomonOD300 Bayer 50 X 100 Ml | B98: 0 | C98: 95 | D98: 91.1 | E98: 3.9 | F98: =IFERROR(VLOOKUP(A98,'[3]P SALE'!$A$4:$B$77,2,0),0) -> 91.1
A99: Spark(Delta.+Triazophos)35% Bayer 100 Ml | B99: 0 | C99: 0 | D99: 0 | E99: 0 | F99: =IFERROR(VLOOKUP(A99,'[3]P SALE'!$A$4:$B$77,2,0),0) -> 0
A100: Spark(Delta.+Triazophos)35% Bayer 250 Ml | B100: 0 | C100: 0 | D100: 0 | E100: 0 | F100: =IFERROR(VLOOKUP(A100,'[3]P SALE'!$A$4:$B$77,2,0),0) -> 0
A101: Spark(Delta.+Triazophos)35% Bayer 500 Ml | B101: 0 | C101: 0 | D101: 0 | E101: 0 | F101: =IFERROR(VLOOKUP(A101,'[3]P SALE'!$A$4:$B$77,2,0),0) -> 0
A102: SPINTOR SC 495 BAYER 20X75ML | B102: 0 | C102: 0 | D102: 0 | E102: 0 | F102: =IFERROR(VLOOKUP(A102,'[3]P SALE'!$A$4:$B$77,2,0),0) -> 0
A103: VELUM PRIME (FLUOPYRAM 34.48%)SC 400 BAYER 20X500ML | B103: 6 | C103: 17 | D103: 16.5 | E103: 6.5 | F103: =IFERROR(VLOOKUP(A103,'[3]P SALE'!$A$4:$B$77,2,0),0) -> 16.5
A104: VELUM PRIME (FLUOPYRAM 34.48%)SC 400 BAYER 40X250ML | B104: 8.5 | C104: 25.25 | D104: 33.75 | E104: 0 | F104: =IFERROR(VLOOKUP(A104,'[3]P SALE'!$A$4:$B$77,2,0),0) -> 33.75
A105: Whipsuper(Fenoxaprop P Et.)9.3% Bayer 100 Ml | B105: 0 | C105: 0 | D105: 0 | E105: 0 | F105: =IFERROR(VLOOKUP(A105,'[3]P SALE'!$A$4:$B$77,2,0),0) -> 0
A106: Whipsuper(Fenoxaprop P Et.)9.3% Bayer 1 Lt | B106: 0 | C106: 0 | D106: 0 | E106: 0 | F106: =IFERROR(VLOOKUP(A106,'[3]P SALE'!$A$4:$B$77,2,0),0) -> 0
A107: Whipsuper(Fenoxaprop P Et.)9.3% Bayer 40 X 250 Ml | B107: 0 | C107: 0 | D107: 0 | E107: 0 | F107: =IFERROR(VLOOKUP(A107,'[3]P SALE'!$A$4:$B$77,2,0),0) -> 0
A108: Whipsuper(Fenoxaprop P Et.)9.3% Bayer 500 Ml | B108: 0 | C108: 0 | D108: 0 | E108: 0 | F108: =IFERROR(VLOOKUP(A108,'[3]P SALE'!$A$4:$B$77,2,0),0) -> 0
A109: Acephate(Tamaron Gold)75% Bayer 1 . | B109: 0 | C109: 0 | D109: 0 | E109: 0 | F109: =IFERROR(VLOOKUP(A109,'[3]P SALE'!$A$4:$B$77,2,0),0) -> 0
A110: Acephate(Tamaron Gold)75% Bayer 250 G. | B110: 0 | C110: 0 | D110: 0 | E110: 0 | F110: =IFERROR(VLOOKUP(A110,'[3]P SALE'!$A$4:$B$77,2,0),0) -> 0
A111: Acephate(Tamaron Gold)75% Bayer 500 G. | B111: 0 | C111: 0 | D111: 0 | E111: 0 | F111: =IFERROR(VLOOKUP(A111,'[3]P SALE'!$A$4:$B$77,2,0),0) -> 0
A112: Admire(Imida)70% Bayer 125X(8X2) GM | B112: 1.838 | C112: 20 | D112: 17.018 | E112: 4.82 | F112: =IFERROR(VLOOKUP(A112,'[3]P SALE'!$A$4:$B$77,2,0),0) -> 17.018
A113: Admire(Imida)70% Bayer 30 Gram | B113: 24 | C113: 0 | D113: 3 | E113: 21 | F113: =IFERROR(VLOOKUP(A113,'[3]P SALE'!$A$4:$B$77,2,0),0) -> 3
A114: Admire(Imida)70% Bayer 75 Gram | B114: 0 | C114: 0 | D114: 0 | E114: 0 | F114: =IFERROR(VLOOKUP(A114,'[3]P SALE'!$A$4:$B$77,2,0),0) -> 0
A115: Adue Wg70 Bayer 100 G. | B115: 0 | C115: 0 | D115: 0 | E115: 0 | F115: =IFERROR(VLOOKUP(A115,'[3]P SALE'!$A$4:$B$77,2,0),0) -> 0
A116: Aliette (Fosetyl-Al)80% Bayer 10 X 1 | B116: 0 | C116: 0 | D116: 0 | E116: 0 | F116: =IFERROR(VLOOKUP(A116,'[3]P SALE'!$A$4:$B$77,2,0),0) -> 0
A117: Aliette (Fosetyl-Al)80% Bayer 20 X 250 G. | B117: 1.25 | C117: 25 | D117: 21.25 | E117: 5 | F117: =IFERROR(VLOOKUP(A117,'[3]P SALE'!$A$4:$B$77,2,0),0) -> 21.25
A118: Aliette (Fosetyl-Al)80% Bayer 20 X 500 GM | B118: 0 | C118: 10 | D118: 10 | E118: 0 | F118: =IFERROR(VLOOKUP(A118,'[3]P SALE'!$A$4:$B$77,2,0),0) -> 10
A119: Aliette (Fosetyl-Al)80% Bayer 40 X 100 G. | B119: 2.9 | C119: 16 | D119: 12.4 | E119: 6.5 | F119: =IFERROR(VLOOKUP(A119,'[3]P SALE'!$A$4:$B$77,2,0),0) -> 12.4
A120: Antracol(Propineb)70 Wp Bayer 1kg | B120: 5 | C120: 30 | D120: 35 | E120: 0 | F120: =IFERROR(VLOOKUP(A120,'[3]P SALE'!$A$4:$B$77,2,0),0) -> 35
A121: Antracol(Propineb)70 Wp Bayer 20X 500 G | B121: 0 | C121: 320 | D121: 320 | E121: 0 | F121: =IFERROR(VLOOKUP(A121,'[3]P SALE'!$A$4:$B$77,2,0),0) -> 320
A122: Antracol(Propineb)70 Wp Bayer 40X 250 G | B122: 10 | C122: 480 | D122: 490 | E122: 0 | F122: =IFERROR(VLOOKUP(A122,'[3]P SALE'!$A$4:$B$77,2,0),0) -> 490
A123: Antracol(Propineb)70 Wp Bayer 50 X 100 G | B123: 0 | C123: 45 | D123: 44.5 | E123: 0.5 | F123: =IFERROR(VLOOKUP(A123,'[3]P SALE'!$A$4:$B$77,2,0),0) -> 44.5
A124: Atlantis Kl (Bayer) 36 % 160 G. | B124: 0 | C124: 0 | D124: 0 | E124: 0 | F124: =IFERROR(VLOOKUP(A124,'[3]P SALE'!$A$4:$B$77,2,0),0) -> 0
A125: Bayleton 25%(Triadimefon 25%) Bayer 100 G. | B125: 0 | C125: 0 | D125: 0 | E125: 0 | F125: =IFERROR(VLOOKUP(A125,'[3]P SALE'!$A$4:$B$77,2,0),0) -> 0
A126: Derosal(Carbendazim)50%Wp Bayer 100 G. | B126: 0 | C126: 0 | D126: 0 | E126: 0 | F126: =IFERROR(VLOOKUP(A126,'[3]P SALE'!$A$4:$B$77,2,0),0) -> 0
A127: Fitrest Sg 5 Bayer 40X 100gm | B127: 0 | C127: 0 | D127: 0 | E127: 0 | F127: =IFERROR(VLOOKUP(A127,'[3]P SALE'!$A$4:$B$77,2,0),0) -> 0
A128: Foost (Atrazin) Wp50 24x500gm Bayer | B128: 43.5 | C128: 0 | D128: 43.5 | E128: 0 | F128: =IFERROR(VLOOKUP(A128,'[3]P SALE'!$A$4:$B$77,2,0),0) -> 43.5
A129: Glamore Wg80% 50 x 10x 5 Gm- Bayer | B129: 0 | C129: 2.5 | D129: 1.8 | E129: 0.7 | F129: =IFERROR(VLOOKUP(A129,'[3]P SALE'!$A$4:$B$77,2,0),0) -> 1.8
A130: Jump(Fipronil)80 WG Bayer 160 X (10X2) Gram | B130: 1.508 | C130: 20.8 | D130: 18.132 | E130: 4.176 | F130: =IFERROR(VLOOKUP(A130,'[3]P SALE'!$A$4:$B$77,2,0),0) -> 18.132
A131: Jump(Fipronil)80 WG Bayer 40 Gram | B131: 0 | C131: 3.2 | D131: 2.96 | E131: 0.24 | F131: =IFERROR(VLOOKUP(A131,'[3]P SALE'!$A$4:$B$77,2,0),0) -> 2.96
A132: Larvin(Thiodicarb) 75% Bayer 20 x 250 G | B132: 0 | C132: 65 | D132: 55.25 | E132: 9.75 | F132: =IFERROR(VLOOKUP(A132,'[3]P SALE'!$A$4:$B$77,2,0),0) -> 55.25
A133: Larvin(Thiodicarb)75% Bayer 40 X 100 G | B133: 0 | C133: 20 | D133: 20 | E133: 0 | F133: =IFERROR(VLOOKUP(A133,'[3]P SALE'!$A$4:$B$77,2,0),0) -> 20
A134: Larvin(Thiodicarb)75% Bayer 500 G | B134: 0 | C134: 32.5 | D134: 32.5 | E134: 0 | F134: =IFERROR(VLOOKUP(A134,'[3]P SALE'!$A$4:$B$77,2,0),0) -> 32.5
A135: Lesenta Wg 80- 40gm Bayer | B135: 0 | C135: 4 | D135: 2.68 | E135: 1.32 | F135: =IFERROR(VLOOKUP(A135,'[3]P SALE'!$A$4:$B$77,2,0),0) -> 2.68
A136: Mancozeb M-45(Bilzeb)75% Bayer 1 | B136: 0 | C136: 0 | D136: 0 | E136: 0 | F136: =IFERROR(VLOOKUP(A136,'[3]P SALE'!$A$4:$B$77,2,0),0) -> 0
A137: Mancozeb M-45(Bilzeb)75% Bayer 250 G | B137: 0 | C137: 0 | D137: 0 | E137: 0 | F137: =IFERROR(VLOOKUP(A137,'[3]P SALE'!$A$4:$B$77,2,0),0) -> 0
A138: Mancozeb M-45(Bilzeb)75% Bayer 500 G | B138: 0 | C138: 0 | D138: 0 | E138: 0 | F138: =IFERROR(VLOOKUP(A138,'[3]P SALE'!$A$4:$B$77,2,0),0) -> 0
A139: Melody Duo (66.75%) Bayer- 400 Gm | B139: 0 | C139: 0 | D139: 0 | E139: 0 | F139: =IFERROR(VLOOKUP(A139,'[3]P SALE'!$A$4:$B$77,2,0),0) -> 0
A140: Melody Duo(Iprovalicarb+Propineb)66.75% Bayer 100 G | B140: 0 | C140: 0 | D140: 0 | E140: 0 | F140: =IFERROR(VLOOKUP(A140,'[3]P SALE'!$A$4:$B$77,2,0),0) -> 0
A141: Melody Duo(Iprovalicarb+Propineb)66.75% Bayer 500 G | B141: 0 | C141: 0 | D141: 0 | E141: 0 | F141: =IFERROR(VLOOKUP(A141,'[3]P SALE'!$A$4:$B$77,2,0),0) -> 0
A142: Nativo 50+25%(Tebuco+Triflox.)Bayer 100 X 50 G. | B142: 5 | C142: 15 | D142: 12.15 | E142: 7.85 | F142: =IFERROR(VLOOKUP(A142,'[3]P SALE'!$A$4:$B$77,2,0),0) -> 12.15
A143: Nativo 50+25%(Tebuco+Triflox.)Bayer 50 X 100 G. | B143: 3.8 | C143: 35 | D143: 25.9 | E143: 12.9 | F143: =IFERROR(VLOOKUP(A143,'[3]P SALE'!$A$4:$B$77,2,0),0) -> 25.9
A144: Nativo 50+25%(Tebuco+Trifloxyst.)Bayer 40 X 250G | B144: 2.25 | C144: 36 | D144: 29.5 | E144: 8.75 | F144: =IFERROR(VLOOKUP(A144,'[3]P SALE'!$A$4:$B$77,2,0),0) -> 29.5
A145: Nativo 50 +25(Tebuco+Trifloxyst.) Bayer-20 X 500 Gm | B145: 0 | C145: 10 | D145: 10 | E145: 0 | F145: =IFERROR(VLOOKUP(A145,'[3]P SALE'!$A$4:$B$77,2,0),0) -> 10
A146: Nativo 50 +25(Tebuco+Trifloxystrobin) Bayer- 1 | B146: 0 | C146: 20 | D146: 20 | E146: 0 | F146: =IFERROR(VLOOKUP(A146,'[3]P SALE'!$A$4:$B$77,2,0),0) -> 0
A147: Profiler Wg 71 Bayer 20 x 250 G. | B147: 0 | C147: 5 | D147: 5 | E147: 0 | F147: =IFERROR(VLOOKUP(A147,'[3]P SALE'!$A$4:$B$77,2,0),0) -> 5
A148: Quintal(Ipro.+Carben.)25% Bayer 100 G | B148: 0 | C148: 0 | D148: 0 | E148: 0 | F148: =IFERROR(VLOOKUP(A148,'[3]P SALE'!$A$4:$B$77,2,0),0) -> 0
A149: Quintal(Ipro.+Carben.)25% Bayer 250 G | B149: 0 | C149: 0 | D149: 0 | E149: 0 | F149: =IFERROR(VLOOKUP(A149,'[3]P SALE'!$A$4:$B$77,2,0),0) -> 0
A150: Quintal(Ipro.+Carben.)25% Bayer 500 G | B150: 0 | C150: 0 | D150: 0 | E150: 0 | F150: =IFERROR(VLOOKUP(A150,'[3]P SALE'!$A$4:$B$77,2,0),0) -> 0
A151: Raxil(Tebuconazole)2% Bayer 40 G | B151: 0 | C151: 0 | D151: 0 | E151: 0 | F151: =IFERROR(VLOOKUP(A151,'[3]P SALE'!$A$4:$B$77,2,0),0) -> 0
A152: Regent(Fipronil)0.3% Bayer 20X 1kG | B152: 80 | C152: 4760 | D152: 4815 | E152: 25 | F152: =IFERROR(VLOOKUP(A152,'[3]P SALE'!$A$4:$B$77,2,0),0) -> 4815
A153: Regent(Fipronil)0.3% Bayer 4X 5 KG | B153: 90 | C153: 9220 | D153: 9240 | E153: 70 | F153: =IFERROR(VLOOKUP(A153,'[3]P SALE'!$A$4:$B$77,2,0),0) -> 9240
A154: Sectin(Feni.+Mancozeb)60%Bayer 20 X 600 Gm | B154: 0 | C154: 12 | D154: 12 | E154: 0 | F154: =IFERROR(VLOOKUP(A154,'[3]P SALE'!$A$4:$B$77,2,0),0) -> 12
A155: Sectin(Feni.+Mancozeb)60%Bayer 250 G | B155: 0 | C155: 0 | D155: 0 | E155: 0 | F155: =IFERROR(VLOOKUP(A155,'[3]P SALE'!$A$4:$B$77,2,0),0) -> 0
A156: Sectin(Feni.+Mancozeb)60%Bayer 50 X 100 G | B156: 2.2 | C156: 0 | D156: 2.2 | E156: 0 | F156: =IFERROR(VLOOKUP(A156,'[3]P SALE'!$A$4:$B$77,2,0),0) -> 2.2
A157: Sencor Wp70 Bayer 100gr | B157: 0 | C157: 0 | D157: 0 | E157: 0 | F157: =IFERROR(VLOOKUP(A157,'[3]P SALE'!$A$4:$B$77,2,0),0) -> 0
A158: Sevin(Carbaryl)Wdp 50% Bayer 100 G. | B158: 0 | C158: 0 | D158: 0 | E158: 0 | F158: =IFERROR(VLOOKUP(A158,'[3]P SALE'!$A$4:$B$77,2,0),0) -> 0
A159: Sevin(Carbaryl)Wdp 50% Bayer 500 G | B159: 0 | C159: 0 | D159: 0 | E159: 0 | F159: =IFERROR(VLOOKUP(A159,'[3]P SALE'!$A$4:$B$77,2,0),0) -> 0
A160: TOTAL | B160: =SUM(B17:B159) -> 911.586 | C160: =SUM(C17:C159) -> 21263.33 | D160: 21309.415 | E160: 865.501 | F160: 21289.415

Sheet Dealer Report working
A1: Particulars | B1: Opening Qty | C1: Purchase Qty | D1: Sales Qty | E1: CLSG | F1: Master Name | K1: Values
A2: Alanto Sc 240 50x100ml Bayer | B2: 0 | C2: 0 | D2: 0 | E2: 0 | F2: ALANTO (T) SC240 50X100ML BOT IN | J2: Row Labels | K2: Sum of Opening Qty | L2: Sum of Purchase Qty | M2: Sum of Sales Qty | N2: Sum of CLSG
A3: Ambition Bayer 10 X 1ltr | B3: 0 | C3: 30 | D3: 10 | E3: 20 | F3: AMBITION 10X1L BOT IN | J3: ADMIRE (T) WG70 150X30GR BOT IN | K3: 24 | L3: 0 | M3: 3 | N3: 21
A4: Ambition Bayer 20 X500ml | B4: 5.5 | C4: 80 | D4: 73 | E4: 12.5 | F4: AMBITION 20X500ML BOT IN | J4: ADMIRE (T) WG70 60X75GR BOT IN | K4: 0 | L4: 0 | M4: 0 | N4: 0
A5: Ambition Bayer 40 X250ml | B5: 20 | C5: 20 | D5: 17.75 | E5: 22.25 | F5: AMBITION 40X250ML BOT IN | J5: ADMIRE WG70 125X(8X2GR) BAG IN | K5: 1.838 | L5: 20 | M5: 17.018 | N5: 4.82
A6: Bayfolan Algae Bayer 20x500ml | B6: 0 | C6: 10 | D6: 0 | E6: 10 | F6: DISCOUNTINUE PRODUCT | J6: ADUE WG70 6X100G BOT IN | K6: 0 | L6: 0 | M6: 0 | N6: 0
A7: Bayfolan Algae Bayer 40x250ml | B7: 0 | C7: 10 | D7: 0 | E7: 10 | F7: DISCOUNTINUE PRODUCT | J7: ALANTO (T) SC240 50X100ML BOT IN | K7: 0 | L7: 0 | M7: 0 | N7: 0
A8: Belt Expert Sc480 Bayer 100 Ml | B8: 0 | C8: 0 | D8: 0 | E8: 0 | F8: BELT EXPERT SC480 50X100ML BOT IN | J8: ALIETTE WP80 10X1KG BAG IN | K8: 0 | L8: 0 | M8: 0 | N8: 0
A9: BUONOS (Metal+Chloro)SC430 Bayer 40X250 ML | B9: 0 | C9: 10 | D9: 5 | E9: 5 | F9: BUONOS SC430 40X250ML BOT IN | J9: ALIETTE WP80 20X250GR BAG IN | K9: 1.25 | L9: 25 | M9: 21.25 | N9: 5
A10: Confidor Sl 200 100ml Bayer | B10: 0 | C10: 0 | D10: 0 | E10: 0 | F10: CONFIDOR (T) SL200 50X100ML BOT IN | J10: ALIETTE WP80 20X500GR BAG IN | K10: 0 | L10: 10 | M10: 10 | N10: 0
A11: Confidor Sl 200 250ml Bayer | B11: 0 | C11: 0 | D11: 0 | E11: 0 | F11: CONFIDOR (T) SL200 20X250ML BOT IN | J11: ALIETTE WP80 40X100GR BAG IN | K11: 2.9 | L11: 16 | M11: 12.4 | N11: 6.5
A12: Confidor Sl 200 500ml Bayer | B12: 0 | C12: 0 | D12: 0 | E12: 0 | F12: CONFIDOR (T) SL200 20X500ML BOT IN | J12: AMBITION 10X1L BOT IN | K12: 0 | L12: 30 | M12: 10 | N12: 20
A13: Confidor Sl 200 50ml Bayer | B13: 0 | C13: 0 | D13: 0 | E13: 0 | F13: CONFIDOR (T) SL200 100X50ML BOT IN | J13: AMBITION 20X500ML BOT IN | K13: 5.5 | L13: 80 | M13: 73 | N13: 12.5
A14: Decis(Deltamethrin)100 Bayer 100 Ml | B14: 0 | C14: 0 | D14: 0 | E14: 0 | F14: DECIS EC101-2 50X100ML BOX IN | J14: AMBITION 40X250ML BOT IN | K14: 20 | L14: 20 | M14: 17.75 | N14: 22.25
A15: Decis(Deltamethrin)100 Bayer 250 Ml | B15: 0 | C15: 0 | D15: 0 | E15: 0 | F15: DECIS EC101-2 40X250ML BOT IN | J15: ANTRACOL (T) WP70 10X1KG BAG IN | K15: 5 | L15: 30 | M15: 35 | N15: 0
A16: Decis(Deltamethrin)2.8% Bayer 100 Ml | B16: 0 | C16: 0 | D16: 0 | E16: 0 | F16: DECIS EC 28 50X100ML BOT IN | J16: ANTRACOL (T) WP70 20X500GR BAG IN | K16: 0 | L16: 320 | M16: 320 | N16: 0
A17: Decis(Deltamethrin)2.8% Bayer 10 X 1 Lt | B17: 75 | C17: 0 | D17: 59 | E17: 16 | F17: DECIS EC 28 10X1L BOT IN | J17: ANTRACOL (T) WP70 40X250GR BAG IN | K17: 10 | L17: 480 | M17: 490 | N17: 0
A18: Decis(Deltamethrin)2.8% Bayer 20 X 500 Ml | B18: 120.5 | C18: 0 | D18: 87.5 | E18: 33 | F18: DECIS EC 28 20X500ML BOT IN | J18: ANTRACOL (T) WP70 50X100GR BAG IN | K18: 0 | L18: 45 | M18: 44.5 | N18: 0.5
A19: Decis(Deltamethrin)2.8% Bayer 40 X 250 Ml | B19: 0 | C19: 30 | D19: 13.75 | E19: 16.25 | F19: DECIS EC 28 40X250ML BOT IN | J19: ATLANTIS KL3 6 15X160GR BOT IN | K19: 0 | L19: 0 | M19: 0 | N19: 0
A20: Decis(Deltamethrin)2.8% Bayer 5ltr | B20: 0 | C20: 0 | D20: 0 | E20: 0 | F20: DECIS EC24,6 2X5L BOT IN | J20: BELT EXPERT SC480 50X100ML BOT IN | K20: 0 | L20: 0 | M20: 0 | N20: 0
A21: Endosulfan Ec 35% BAYER 100 ML | B21: 0 | C21: 0 | D21: 0 | E21: 0 | F21: DISCOUNTINUE PRODUCT | J21: BUONOS SC430 40X250ML BOT IN | K21: 0 | L21: 10 | M21: 5 | N21: 5
A22: Endosulfan Ec 35% BAYER 1 LT | B22: 0 | C22: 0 | D22: 0 | E22: 0 | F22: DISCOUNTINUE PRODUCT | J22: CONFIDOR (T) SL200 100X50ML BOT IN | K22: 0 | L22: 0 | M22: 0 | N22: 0
A23: Endosulfan Ec 35% BAYER 250 ML | B23: 0 | C23: 0 | D23: 0 | E23: 0 | F23: DISCOUNTINUE PRODUCT | J23: CONFIDOR (T) SL200 20X250ML BOT IN | K23: 0 | L23: 0 | M23: 0 | N23: 0
A24: Endosulfan Ec 35% BAYER 500 ML | B24: 0 | C24: 0 | D24: 0 | E24: 0 | F24: DISCOUNTINUE PRODUCT | J24: CONFIDOR (T) SL200 20X500ML BOT IN | K24: 0 | L24: 0 | M24: 0 | N24: 0
A25: Evergol Xtend Fs308 Bayer 100x40ml | B25: 2.84 | C25: 48 | D25: 50.84 | E25: 0 | F25: EVERGOL XTEND FS308 100X40ML BOT IN | J25: CONFIDOR (T) SL200 50X100ML BOT IN | K25: 0 | L25: 0 | M25: 0 | N25: 0
A26: Evergol Xtend Fs308 Bayer 50 X100ml | B26: 7 | C26: 0 | D26: 7 | E26: 0 | F26: EVERGOL XTEND FS308 50X100ML BOT IN | J26: CONFIDOR SUPER (T) SC350 20X250ML BOT IN | K26: 0 | L26: 0 | M26: 0 | N26: 0
A27: Fame(Flubendiamide)480 Sc Bayer 10 X (20 X 10) Ml | B27: 1.3 | C27: 4 | D27: 1.86 | E27: 3.44 | F27: FAME (T) SC480 10X(20X10ML) BOT IN | J27: CONFIDOR SUPER (T) SC350 50X100ML BOT IN | K27: 0 | L27: 0 | M27: 0 | N27: 0
A28: Fame(Flubendiamide)480 Sc Bayer 20 X 100 Ml | B28: 2.4 | C28: 8 | D28: 7 | E28: 3.4 | F28: FAME (T) SC480 20X100ML BOT IN | J28: CONFIDOR SUPER (T) SC350 50X50ML BOT IN | K28: 0 | L28: 0 | M28: 0 | N28: 0
A29: Fame(Flubendiamide)480 Sc Bayer 4 X 500 Ml | B29: 0 | C29: 0 | D29: 0 | E29: 0 | F29: FAME (T) SC480 4X500ML BOT IN | J29: DECIS EC 28 10X1L BOT IN | K29: 75 | L29: 0 | M29: 59 | N29: 16
A30: Fame(Flubendiamide)480 Sc Bayer 50 Ml | B30: 0 | C30: 0 | D30: 0 | E30: 0 | F30: FAME (T) SC480 40X50ML BOT IN | J30: DECIS EC 28 20X500ML BOT IN | K30: 120.5 | L30: 0 | M30: 87.5 | N30: 33
A31: Fame(Flubendiamide)480 Sc Bayer 50 Ml NEW | B31: 0 | C31: 12 | D31: 9.95 | E31: 2.05 | F31: FAME (T) SC480 40X50ML BOT IN | J31: DECIS EC 28 40X250ML BOT IN | K31: 0 | L31: 30 | M31: 13.75 | N31: 16.25
A32: Fame(Flubendiamide)480 Sc Bayer 8 X 250 Ml | B32: 6.75 | C32: 12 | D32: 10.75 | E32: 8 | F32: FAME (T) SC480 8X250ML BOT IN | J32: DECIS EC 28 50X100ML BOT IN | K32: 0 | L32: 0 | M32: 0 | N32: 0
A33: Fenos Quick Sc150 Bayer 50x100ml | B33: 0 | C33: 5 | D33: 3.4 | E33: 1.6 | F33: FENOS QUICK SC150 50X100ML BOT IN | J33: DECIS EC101-2 40X250ML BOT IN | K33: 0 | L33: 0 | M33: 0 | N33: 0
A34: Folicur(Tebuconazol) 250ec Bayer- 10 X 1 Ltr | B34: 0 | C34: 10 | D34: 10 | E34: 0 | F34: FOLICUR (T) EC250 10X1L BOT IN | J34: DECIS EC101-2 50X100ML BOX IN | K34: 0 | L34: 0 | M34: 0 | N34: 0
A35: Folicur(Tebuconazole)250ec Bayer 20 X 500 Ml | B35: 0 | C35: 10 | D35: 10 | E35: 0 | F35: FOLICUR (T) EC250 20X500ML BOT IN | J35: DECIS EC24,6 2X5L BOT IN | K35: 0 | L35: 0 | M35: 0 | N35: 0
A36: Folicur(Tebuconazole)250ec Bayer 40 X 250 Ml | B36: 7.25 | C36: 30 | D36: 28.75 | E36: 8.5 | F36: FOLICUR (T) EC250 40X250ML BOT IN | J36: DISCOUNTINUE PRODUCT | K36: 12.55 | L36: 208 | M36: 176.9 | N36: 43.65
A37: Folicur(Tebuconazole)250ec Bayer 50 X 100 Ml | B37: 4.5 | C37: 15 | D37: 19 | E37: 0.5 | F37: FOLICUR (T) EC250 50X100ML BOT IN | J37: EVERGOL XTEND FS308 100X40ML BOT IN | K37: 2.84 | L37: 48 | M37: 50.84 | N37: 0
A38: Gaucho(Imidaclorpid)48% Bayer 100X 50 Ml | B38: 19.1 | C38: 150 | D38: 140.45 | E38: 28.65 | F38: GAUCHO FS600 100X50ML BOT IN | J38: EVERGOL XTEND FS308 50X100ML BOT IN | K38: 7 | L38: 0 | M38: 7 | N38: 0
A39: Gaucho(Imidaclorpid)48% Bayer 10X 1 Lt | B39: 63 | C39: 330 | D39: 325 | E39: 68 | F39: GAUCHO FS600 2X(5X1L) BOT IN | J39: FAME (T) SC480 10X(20X10ML) BOT IN | K39: 1.3 | L39: 4 | M39: 1.86 | N39: 3.44
A40: Gaucho(Imidaclorpid)48% Bayer 2 X 5 Lt | B40: 0 | C40: 20 | D40: 20 | E40: 0 | F40: GAUCHO FS600 2X5L BOT IN | J40: FAME (T) SC480 20X100ML BOT IN | K40: 2.4 | L40: 8 | M40: 7 | N40: 3.4
A41: Gaucho(Imidaclorpid)48% Bayer40X 250 Ml | B41: 58.5 | C41: 1600 | D41: 1639 | E41: 19.5 | F41: GAUCHO FS600 40X250ML BOT IN | J41: FAME (T) SC480 40X50ML BOT IN | K41: 0 | L41: 12 | M41: 9.95 | N41: 2.05
A42: Gaucho(Imidaclorpid)48% Bayer 50X100 Ml | B42: 69.1 | C42: 860 | D42: 739.3 | E42: 189.8 | F42: GAUCHO FS600 50X100ML BOT IN | J42: FAME (T) SC480 4X500ML BOT IN | K42: 0 | L42: 0 | M42: 0 | N42: 0
A43: Hostathion(Triazophos)40% Bayer 100 Ml | B43: 0 | C43: 0 | D43: 0 | E43: 0 | F43: DISCOUNTINUE PRODUCT | J43: FAME (T) SC480 8X250ML BOT IN | K43: 6.75 | L43: 12 | M43: 10.75 | N43: 8
A44: Hostathion(Triazophos)40% Bayer 1 Lt | B44: 0 | C44: 0 | D44: 0 | E44: 0 | F44: DISCOUNTINUE PRODUCT | J44: FENOS QUICK SC150 50X100ML BOT IN | K44: 0 | L44: 5 | M44: 3.4 | N44: 1.6
A45: Hostathion(Triazophos)40% Bayer 250 Ml | B45: 0 | C45: 0 | D45: 0 | E45: 0 | F45: DISCOUNTINUE PRODUCT | J45: FITREST SG5 40X100GR BOT IN | K45: 0 | L45: 0 | M45: 0 | N45: 0
A46: Hostathion(Triazophos)40% Bayer 500 Ml | B46: 0 | C46: 0 | D46: 0 | E46: 0 | F46: DISCOUNTINUE PRODUCT | J46: FOLICUR (T) EC250 10X1L BOT IN | K46: 0 | L46: 10 | M46: 10 | N46: 0
A47: Imidaclorpid 17.8% Bayer 100 X 50 Ml | B47: 12.55 | C47: 15 | D47: 18.2 | E47: 9.35 | F47: DISCOUNTINUE PRODUCT | J47: FOLICUR (T) EC250 20X500ML BOT IN | K47: 0 | L47: 10 | M47: 10 | N47: 0
A48: Imidaclorpid 17.8% Bayer 1 Lt | B48: 0 | C48: 0 | D48: 0 | E48: 0 | F48: DISCOUNTINUE PRODUCT | J48: FOLICUR (T) EC250 40X250ML BOT IN | K48: 7.25 | L48: 30 | M48: 28.75 | N48: 8.5
A49: Imidaclorpid 17.8% Bayer 20 X 250 Ml | B49: 0 | C49: 25 | D49: 24 | E49: 1 | F49: DISCOUNTINUE PRODUCT | J49: FOLICUR (T) EC250 50X100ML BOT IN | K49: 4.5 | L49: 15 | M49: 19 | N49: 0.5
A50: Imidaclorpid 17.8% Bayer 20 X 500 Ml | B50: 0 | C50: 8 | D50: 8 | E50: 0 | F50: DISCOUNTINUE PRODUCT | J50: FOOST WP50 24X500G BAG IN | K50: 43.5 | L50: 0 | M50: 43.5 | N50: 0
A51: Imidaclorpid 17.8% Bayer 50 X 100 Ml | B51: 0 | C51: 140 | D51: 126.7 | E51: 13.3 | F51: DISCOUNTINUE PRODUCT | J51: GAUCHO FS600 100X50ML BOT IN | K51: 19.1 | L51: 150 | M51: 140.45 | N51: 28.65
A52: IMIDA(Confidor Super)350 BAYER 100 Ml | B52: 0 | C52: 0 | D52: 0 | E52: 0 | F52: CONFIDOR SUPER (T) SC350 50X100ML BOT IN | J52: GAUCHO FS600 2X(5X1L) BOT IN | K52: 63 | L52: 330 | M52: 325 | N52: 68
A53: IMIDA(Confidor Super)350 BAYER 250 Ml | B53: 0 | C53: 0 | D53: 0 | E53: 0 | F53: CONFIDOR SUPER (T) SC350 20X250ML BOT IN | J53: GAUCHO FS600 2X5L BOT IN | K53: 0 | L53: 20 | M53: 20 | N53: 0
A54: IMIDA(Confidor Super)350 BAYER 50 Ml | B54: 0 | C54: 0 | D54: 0 | E54: 0 | F54: CONFIDOR SUPER (T) SC350 50X50ML BOT IN | J54: GAUCHO FS600 40X250ML BOT IN | K54: 58.5 | L54: 1600 | M54: 1639 | N54: 19.5
A55: IMIDA(Confidor Super)SL200 BAYER 50 Ml | B55: 0 | C55: 0 | D55: 0 | E55: 0 | F55: CONFIDOR SUPER (T) SC350 50X50ML BOT IN | J55: GAUCHO FS600 50X100ML BOT IN | K55: 69.1 | L55: 860 | M55: 739.3 | N55: 189.8
A56: IMIDA(Confidor Super)SL200 BAYER 50X 100 ML | B56: 0 | C56: 0 | D56: 0 | E56: 0 | F56: CONFIDOR SUPER (T) SC350 50X100ML BOT IN | J56: GLAMORE WG80 50X(10X5GR) BAG IN | K56: 0 | L56: 2.5 | M56: 1.8 | N56: 0.7
A57: INFINITO (Protectant & Cur) SC687 5 Bayer 50X100ML | B57: 0 | C57: 10 | D57: 4.2 | E57: 5.8 | F57: INFINITO SC687 5 50X100ML BOT IN | J57: INFINITO SC687 5 50X100ML BOT IN | K57: 0 | L57: 10 | M57: 4.2 | N57: 5.8
A58: LAUDIS 34.4%BOTIN BAYER 10X 57.5ML | B58: 0 | C58: 0 | D58: 0 | E58: 0 | F58: LAUDIS SC630 10X57.5ML BOT IN | J58: JUMP WG80 160X(10X2GR) BAG IN | K58: 1.508 | L58: 20.8 | M58: 18.132 | N58: 4.176
A59: LUDIS SC630 BAYER 10X57.5 ML | B59: 0 | C59: 11.5 | D59: 8.625 | E59: 2.875 | F59: LAUDIS SC630 10X57.5ML BOT IN | J59: JUMP WG80 80X40GR BAG IN | K59: 0 | L59: 3.2 | M59: 2.96 | N59: 0.24
A60: LUDIS SC630 BAYER 3 X 230ML | B60: 0 | C60: 0 | D60: 0 | E60: 0 | F60: LAUDIS SC630 3X230ML BOT IN | J60: LARVIN (T) WP75 20X250GR BAG IN | K60: 0 | L60: 65 | M60: 55.25 | N60: 9.75
A61: LUDIS SC630 BAYER 8X115ML | B61: 0 | C61: 3.68 | D61: 2.3 | E61: 1.38 | F61: LAUDIS SC630 8X115ML BOT IN | J61: LARVIN (T) WP75 20X500GR BAG IN | K61: 0 | L61: 32.5 | M61: 32.5 | N61: 0
A62: Luna Experience Sc400 Bayer 40x250ml | B62: 0 | C62: 40 | D62: 18.5 | E62: 21.5 | F62: LUNA EXPERIENCE SC400 40X250ML BOT IN | J62: LARVIN (T) WP75 40X100GR BAG IN | K62: 0 | L62: 20 | M62: 20 | N62: 0
A63: Luna Experience Sc400 Bayer 50x100ml | B63: 0 | C63: 45 | D63: 36.6 | E63: 8.4 | F63: LUNA EXPERIENCE SC400 50X100ML BOT IN | J63: LAUDIS SC630 10X57.5ML BOT IN | K63: 0 | L63: 11.5 | M63: 8.625 | N63: 2.875
A64: MOVENTO ENERGY BAYER 40 X 250ML | B64: 2.5 | C64: 0 | D64: 2.5 | E64: 0 | F64: MOVENTO ENERGY SC240 40X250ML BOT IN | J64: LAUDIS SC630 3X230ML BOT IN | K64: 0 | L64: 0 | M64: 0 | N64: 0
A65: MOVENTO ENERGY BAYER 50 X 100ML | B65: 8.7 | C65: 0 | D65: 8.7 | E65: 0 | F65: MOVENTO ENERGY SC240 50X100ML BOT IN | J65: LAUDIS SC630 8X115ML BOT IN | K65: 0 | L65: 3.68 | M65: 2.3 | N65: 1.38
A66: Oberon(Spiromesiften)Sc 240 Bayer 40 X 200 Ml | B66: 0 | C66: 152 | D66: 150.2 | E66: 1.8 | F66: OBERON (T) SC240 40X200ML BOT IN | J66: LESENTA WG80 100X40GR BAG IN | K66: 0 | L66: 4 | M66: 2.68 | N66: 1.32
A67: Oberon(Spiromesiften)Sc 240 Bayer 50 Ml | B67: 0 | C67: 0 | D67: 0 | E67: 0 | F67: OBERON (T) SC240 100X50ML BOT IN | J67: LUNA EXPERIENCE SC400 40X250ML BOT IN | K67: 0 | L67: 40 | M67: 18.5 | N67: 21.5
A68: Oberon(Spiromesiften)Sc 240 Bayer 50 x 100 Ml | B68: 0.2 | C68: 139.9 | D68: 131.4 | E68: 8.7 | F68: OBERON (T) SC240 50X100ML BOT IN | J68: LUNA EXPERIENCE SC400 50X100ML BOT IN | K68: 0 | L68: 45 | M68: 36.6 | N68: 8.4
A69: Planofix 4.5%Ana.Bayer 50 X 100 Ml | B69: 3.4 | C69: 125 | D69: 95.7 | E69: 32.7 | F69: PLANOFIX SL4 5 50X100ML BOT IN | J69: MELODY DUO WP66 8 10X400GR BAG IN | K69: 0 | L69: 0 | M69: 0 | N69: 0
A70: Raft(Oxadiargyl)Ec 6% Bayer 1 Lt. | B70: 0 | C70: 0 | D70: 0 | E70: 0 | F70: RAFT EC60 10X1L BOT IN | J70: MELODY DUO WP66 8 50X100GR BAG IN | K70: 0 | L70: 0 | M70: 0 | N70: 0
A71: Raft(Oxadiargyl)Ec 6% Bayer 40 X 250 Ml | B71: 0 | C71: 0 | D71: 0 | E71: 0 | F71: RAFT EC60 40X250ML BOT IN | J71: MOVENTO ENERGY SC240 40X250ML BOT IN | K71: 2.5 | L71: 0 | M71: 2.5 | N71: 0
A72: Raft(Oxadiargyl)Ec 6% Bayer 500 Ml | B72: 0 | C72: 0 | D72: 0 | E72: 0 | F72: RAFT EC60 20X500ML BOT IN | J72: MOVENTO ENERGY SC240 50X100ML BOT IN | K72: 8.7 | L72: 0 | M72: 8.7 | N72: 0
A73: Raxil(Tebuconazole)2% Bayer 50 Ml | B73: 0 | C73: 0 | D73: 0 | E73: 0 | F73: RAXIL EASY FS60 100X50ML BOT IN | J73: NATIVO WG75 100X50GR BAG IN | K73: 5 | L73: 15 | M73: 12.15 | N73: 7.85
A74: Regent(Fipronil)5% BAYER 20 X 250 Ml | B74: 0 | C74: 745 | D74: 695.75 | E74: 49.25 | F74: REGENT (T) SC50 20X250ML BOT IN | J74: NATIVO WG75 10X1KG BAG IN | K74: 0 | L74: 20 | M74: 20 | N74: 0
A75: Regent(Fipronil)5% BAYER 20 X 500 Ml | B75: 14.5 | C75: 550 | D75: 564.5 | E75: 0 | F75: REGENT (T) SC50 20X500ML BOT IN | J75: NATIVO WG75 20X500GR BAG IN | K75: 0 | L75: 10 | M75: 10 | N75: 0
A76: Regent(Fipronil)5% BAYER 50 X 100 Ml | B76: 52 | C76: 250 | D76: 292.4 | E76: 9.6 | F76: REGENT (T) SC50 50X100ML BOT IN | J76: NATIVO WG75 40X250GR BAG IN | K76: 2.25 | L76: 36 | M76: 29.5 | N76: 8.75
A77: Regent(Flpronil) 5% Bayer - 10 X 1Ltr | B77: 60 | C77: 180 | D77: 227 | E77: 13 | F77: REGENT (T) SC50 10X1L BOT IN | J77: NATIVO WG75 50X100GR BAG IN | K77: 3.8 | L77: 35 | M77: 25.9 | N77: 12.9
A78: Sivanto Prime Sl 200 Bayer 100ml | B78: 5 | C78: -5 | D78: 0 | E78: 0 | F78: SIVANTO PRIME SL200 50X100ML BOT IN | J78: OBERON (T) SC240 100X50ML BOT IN | K78: 0 | L78: 0 | M78: 0 | N78: 0
A79: Solitude (Imiza) 1ltr - Bayer | B79: 0 | C79: 0 | D79: 0 | E79: 0 | F79: DISCOUNTINUE PRODUCT | J79: OBERON (T) SC240 40X200ML BOT IN | K79: 0 | L79: 152 | M79: 150.2 | N79: 1.8
A80: Solomon -20X 500 Ml Bayer | B80: 0 | C80: 30 | D80: 30 | E80: 0 | F80: SOLOMON OD300 20X500ML BOT IN | J80: OBERON (T) SC240 50X100ML BOT IN | K80: 0.2 | L80: 139.9 | M80: 131.4 | N80: 8.7
A81: Solomon - 40 X 250 Ml Bayer | B81: 2.25 | C81: 130 | D81: 112.75 | E81: 19.5 | F81: SOLOMON OD300 40X250ML BOT IN | J81: PLANOFIX SL4 5 50X100ML BOT IN | K81: 3.4 | L81: 125 | M81: 95.7 | N81: 32.7
A82: Solomon (Betacyful 8.49%+Imida 19.81% 10X 1lt Bayer | B82: 0 | C82: 20 | D82: 20 | E82: 0 | F82: SOLOMON OD300 10X1L BOT IN | J82: PROFILER WG71 11 20X250GR BAG IN | K82: 0 | L82: 5 | M82: 5 | N82: 0
A83: SolomonOD300 Bayer 50 X 100 Ml | B83: 0 | C83: 95 | D83: 91.1 | E83: 3.9 | F83: SOLOMON OD300 50X100ML BOT IN | J83: RAFT EC60 10X1L BOT IN | K83: 0 | L83: 0 | M83: 0 | N83: 0
A84: Spark(Delta.+Triazophos)35% Bayer 100 Ml | B84: 0 | C84: 0 | D84: 0 | E84: 0 | F84: DISCOUNTINUE PRODUCT | J84: RAFT EC60 20X500ML BOT IN | K84: 0 | L84: 0 | M84: 0 | N84: 0
A85: Spark(Delta.+Triazophos)35% Bayer 250 Ml | B85: 0 | C85: 0 | D85: 0 | E85: 0 | F85: DISCOUNTINUE PRODUCT | J85: RAFT EC60 40X250ML BOT IN | K85: 0 | L85: 0 | M85: 0 | N85: 0
A86: Spark(Delta.+Triazophos)35% Bayer 500 Ml | B86: 0 | C86: 0 | D86: 0 | E86: 0 | F86: DISCOUNTINUE PRODUCT | J86: RAXIL (T) DS2 5X(25X40GR) BAG IN | K86: 0 | L86: 0 | M86: 0 | N86: 0
A87: SPINTOR SC 495 BAYER 20X75ML | B87: 0 | C87: 0 | D87: 0 | E87: 0 | F87: SPINTOR SC495 20X75ML BOT IN | J87: RAXIL EASY FS60 100X50ML BOT IN | K87: 0 | L87: 0 | M87: 0 | N87: 0
A88: VELUM PRIME (FLUOPYRAM 34.48%)SC 400 BAYER 20X500ML | B88: 6 | C88: 17 | D88: 16.5 | E88: 6.5 | F88: VELUM PRIME SC400 20X500ML BOT IN | J88: REGENT (T) SC50 10X1L BOT IN | K88: 60 | L88: 180 | M88: 227 | N88: 13
A89: VELUM PRIME (FLUOPYRAM 34.48%)SC 400 BAYER 40X250ML | B89: 8.5 | C89: 25.25 | D89: 33.75 | E89: 0 | F89: VELUM PRIME SC400 40X250ML BOT IN | J89: REGENT (T) SC50 20X250ML BOT IN | K89: 0 | L89: 745 | M89: 695.75 | N89: 49.25
A90: Whipsuper(Fenoxaprop P Et.)9.3% Bayer 100 Ml | B90: 0 | C90: 0 | D90: 0 | E90: 0 | F90: WHIPSUPER (T) EC90 50X100ML BOT IN | J90: REGENT (T) SC50 20X500ML BOT IN | K90: 14.5 | L90: 550 | M90: 564.5 | N90: 0
A91: Whipsuper(Fenoxaprop P Et.)9.3% Bayer 1 Lt | B91: 0 | C91: 0 | D91: 0 | E91: 0 | F91: WHIPSUPER (T) EC90 10X1L BOT IN | J91: REGENT (T) SC50 50X100ML BOT IN | K91: 52 | L91: 250 | M91: 292.4 | N91: 9.6
A92: Whipsuper(Fenoxaprop P Et.)9.3% Bayer 40 X 250 Ml | B92: 0 | C92: 0 | D92: 0 | E92: 0 | F92: WHIPSUPER (T) EC90 40X250ML BOT IN | J92: REGENT GR0 3 20X1KG BAG IN | K92: 80 | L92: 4760 | M92: 4815 | N92: 25
A93: Whipsuper(Fenoxaprop P Et.)9.3% Bayer 500 Ml | B93: 0 | C93: 0 | D93: 0 | E93: 0 | F93: WHIPSUPER (T) EC90 20X500ML BOT IN | J93: REGENT GR0 3 4X5KG BAG IN | K93: 90 | L93: 9220 | M93: 9240 | N93: 70
A94: Acephate(Tamaron Gold)75% Bayer 1 . | B94: 0 | C94: 0 | D94: 0 | E94: 0 | F94: DISCOUNTINUE PRODUCT | J94: SECTIN WG60 20X600GR BAG IN | K94: 0 | L94: 12 | M94: 12 | N94: 0
A95: Acephate(Tamaron Gold)75% Bayer 250 G. | B95: 0 | C95: 0 | D95: 0 | E95: 0 | F95: DISCOUNTINUE PRODUCT | J95: SECTIN WG60 50X100GR BAG IN | K95: 2.2 | L95: 0 | M95: 2.2 | N95: 0
A96: Acephate(Tamaron Gold)75% Bayer 500 G. | B96: 0 | C96: 0 | D96: 0 | E96: 0 | F96: DISCOUNTINUE PRODUCT | J96: SENCOR WP70 60X100GR BAG IN | K96: 0 | L96: 0 | M96: 0 | N96: 0
A97: Admire(Imida)70% Bayer 125X(8X2) GM | B97: 1.838 | C97: 20 | D97: 17.018 | E97: 4.82 | F97: ADMIRE WG70 125X(8X2GR) BAG IN | J97: SIVANTO PRIME SL200 50X100ML BOT IN | K97: 5 | L97: -5 | M97: 0 | N97: 0
A98: Admire(Imida)70% Bayer 30 Gram | B98: 24 | C98: 0 | D98: 3 | E98: 21 | F98: ADMIRE (T) WG70 150X30GR BOT IN | J98: SOLOMON OD300 10X1L BOT IN | K98: 0 | L98: 20 | M98: 20 | N98: 0
A99: Admire(Imida)70% Bayer 75 Gram | B99: 0 | C99: 0 | D99: 0 | E99: 0 | F99: ADMIRE (T) WG70 60X75GR BOT IN | J99: SOLOMON OD300 20X500ML BOT IN | K99: 0 | L99: 30 | M99: 30 | N99: 0
A100: Adue Wg70 Bayer 100 G. | B100: 0 | C100: 0 | D100: 0 | E100: 0 | F100: ADUE WG70 6X100G BOT IN | J100: SOLOMON OD300 40X250ML BOT IN | K100: 2.25 | L100: 130 | M100: 112.75 | N100: 19.5
A101: Aliette (Fosetyl-Al)80% Bayer 10 X 1 | B101: 0 | C101: 0 | D101: 0 | E101: 0 | F101: ALIETTE WP80 10X1KG BAG IN | J101: SOLOMON OD300 50X100ML BOT IN | K101: 0 | L101: 95 | M101: 91.1 | N101: 3.9
A102: Aliette (Fosetyl-Al)80% Bayer 20 X 250 G. | B102: 1.25 | C102: 25 | D102: 21.25 | E102: 5 | F102: ALIETTE WP80 20X250GR BAG IN | J102: SPINTOR SC495 20X75ML BOT IN | K102: 0 | L102: 0 | M102: 0 | N102: 0
A103: Aliette (Fosetyl-Al)80% Bayer 20 X 500 GM | B103: 0 | C103: 10 | D103: 10 | E103: 0 | F103: ALIETTE WP80 20X500GR BAG IN | J103: VELUM PRIME SC400 20X500ML BOT IN | K103: 6 | L103: 17 | M103: 16.5 | N103: 6.5
A104: Aliette (Fosetyl-Al)80% Bayer 40 X 100 G. | B104: 2.9 | C104: 16 | D104: 12.4 | E104: 6.5 | F104: ALIETTE WP80 40X100GR BAG IN | J104: VELUM PRIME SC400 40X250ML BOT IN | K104: 8.5 | L104: 25.25 | M104: 33.75 | N104: 0
A105: Antracol(Propineb)70 Wp Bayer 1kg | B105: 5 | C105: 30 | D105: 35 | E105: 0 | F105: ANTRACOL (T) WP70 10X1KG BAG IN | J105: WHIPSUPER (T) EC90 10X1L BOT IN | K105: 0 | L105: 0 | M105: 0 | N105: 0
A106: Antracol(Propineb)70 Wp Bayer 20X 500 G | B106: 0 | C106: 320 | D106: 320 | E106: 0 | F106: ANTRACOL (T) WP70 20X500GR BAG IN | J106: WHIPSUPER (T) EC90 20X500ML BOT IN | K106: 0 | L106: 0 | M106: 0 | N106: 0
A107: Antracol(Propineb)70 Wp Bayer 40X 250 G | B107: 10 | C107: 480 | D107: 490 | E107: 0 | F107: ANTRACOL (T) WP70 40X250GR BAG IN | J107: WHIPSUPER (T) EC90 40X250ML BOT IN | K107: 0 | L107: 0 | M107: 0 | N107: 0
A108: Antracol(Propineb)70 Wp Bayer 50 X 100 G | B108: 0 | C108: 45 | D108: 44.5 | E108: 0.5 | F108: ANTRACOL (T) WP70 50X100GR BAG IN | J108: WHIPSUPER (T) EC90 50X100ML BOT IN | K108: 0 | L108: 0 | M108: 0 | N108: 0
A109: Atlantis Kl (Bayer) 36 % 160 G. | B109: 0 | C109: 0 | D109: 0 | E109: 0 | F109: ATLANTIS KL3 6 15X160GR BOT IN | J109: Grand Total | K109: 911.586 | L109: 21263.33 | M109: 21309.415 | N109: 865.501
A110: Bayleton 25%(Triadimefon 25%) Bayer 100 G. | B110: 0 | C110: 0 | D110: 0 | E110: 0 | F110: DISCOUNTINUE PRODUCT
A111: Derosal(Carbendazim)50%Wp Bayer 100 G. | B111: 0 | C111: 0 | D111: 0 | E111: 0 | F111: DISCOUNTINUE PRODUCT
A112: Fitrest Sg 5 Bayer 40X 100gm | B112: 0 | C112: 0 | D112: 0 | E112: 0 | F112: FITREST SG5 40X100GR BOT IN
A113: Foost (Atrazin) Wp50 24x500gm Bayer | B113: 43.5 | C113: 0 | D113: 43.5 | E113: 0 | F113: FOOST WP50 24X500G BAG IN
A114: Glamore Wg80% 50 x 10x 5 Gm- Bayer | B114: 0 | C114: 2.5 | D114: 1.8 | E114: 0.7 | F114: GLAMORE WG80 50X(10X5GR) BAG IN
A115: Jump(Fipronil)80 WG Bayer 160 X (10X2) Gram | B115: 1.508 | C115: 20.8 | D115: 18.132 | E115: 4.176 | F115: JUMP WG80 160X(10X2GR) BAG IN
A116: Jump(Fipronil)80 WG Bayer 40 Gram | B116: 0 | C116: 3.2 | D116: 2.96 | E116: 0.24 | F116: JUMP WG80 80X40GR BAG IN
A117: Larvin(Thiodicarb) 75% Bayer 20 x 250 G | B117: 0 | C117: 65 | D117: 55.25 | E117: 9.75 | F117: LARVIN (T) WP75 20X250GR BAG IN
A118: Larvin(Thiodicarb)75% Bayer 40 X 100 G | B118: 0 | C118: 20 | D118: 20 | E118: 0 | F118: LARVIN (T) WP75 40X100GR BAG IN
A119: Larvin(Thiodicarb)75% Bayer 500 G | B119: 0 | C119: 32.5 | D119: 32.5 | E119: 0 | F119: LARVIN (T) WP75 20X500GR BAG IN
A120: Lesenta Wg 80- 40gm Bayer | B120: 0 | C120: 4 | D120: 2.68 | E120: 1.32 | F120: LESENTA WG80 100X40GR BAG IN
A121: Mancozeb M-45(Bilzeb)75% Bayer 1 | B121: 0 | C121: 0 | D121: 0 | E121: 0 | F121: DISCOUNTINUE PRODUCT
A122: Mancozeb M-45(Bilzeb)75% Bayer 250 G | B122: 0 | C122: 0 | D122: 0 | E122: 0 | F122: DISCOUNTINUE PRODUCT
A123: Mancozeb M-45(Bilzeb)75% Bayer 500 G | B123: 0 | C123: 0 | D123: 0 | E123: 0 | F123: DISCOUNTINUE PRODUCT
A124: Melody Duo (66.75%) Bayer- 400 Gm | B124: 0 | C124: 0 | D124: 0 | E124: 0 | F124: MELODY DUO WP66 8 10X400GR BAG IN
A125: Melody Duo(Iprovalicarb+Propineb)66.75% Bayer 100 G | B125: 0 | C125: 0 | D125: 0 | E125: 0 | F125: MELODY DUO WP66 8 50X100GR BAG IN
A126: Melody Duo(Iprovalicarb+Propineb)66.75% Bayer 500 G | B126: 0 | C126: 0 | D126: 0 | E126: 0 | F126: DISCOUNTINUE PRODUCT
A127: Nativo 50+25%(Tebuco+Triflox.)Bayer 100 X 50 G. | B127: 5 | C127: 15 | D127: 12.15 | E127: 7.85 | F127: NATIVO WG75 100X50GR BAG IN
A128: Nativo 50+25%(Tebuco+Triflox.)Bayer 50 X 100 G. | B128: 3.8 | C128: 35 | D128: 25.9 | E128: 12.9 | F128: NATIVO WG75 50X100GR BAG IN
A129: Nativo 50+25%(Tebuco+Trifloxyst.)Bayer 40 X 250G | B129: 2.25 | C129: 36 | D129: 29.5 | E129: 8.75 | F129: NATIVO WG75 40X250GR BAG IN
A130: Nativo 50 +25(Tebuco+Trifloxyst.) Bayer-20 X 500 Gm | B130: 0 | C130: 10 | D130: 10 | E130: 0 | F130: NATIVO WG75 20X500GR BAG IN
A131: Nativo 50 +25(Tebuco+Trifloxystrobin) Bayer- 1 | B131: 0 | C131: 20 | D131: 20 | E131: 0 | F131: NATIVO WG75 10X1KG BAG IN
A132: Profiler Wg 71 Bayer 20 x 250 G. | B132: 0 | C132: 5 | D132: 5 | E132: 0 | F132: PROFILER WG71 11 20X250GR BAG IN
A133: Quintal(Ipro.+Carben.)25% Bayer 100 G | B133: 0 | C133: 0 | D133: 0 | E133: 0 | F133: DISCOUNTINUE PRODUCT
A134: Quintal(Ipro.+Carben.)25% Bayer 250 G | B134: 0 | C134: 0 | D134: 0 | E134: 0 | F134: DISCOUNTINUE PRODUCT
A135: Quintal(Ipro.+Carben.)25% Bayer 500 G | B135: 0 | C135: 0 | D135: 0 | E135: 0 | F135: DISCOUNTINUE PRODUCT
A136: Raxil(Tebuconazole)2% Bayer 40 G | B136: 0 | C136: 0 | D136: 0 | E136: 0 | F136: RAXIL (T) DS2 5X(25X40GR) BAG IN
A137: Regent(Fipronil)0.3% Bayer 20X 1kG | B137: 80 | C137: 4760 | D137: 4815 | E137: 25 | F137: REGENT GR0 3 20X1KG BAG IN
A138: Regent(Fipronil)0.3% Bayer 4X 5 KG | B138: 90 | C138: 9220 | D138: 9240 | E138: 70 | F138: REGENT GR0 3 4X5KG BAG IN
A139: Sectin(Feni.+Mancozeb)60%Bayer 20 X 600 Gm | B139: 0 | C139: 12 | D139: 12 | E139: 0 | F139: SECTIN WG60 20X600GR BAG IN
A140: Sectin(Feni.+Mancozeb)60%Bayer 250 G | B140: 0 | C140: 0 | D140: 0 | E140: 0 | F140: DISCOUNTINUE PRODUCT
A141: Sectin(Feni.+Mancozeb)60%Bayer 50 X 100 G | B141: 2.2 | C141: 0 | D141: 2.2 | E141: 0 | F141: SECTIN WG60 50X100GR BAG IN
A142: Sencor Wp70 Bayer 100gr | B142: 0 | C142: 0 | D142: 0 | E142: 0 | F142: SENCOR WP70 60X100GR BAG IN
A143: Sevin(Carbaryl)Wdp 50% Bayer 100 G. | B143: 0 | C143: 0 | D143: 0 | E143: 0 | F143: DISCOUNTINUE PRODUCT
A144: Sevin(Carbaryl)Wdp 50% Bayer 500 G | B144: 0 | C144: 0 | D144: 0 | E144: 0 | F144: DISCOUNTINUE PRODUCT

Sheet Master
A1: Item Details | B1: Master Name
A2: Alanto Sc 240 50x100ml Bayer | B2: ALANTO (T) SC240 50X100ML BOT IN
A3: Ambition Bayer 10 X 1ltr | B3: AMBITION 10X1L BOT IN
A4: Ambition Bayer 20 X500ml | B4: AMBITION 20X500ML BOT IN
A5: Ambition Bayer 40 X250ml | B5: AMBITION 40X250ML BOT IN
A6: Bayfolan Algae Bayer 20x500ml | B6: DISCOUNTINUE PRODUCT
A7: Bayfolan Algae Bayer 40x250ml | B7: DISCOUNTINUE PRODUCT
A8: Belt Expert Sc480 Bayer 100 Ml | B8: BELT EXPERT SC480 50X100ML BOT IN
A9: BUONOS (Metal+Chloro)SC430 Bayer 40X250 ML | B9: BUONOS SC430 40X250ML BOT IN
A10: Confidor Sl 200 100ml Bayer | B10: CONFIDOR (T) SL200 50X100ML BOT IN
A11: Confidor Sl 200 250ml Bayer | B11: CONFIDOR (T) SL200 20X250ML BOT IN
A12: Confidor Sl 200 500ml Bayer | B12: CONFIDOR (T) SL200 20X500ML BOT IN
A13: Confidor Sl 200 50ml Bayer | B13: CONFIDOR (T) SL200 100X50ML BOT IN
A14: Decis(Deltamethrin)100 Bayer 100 Ml | B14: DECIS EC101-2 50X100ML BOX IN
A15: Decis(Deltamethrin)100 Bayer 250 Ml | B15: DECIS EC101-2 40X250ML BOT IN
A16: Decis(Deltamethrin)2.8% Bayer 100 Ml | B16: DECIS EC 28 50X100ML BOT IN
A17: Decis(Deltamethrin)2.8% Bayer 10 X 1 Lt | B17: DECIS EC 28 10X1L BOT IN
A18: Decis(Deltamethrin)2.8% Bayer 20 X 500 Ml | B18: DECIS EC 28 20X500ML BOT IN
A19: Decis(Deltamethrin)2.8% Bayer 40 X 250 Ml | B19: DECIS EC 28 40X250ML BOT IN
A20: Decis(Deltamethrin)2.8% Bayer 5ltr | B20: DECIS EC24,6 2X5L BOT IN
A21: Endosulfan Ec 35% BAYER 100 ML | B21: DISCOUNTINUE PRODUCT
A22: Endosulfan Ec 35% BAYER 1 LT | B22: DISCOUNTINUE PRODUCT
A23: Endosulfan Ec 35% BAYER 250 ML | B23: DISCOUNTINUE PRODUCT
A24: Endosulfan Ec 35% BAYER 500 ML | B24: DISCOUNTINUE PRODUCT
A25: Evergol Xtend Fs308 Bayer 100x40ml | B25: EVERGOL XTEND FS308 100X40ML BOT IN
A26: Evergol Xtend Fs308 Bayer 50 X100ml | B26: EVERGOL XTEND FS308 50X100ML BOT IN
A27: Fame(Flubendiamide)480 Sc Bayer 10 X (20 X 10) Ml | B27: FAME (T) SC480 10X(20X10ML) BOT IN
A28: Fame(Flubendiamide)480 Sc Bayer 20 X 100 Ml | B28: FAME (T) SC480 20X100ML BOT IN
A29: Fame(Flubendiamide)480 Sc Bayer 4 X 500 Ml | B29: FAME (T) SC480 4X500ML BOT IN
A30: Fame(Flubendiamide)480 Sc Bayer 50 Ml | B30: FAME (T) SC480 40X50ML BOT IN
A31: Fame(Flubendiamide)480 Sc Bayer 50 Ml NEW | B31: FAME (T) SC480 40X50ML BOT IN
A32: Fame(Flubendiamide)480 Sc Bayer 8 X 250 Ml | B32: FAME (T) SC480 8X250ML BOT IN
A33: Fenos Quick Sc150 Bayer 50x100ml | B33: FENOS QUICK SC150 50X100ML BOT IN
A34: Folicur(Tebuconazol) 250ec Bayer- 10 X 1 Ltr | B34: FOLICUR (T) EC250 10X1L BOT IN
A35: Folicur(Tebuconazole)250ec Bayer 20 X 500 Ml | B35: FOLICUR (T) EC250 20X500ML BOT IN
A36: Folicur(Tebuconazole)250ec Bayer 40 X 250 Ml | B36: FOLICUR (T) EC250 40X250ML BOT IN
A37: Folicur(Tebuconazole)250ec Bayer 50 X 100 Ml | B37: FOLICUR (T) EC250 50X100ML BOT IN
A38: Gaucho(Imidaclorpid)48% Bayer 100X 50 Ml | B38: GAUCHO FS600 100X50ML BOT IN
A39: Gaucho(Imidaclorpid)48% Bayer 10X 1 Lt | B39: GAUCHO FS600 2X(5X1L) BOT IN
A40: Gaucho(Imidaclorpid)48% Bayer 2 X 5 Lt | B40: GAUCHO FS600 2X5L BOT IN
A41: Gaucho(Imidaclorpid)48% Bayer40X 250 Ml | B41: GAUCHO FS600 40X250ML BOT IN
A42: Gaucho(Imidaclorpid)48% Bayer 50X100 Ml | B42: GAUCHO FS600 50X100ML BOT IN
A43: Hostathion(Triazophos)40% Bayer 100 Ml | B43: DISCOUNTINUE PRODUCT
A44: Hostathion(Triazophos)40% Bayer 1 Lt | B44: DISCOUNTINUE PRODUCT
A45: Hostathion(Triazophos)40% Bayer 250 Ml | B45: DISCOUNTINUE PRODUCT
A46: Hostathion(Triazophos)40% Bayer 500 Ml | B46: DISCOUNTINUE PRODUCT
A47: Imidaclorpid 17.8% Bayer 100 X 50 Ml | B47: DISCOUNTINUE PRODUCT
A48: Imidaclorpid 17.8% Bayer 1 Lt | B48: DISCOUNTINUE PRODUCT
A49: Imidaclorpid 17.8% Bayer 20 X 250 Ml | B49: DISCOUNTINUE PRODUCT
A50: Imidaclorpid 17.8% Bayer 20 X 500 Ml | B50: DISCOUNTINUE PRODUCT
A51: Imidaclorpid 17.8% Bayer 50 X 100 Ml | B51: DISCOUNTINUE PRODUCT
A52: IMIDA(Confidor Super)350 BAYER 100 Ml | B52: CONFIDOR SUPER (T) SC350 50X100ML BOT IN
A53: IMIDA(Confidor Super)350 BAYER 250 Ml | B53: CONFIDOR SUPER (T) SC350 20X250ML BOT IN
A54: IMIDA(Confidor Super)350 BAYER 50 Ml | B54: CONFIDOR SUPER (T) SC350 50X50ML BOT IN
A55: IMIDA(Confidor Super)SL200 BAYER 50 Ml | B55: CONFIDOR SUPER (T) SC350 50X50ML BOT IN
A56: IMIDA(Confidor Super)SL200 BAYER 50X 100 ML | B56: CONFIDOR SUPER (T) SC350 50X100ML BOT IN
A57: INFINITO (Protectant & Cur) SC687 5 Bayer 50X100ML | B57: INFINITO SC687 5 50X100ML BOT IN
A58: LAUDIS 34.4%BOTIN BAYER 10X 57.5ML | B58: LAUDIS SC630 10X57.5ML BOT IN
A59: LUDIS SC630 BAYER 10X57.5 ML | B59: LAUDIS SC630 10X57.5ML BOT IN
A60: LUDIS SC630 BAYER 3 X 230ML | B60: LAUDIS SC630 3X230ML BOT IN
A61: LUDIS SC630 BAYER 8X115ML | B61: LAUDIS SC630 8X115ML BOT IN
A62: Luna Experience Sc400 Bayer 40x250ml | B62: LUNA EXPERIENCE SC400 40X250ML BOT IN
A63: Luna Experience Sc400 Bayer 50x100ml | B63: LUNA EXPERIENCE SC400 50X100ML BOT IN
A64: MOVENTO ENERGY BAYER 40 X 250ML | B64: MOVENTO ENERGY SC240 40X250ML BOT IN
A65: MOVENTO ENERGY BAYER 50 X 100ML | B65: MOVENTO ENERGY SC240 50X100ML BOT IN
A66: Oberon(Spiromesiften)Sc 240 Bayer 40 X 200 Ml | B66: OBERON (T) SC240 40X200ML BOT IN
A67: Oberon(Spiromesiften)Sc 240 Bayer 50 Ml | B67: OBERON (T) SC240 100X50ML BOT IN
A68: Oberon(Spiromesiften)Sc 240 Bayer 50 x 100 Ml | B68: OBERON (T) SC240 50X100ML BOT IN
A69: Planofix 4.5%Ana.Bayer 50 X 100 Ml | B69: PLANOFIX SL4 5 50X100ML BOT IN
A70: Raft(Oxadiargyl)Ec 6% Bayer 1 Lt. | B70: RAFT EC60 10X1L BOT IN
A71: Raft(Oxadiargyl)Ec 6% Bayer 40 X 250 Ml | B71: RAFT EC60 40X250ML BOT IN
A72: Raft(Oxadiargyl)Ec 6% Bayer 500 Ml | B72: RAFT EC60 20X500ML BOT IN
A73: Raxil(Tebuconazole)2% Bayer 50 Ml | B73: RAXIL EASY FS60 100X50ML BOT IN
A74: Regent(Fipronil)5% BAYER 20 X 250 Ml | B74: REGENT (T) SC50 20X250ML BOT IN
A75: Regent(Fipronil)5% BAYER 20 X 500 Ml | B75: REGENT (T) SC50 20X500ML BOT IN
A76: Regent(Fipronil)5% BAYER 50 X 100 Ml | B76: REGENT (T) SC50 50X100ML BOT IN
A77: Regent(Flpronil) 5% Bayer - 10 X 1Ltr | B77: REGENT (T) SC50 10X1L BOT IN
A78: Sivanto Prime Sl 200 Bayer 100ml | B78: SIVANTO PRIME SL200 50X100ML BOT IN
A79: Solitude (Imiza) 1ltr - Bayer | B79: DISCOUNTINUE PRODUCT
A80: Solomon -20X 500 Ml Bayer | B80: SOLOMON OD300 20X500ML BOT IN
A81: Solomon - 40 X 250 Ml Bayer | B81: SOLOMON OD300 40X250ML BOT IN
A82: Solomon (Betacyful 8.49%+Imida 19.81% 10X 1lt Bayer | B82: SOLOMON OD300 10X1L BOT IN
A83: SolomonOD300 Bayer 50 X 100 Ml | B83: SOLOMON OD300 50X100ML BOT IN
A84: Spark(Delta.+Triazophos)35% Bayer 100 Ml | B84: DISCOUNTINUE PRODUCT
A85: Spark(Delta.+Triazophos)35% Bayer 250 Ml | B85: DISCOUNTINUE PRODUCT
A86: Spark(Delta.+Triazophos)35% Bayer 500 Ml | B86: DISCOUNTINUE PRODUCT
A87: SPINTOR SC 495 BAYER 20X75ML | B87: SPINTOR SC495 20X75ML BOT IN
A88: VELUM PRIME (FLUOPYRAM 34.48%)SC 400 BAYER 20X500ML | B88: VELUM PRIME SC400 20X500ML BOT IN
A89: VELUM PRIME (FLUOPYRAM 34.48%)SC 400 BAYER 40X250ML | B89: VELUM PRIME SC400 40X250ML BOT IN
A90: Whipsuper(Fenoxaprop P Et.)9.3% Bayer 100 Ml | B90: WHIPSUPER (T) EC90 50X100ML BOT IN
A91: Whipsuper(Fenoxaprop P Et.)9.3% Bayer 1 Lt | B91: WHIPSUPER (T) EC90 10X1L BOT IN
A92: Whipsuper(Fenoxaprop P Et.)9.3% Bayer 40 X 250 Ml | B92: WHIPSUPER (T) EC90 40X250ML BOT IN
A93: Whipsuper(Fenoxaprop P Et.)9.3% Bayer 500 Ml | B93: WHIPSUPER (T) EC90 20X500ML BOT IN
A94: Acephate(Tamaron Gold)75% Bayer 1 . | B94: DISCOUNTINUE PRODUCT
A95: Acephate(Tamaron Gold)75% Bayer 250 G. | B95: DISCOUNTINUE PRODUCT
A96: Acephate(Tamaron Gold)75% Bayer 500 G. | B96: DISCOUNTINUE PRODUCT
A97: Admire(Imida)70% Bayer 125X(8X2) GM | B97: ADMIRE WG70 125X(8X2GR) BAG IN
A98: Admire(Imida)70% Bayer 30 Gram | B98: ADMIRE (T) WG70 150X30GR BOT IN
A99: Admire(Imida)70% Bayer 75 Gram | B99: ADMIRE (T) WG70 60X75GR BOT IN
A100: Adue Wg70 Bayer 100 G. | B100: ADUE WG70 6X100G BOT IN
A101: Aliette (Fosetyl-Al)80% Bayer 10 X 1 | B101: ALIETTE WP80 10X1KG BAG IN
A102: Aliette (Fosetyl-Al)80% Bayer 20 X 250 G. | B102: ALIETTE WP80 20X250GR BAG IN
A103: Aliette (Fosetyl-Al)80% Bayer 20 X 500 GM | B103: ALIETTE WP80 20X500GR BAG IN
A104: Aliette (Fosetyl-Al)80% Bayer 40 X 100 G. | B104: ALIETTE WP80 40X100GR BAG IN
A105: Antracol(Propineb)70 Wp Bayer 1kg | B105: ANTRACOL (T) WP70 10X1KG BAG IN
A106: Antracol(Propineb)70 Wp Bayer 20X 500 G | B106: ANTRACOL (T) WP70 20X500GR BAG IN
A107: Antracol(Propineb)70 Wp Bayer 40X 250 G | B107: ANTRACOL (T) WP70 40X250GR BAG IN
A108: Antracol(Propineb)70 Wp Bayer 50 X 100 G | B108: ANTRACOL (T) WP70 50X100GR BAG IN
A109: Atlantis Kl (Bayer) 36 % 160 G. | B109: ATLANTIS KL3 6 15X160GR BOT IN
A110: Bayleton 25%(Triadimefon 25%) Bayer 100 G. | B110: DISCOUNTINUE PRODUCT
A111: Derosal(Carbendazim)50%Wp Bayer 100 G. | B111: DISCOUNTINUE PRODUCT
A112: Fitrest Sg 5 Bayer 40X 100gm | B112: FITREST SG5 40X100GR BOT IN
A113: Foost (Atrazin) Wp50 24x500gm Bayer | B113: FOOST WP50 24X500G BAG IN
A114: Glamore Wg80% 50 x 10x 5 Gm- Bayer | B114: GLAMORE WG80 50X(10X5GR) BAG IN
A115: Jump(Fipronil)80 WG Bayer 160 X (10X2) Gram | B115: JUMP WG80 160X(10X2GR) BAG IN
A116: Jump(Fipronil)80 WG Bayer 40 Gram | B116: JUMP WG80 80X40GR BAG IN
A117: Larvin(Thiodicarb) 75% Bayer 20 x 250 G | B117: LARVIN (T) WP75 20X250GR BAG IN
A118: Larvin(Thiodicarb)75% Bayer 40 X 100 G | B118: LARVIN (T) WP75 40X100GR BAG IN
A119: Larvin(Thiodicarb)75% Bayer 500 G | B119: LARVIN (T) WP75 20X500GR BAG IN
A120: Lesenta Wg 80- 40gm Bayer | B120: LESENTA WG80 100X40GR BAG IN
A121: Mancozeb M-45(Bilzeb)75% Bayer 1 | B121: DISCOUNTINUE PRODUCT
A122: Mancozeb M-45(Bilzeb)75% Bayer 250 G | B122: DISCOUNTINUE PRODUCT
A123: Mancozeb M-45(Bilzeb)75% Bayer 500 G | B123: DISCOUNTINUE PRODUCT
A124: Melody Duo (66.75%) Bayer- 400 Gm | B124: MELODY DUO WP66 8 10X400GR BAG IN
A125: Melody Duo(Iprovalicarb+Propineb)66.75% Bayer 100 G | B125: MELODY DUO WP66 8 50X100GR BAG IN
A126: Melody Duo(Iprovalicarb+Propineb)66.75% Bayer 500 G | B126: DISCOUNTINUE PRODUCT
A127: Nativo 50+25%(Tebuco+Triflox.)Bayer 100 X 50 G. | B127: NATIVO WG75 100X50GR BAG IN
A128: Nativo 50+25%(Tebuco+Triflox.)Bayer 50 X 100 G. | B128: NATIVO WG75 50X100GR BAG IN
A129: Nativo 50+25%(Tebuco+Trifloxyst.)Bayer 40 X 250G | B129: NATIVO WG75 40X250GR BAG IN
A130: Nativo 50 +25(Tebuco+Trifloxyst.) Bayer-20 X 500 Gm | B130: NATIVO WG75 20X500GR BAG IN
A131: Nativo 50 +25(Tebuco+Trifloxystrobin) Bayer- 1 | B131: NATIVO WG75 10X1KG BAG IN
A132: Profiler Wg 71 Bayer 20 x 250 G. | B132: PROFILER WG71 11 20X250GR BAG IN
A133: Quintal(Ipro.+Carben.)25% Bayer 100 G | B133: DISCOUNTINUE PRODUCT
A134: Quintal(Ipro.+Carben.)25% Bayer 250 G | B134: DISCOUNTINUE PRODUCT
A135: Quintal(Ipro.+Carben.)25% Bayer 500 G | B135: DISCOUNTINUE PRODUCT
A136: Raxil(Tebuconazole)2% Bayer 40 G | B136: RAXIL (T) DS2 5X(25X40GR) BAG IN
A137: Regent(Fipronil)0.3% Bayer 20X 1kG | B137: REGENT GR0 3 20X1KG BAG IN
A138: Regent(Fipronil)0.3% Bayer 4X 5 KG | B138: REGENT GR0 3 4X5KG BAG IN
A139: Sectin(Feni.+Mancozeb)60%Bayer 20 X 600 Gm | B139: SECTIN WG60 20X600GR BAG IN
A140: Sectin(Feni.+Mancozeb)60%Bayer 250 G | B140: DISCOUNTINUE PRODUCT
A141: Sectin(Feni.+Mancozeb)60%Bayer 50 X 100 G | B141: SECTIN WG60 50X100GR BAG IN
A142: Sencor Wp70 Bayer 100gr | B142: SENCOR WP70 60X100GR BAG IN
A143: Sevin(Carbaryl)Wdp 50% Bayer 100 G. | B143: DISCOUNTINUE PRODUCT
A144: Sevin(Carbaryl)Wdp 50% Bayer 500 G | B144: DISCOUNTINUE PRODUCT
A145: INFINITO (Protectant & Cur) SC687,5 Bayer 50X100ML | B145: INFINITO SC687 5 50X100ML BOT IN
A146: Acephate(Tamaron Gold)75% Bayer 1 Kg. | B146: DISCOUNTINUE PRODUCT
A147: Aliette (Fosetyl-Al)80% Bayer 10 X 1KG | B147: ALIETTE WP80 10X1KG BAG IN
A148: Mancozeb M-45(Bilzeb)75% Bayer 1kg | B148: DISCOUNTINUE PRODUCT
A149: Nativo 50 +25(Tebuco+Trifloxystrobin) Bayer- 1 Kg | B149: NATIVO WG75 10X1KG BAG IN

Sheet Final Dealer Work
B2: PRODUCT | C2: ITEMALIAS | D2: Bpc | E2: Volume | F2: Opening Qty | G2: Purchase Qty | H2: Purchase Return Qty | I2: Sales Qty | J2: Sales Return Qty | K2: Transfer Qty | L2: Consignment Qty | M2: Adjustment Qty | N2: CLSG
B3: ADMIRE (T) WG70 150X30GR BOT IN | F3: 24 | G3: 0 | H3: 0 | I3: 3 | J3: 0 | K3: 0 | L3: 0 | M3: 0 | N3: 21
B4: ADMIRE (T) WG70 60X75GR BOT IN | F4: 0 | G4: 0 | H4: 0 | I4: 0 | J4: 0 | K4: 0 | L4: 0 | M4: 0 | N4: 0
B5: ADMIRE WG70 125X(8X2GR) BAG IN | F5: 1.838 | G5: 20 | H5: 0 | I5: 17.018 | J5: 0 | K5: 0 | L5: 0 | M5: 0 | N5: 4.82
B6: ADUE WG70 6X100G BOT IN | F6: 0 | G6: 0 | H6: 0 | I6: 0 | J6: 0 | K6: 0 | L6: 0 | M6: 0 | N6: 0
B7: ALANTO (T) SC240 50X100ML BOT IN | F7: 0 | G7: 0 | H7: 0 | I7: 0 | J7: 0 | K7: 0 | L7: 0 | M7: 0 | N7: 0
B8: ALIETTE WP80 10X1KG BAG IN | F8: 0 | G8: 0 | H8: 0 | I8: 0 | J8: 0 | K8: 0 | L8: 0 | M8: 0 | N8: 0
B9: ALIETTE WP80 20X250GR BAG IN | F9: 1.25 | G9: 25 | H9: 0 | I9: 21.25 | J9: 0 | K9: 0 | L9: 0 | M9: 0 | N9: 5
B10: ALIETTE WP80 20X500GR BAG IN | F10: 0 | G10: 10 | H10: 0 | I10: 10 | J10: 0 | K10: 0 | L10: 0 | M10: 0 | N10: 0
B11: ALIETTE WP80 40X100GR BAG IN | F11: 2.9 | G11: 16 | H11: 0 | I11: 12.4 | J11: 0 | K11: 0 | L11: 0 | M11: 0 | N11: 6.5
B12: AMBITION 10X1L BOT IN | F12: 0 | G12: 30 | H12: 0 | I12: 10 | J12: 0 | K12: 0 | L12: 0 | M12: 0 | N12: 20
B13: AMBITION 20X500ML BOT IN | F13: 5.5 | G13: 80 | H13: 0 | I13: 73 | J13: 0 | K13: 0 | L13: 0 | M13: 0 | N13: 12.5
B14: AMBITION 40X250ML BOT IN | F14: 20 | G14: 20 | H14: 0 | I14: 17.75 | J14: 0 | K14: 0 | L14: 0 | M14: 0 | N14: 22.25
B15: ANTRACOL (T) WP70 10X1KG BAG IN | F15: 5 | G15: 30 | H15: 0 | I15: 35 | J15: 0 | K15: 0 | L15: 0 | M15: 0 | N15: 0
B16: ANTRACOL (T) WP70 20X500GR BAG IN | F16: 0 | G16: 320 | H16: 0 | I16: 320 | J16: 0 | K16: 0 | L16: 0 | M16: 0 | N16: 0
B17: ANTRACOL (T) WP70 40X250GR BAG IN | F17: 10 | G17: 480 | H17: 0 | I17: 490 | J17: 0 | K17: 0 | L17: 0 | M17: 0 | N17: 0
B18: ANTRACOL (T) WP70 50X100GR BAG IN | F18: 0 | G18: 45 | H18: 0 | I18: 44.5 | J18: 0 | K18: 0 | L18: 0 | M18: 0 | N18: 0.5
B19: ATLANTIS KL3 6 15X160GR BOT IN | F19: 0 | G19: 0 | H19: 0 | I19: 0 | J19: 0 | K19: 0 | L19: 0 | M19: 0 | N19: 0
B20: BELT EXPERT SC480 50X100ML BOT IN | F20: 0 | G20: 0 | H20: 0 | I20: 0 | J20: 0 | K20: 0 | L20: 0 | M20: 0 | N20: 0
B21: BUONOS SC430 40X250ML BOT IN | F21: 0 | G21: 10 | H21: 0 | I21: 5 | J21: 0 | K21: 0 | L21: 0 | M21: 0 | N21: 5
B22: CONFIDOR (T) SL200 100X50ML BOT IN | F22: 0 | G22: 0 | H22: 0 | I22: 0 | J22: 0 | K22: 0 | L22: 0 | M22: 0 | N22: 0
B23: CONFIDOR (T) SL200 20X250ML BOT IN | F23: 0 | G23: 0 | H23: 0 | I23: 0 | J23: 0 | K23: 0 | L23: 0 | M23: 0 | N23: 0
B24: CONFIDOR (T) SL200 20X500ML BOT IN | F24: 0 | G24: 0 | H24: 0 | I24: 0 | J24: 0 | K24: 0 | L24: 0 | M24: 0 | N24: 0
B25: CONFIDOR (T) SL200 50X100ML BOT IN | F25: 0 | G25: 0 | H25: 0 | I25: 0 | J25: 0 | K25: 0 | L25: 0 | M25: 0 | N25: 0
B26: CONFIDOR SUPER (T) SC350 20X250ML BOT IN | F26: 0 | G26: 0 | H26: 0 | I26: 0 | J26: 0 | K26: 0 | L26: 0 | M26: 0 | N26: 0
B27: CONFIDOR SUPER (T) SC350 50X100ML BOT IN | F27: 0 | G27: 0 | H27: 0 | I27: 0 | J27: 0 | K27: 0 | L27: 0 | M27: 0 | N27: 0
B28: CONFIDOR SUPER (T) SC350 50X50ML BOT IN | F28: 0 | G28: 0 | H28: 0 | I28: 0 | J28: 0 | K28: 0 | L28: 0 | M28: 0 | N28: 0
B29: DECIS EC 28 10X1L BOT IN | F29: 75 | G29: 0 | H29: 0 | I29: 59 | J29: 0 | K29: 0 | L29: 0 | M29: 0 | N29: 16
B30: DECIS EC 28 20X500ML BOT IN | F30: 120.5 | G30: 0 | H30: 0 | I30: 87.5 | J30: 0 | K30: 0 | L30: 0 | M30: 0 | N30: 33
B31: DECIS EC 28 40X250ML BOT IN | F31: 0 | G31: 30 | H31: 0 | I31: 13.75 | J31: 0 | K31: 0 | L31: 0 | M31: 0 | N31: 16.25
B32: DECIS EC 28 50X100ML BOT IN | F32: 0 | G32: 0 | H32: 0 | I32: 0 | J32: 0 | K32: 0 | L32: 0 | M32: 0 | N32: 0
B33: DECIS EC101-2 40X250ML BOT IN | F33: 0 | G33: 0 | H33: 0 | I33: 0 | J33: 0 | K33: 0 | L33: 0 | M33: 0 | N33: 0
B34: DECIS EC101-2 50X100ML BOX IN | F34: 0 | G34: 0 | H34: 0 | I34: 0 | J34: 0 | K34: 0 | L34: 0 | M34: 0 | N34: 0
B35: DECIS EC24,6 2X5L BOT IN | F35: 0 | G35: 0 | H35: 0 | I35: 0 | J35: 0 | K35: 0 | L35: 0 | M35: 0 | N35: 0
B36: DISCOUNTINUE PRODUCT | F36: 12.55 | G36: 208 | H36: 0 | I36: 176.9 | J36: 0 | K36: 0 | L36: 0 | M36: 0 | N36: 43.65
B37: EVERGOL XTEND FS308 100X40ML BOT IN | F37: 2.84 | G37: 48 | H37: 0 | I37: 50.84 | J37: 0 | K37: 0 | L37: 0 | M37: 0 | N37: 0
B38: EVERGOL XTEND FS308 50X100ML BOT IN | F38: 7 | G38: 0 | H38: 0 | I38: 7 | J38: 0 | K38: 0 | L38: 0 | M38: 0 | N38: 0
B39: FAME (T) SC480 10X(20X10ML) BOT IN | F39: 1.3 | G39: 4 | H39: 0 | I39: 1.86 | J39: 0 | K39: 0 | L39: 0 | M39: 0 | N39: 3.44
B40: FAME (T) SC480 20X100ML BOT IN | F40: 2.4 | G40: 8 | H40: 0 | I40: 7 | J40: 0 | K40: 0 | L40: 0 | M40: 0 | N40: 3.4
B41: FAME (T) SC480 40X50ML BOT IN | F41: 0 | G41: 12 | H41: 0 | I41: 9.95 | J41: 0 | K41: 0 | L41: 0 | M41: 0 | N41: 2.05
B42: FAME (T) SC480 4X500ML BOT IN | F42: 0 | G42: 0 | H42: 0 | I42: 0 | J42: 0 | K42: 0 | L42: 0 | M42: 0 | N42: 0
B43: FAME (T) SC480 8X250ML BOT IN | F43: 6.75 | G43: 12 | H43: 0 | I43: 10.75 | J43: 0 | K43: 0 | L43: 0 | M43: 0 | N43: 8
B44: FENOS QUICK SC150 50X100ML BOT IN | F44: 0 | G44: 5 | H44: 0 | I44: 3.4 | J44: 0 | K44: 0 | L44: 0 | M44: 0 | N44: 1.6
B45: FITREST SG5 40X100GR BOT IN | F45: 0 | G45: 0 | H45: 0 | I45: 0 | J45: 0 | K45: 0 | L45: 0 | M45: 0 | N45: 0
B46: FOLICUR (T) EC250 10X1L BOT IN | F46: 0 | G46: 10 | H46: 0 | I46: 10 | J46: 0 | K46: 0 | L46: 0 | M46: 0 | N46: 0
B47: FOLICUR (T) EC250 20X500ML BOT IN | F47: 0 | G47: 10 | H47: 0 | I47: 10 | J47: 0 | K47: 0 | L47: 0 | M47: 0 | N47: 0
B48: FOLICUR (T) EC250 40X250ML BOT IN | F48: 7.25 | G48: 30 | H48: 0 | I48: 28.75 | J48: 0 | K48: 0 | L48: 0 | M48: 0 | N48: 8.5
B49: FOLICUR (T) EC250 50X100ML BOT IN | F49: 4.5 | G49: 15 | H49: 0 | I49: 19 | J49: 0 | K49: 0 | L49: 0 | M49: 0 | N49: 0.5
B50: FOOST WP50 24X500G BAG IN | F50: 43.5 | G50: 0 | H50: 0 | I50: 43.5 | J50: 0 | K50: 0 | L50: 0 | M50: 0 | N50: 0
B51: GAUCHO FS600 100X50ML BOT IN | F51: 19.1 | G51: 150 | H51: 0 | I51: 140.45 | J51: 0 | K51: 0 | L51: 0 | M51: 0 | N51: 28.65
B52: GAUCHO FS600 2X(5X1L) BOT IN | F52: 63 | G52: 330 | H52: 0 | I52: 325 | J52: 0 | K52: 0 | L52: 0 | M52: 0 | N52: 68
B53: GAUCHO FS600 2X5L BOT IN | F53: 0 | G53: 20 | H53: 0 | I53: 20 | J53: 0 | K53: 0 | L53: 0 | M53: 0 | N53: 0
B54: GAUCHO FS600 40X250ML BOT IN | F54: 58.5 | G54: 1600 | H54: 0 | I54: 1639 | J54: 0 | K54: 0 | L54: 0 | M54: 0 | N54: 19.5
B55: GAUCHO FS600 50X100ML BOT IN | F55: 69.1 | G55: 860 | H55: 0 | I55: 739.3 | J55: 0 | K55: 0 | L55: 0 | M55: 0 | N55: 189.8
B56: GLAMORE WG80 50X(10X5GR) BAG IN | F56: 0 | G56: 2.5 | H56: 0 | I56: 1.8 | J56: 0 | K56: 0 | L56: 0 | M56: 0 | N56: 0.7
B57: INFINITO SC687 5 50X100ML BOT IN | F57: 0 | G57: 10 | H57: 0 | I57: 4.2 | J57: 0 | K57: 0 | L57: 0 | M57: 0 | N57: 5.8
B58: JUMP WG80 160X(10X2GR) BAG IN | F58: 1.508 | G58: 20.8 | H58: 0 | I58: 18.132 | J58: 0 | K58: 0 | L58: 0 | M58: 0 | N58: 4.176
B59: JUMP WG80 80X40GR BAG IN | F59: 0 | G59: 3.2 | H59: 0 | I59: 2.96 | J59: 0 | K59: 0 | L59: 0 | M59: 0 | N59: 0.24
B60: LARVIN (T) WP75 20X250GR BAG IN | F60: 0 | G60: 65 | H60: 0 | I60: 55.25 | J60: 0 | K60: 0 | L60: 0 | M60: 0 | N60: 9.75
B61: LARVIN (T) WP75 20X500GR BAG IN | F61: 0 | G61: 32.5 | H61: 0 | I61: 32.5 | J61: 0 | K61: 0 | L61: 0 | M61: 0 | N61: 0
B62: LARVIN (T) WP75 40X100GR BAG IN | F62: 0 | G62: 20 | H62: 0 | I62: 20 | J62: 0 | K62: 0 | L62: 0 | M62: 0 | N62: 0
B63: LAUDIS SC630 10X57.5ML BOT IN | F63: 0 | G63: 11.5 | H63: 0 | I63: 8.625 | J63: 0 | K63: 0 | L63: 0 | M63: 0 | N63: 2.875
B64: LAUDIS SC630 3X230ML BOT IN | F64: 0 | G64: 0 | H64: 0 | I64: 0 | J64: 0 | K64: 0 | L64: 0 | M64: 0 | N64: 0
B65: LAUDIS SC630 8X115ML BOT IN | F65: 0 | G65: 3.68 | H65: 0 | I65: 2.3 | J65: 0 | K65: 0 | L65: 0 | M65: 0 | N65: 1.38
B66: LESENTA WG80 100X40GR BAG IN | F66: 0 | G66: 4 | H66: 0 | I66: 2.68 | J66: 0 | K66: 0 | L66: 0 | M66: 0 | N66: 1.32
B67: LUNA EXPERIENCE SC400 40X250ML BOT IN | F67: 0 | G67: 40 | H67: 0 | I67: 18.5 | J67: 0 | K67: 0 | L67: 0 | M67: 0 | N67: 21.5
B68: LUNA EXPERIENCE SC400 50X100ML BOT IN | F68: 0 | G68: 45 | H68: 0 | I68: 36.6 | J68: 0 | K68: 0 | L68: 0 | M68: 0 | N68: 8.4
B69: MELODY DUO WP66 8 10X400GR BAG IN | F69: 0 | G69: 0 | H69: 0 | I69: 0 | J69: 0 | K69: 0 | L69: 0 | M69: 0 | N69: 0
B70: MELODY DUO WP66 8 50X100GR BAG IN | F70: 0 | G70: 0 | H70: 0 | I70: 0 | J70: 0 | K70: 0 | L70: 0 | M70: 0 | N70: 0
B71: MOVENTO ENERGY SC240 40X250ML BOT IN | F71: 2.5 | G71: 0 | H71: 0 | I71: 2.5 | J71: 0 | K71: 0 | L71: 0 | M71: 0 | N71: 0
B72: MOVENTO ENERGY SC240 50X100ML BOT IN | F72: 8.7 | G72: 0 | H72: 0 | I72: 8.7 | J72: 0 | K72: 0 | L72: 0 | M72: 0 | N72: 0
B73: NATIVO WG75 100X50GR BAG IN | F73: 5 | G73: 15 | H73: 0 | I73: 12.15 | J73: 0 | K73: 0 | L73: 0 | M73: 0 | N73: 7.85
B74: NATIVO WG75 10X1KG BAG IN | F74: 0 | G74: 20 | H74: 0 | I74: 20 | J74: 0 | K74: 0 | L74: 0 | M74: 0 | N74: 0
B75: NATIVO WG75 20X500GR BAG IN | F75: 0 | G75: 10 | H75: 0 | I75: 10 | J75: 0 | K75: 0 | L75: 0 | M75: 0 | N75: 0
B76: NATIVO WG75 40X250GR BAG IN | F76: 2.25 | G76: 36 | H76: 0 | I76: 29.5 | J76: 0 | K76: 0 | L76: 0 | M76: 0 | N76: 8.75
B77: NATIVO WG75 50X100GR BAG IN | F77: 3.8 | G77: 35 | H77: 0 | I77: 25.9 | J77: 0 | K77: 0 | L77: 0 | M77: 0 | N77: 12.9
B78: OBERON (T) SC240 100X50ML BOT IN | F78: 0 | G78: 0 | H78: 0 | I78: 0 | J78: 0 | K78: 0 | L78: 0 | M78: 0 | N78: 0
B79: OBERON (T) SC240 40X200ML BOT IN | F79: 0 | G79: 152 | H79: 0 | I79: 150.2 | J79: 0 | K79: 0 | L79: 0 | M79: 0 | N79: 1.8
B80: OBERON (T) SC240 50X100ML BOT IN | F80: 0.2 | G80: 139.9 | H80: 0 | I80: 131.4 | J80: 0 | K80: 0 | L80: 0 | M80: 0 | N80: 8.7
B81: PLANOFIX SL4 5 50X100ML BOT IN | F81: 3.4 | G81: 125 | H81: 0 | I81: 95.7 | J81: 0 | K81: 0 | L81: 0 | M81: 0 | N81: 32.7
B82: PROFILER WG71 11 20X250GR BAG IN | F82: 0 | G82: 5 | H82: 0 | I82: 5 | J82: 0 | K82: 0 | L82: 0 | M82: 0 | N82: 0
B83: RAFT EC60 10X1L BOT IN | F83: 0 | G83: 0 | H83: 0 | I83: 0 | J83: 0 | K83: 0 | L83: 0 | M83: 0 | N83: 0
B84: RAFT EC60 20X500ML BOT IN | F84: 0 | G84: 0 | H84: 0 | I84: 0 | J84: 0 | K84: 0 | L84: 0 | M84: 0 | N84: 0
B85: RAFT EC60 40X250ML BOT IN | F85: 0 | G85: 0 | H85: 0 | I85: 0 | J85: 0 | K85: 0 | L85: 0 | M85: 0 | N85: 0
B86: RAXIL (T) DS2 5X(25X40GR) BAG IN | F86: 0 | G86: 0 | H86: 0 | I86: 0 | J86: 0 | K86: 0 | L86: 0 | M86: 0 | N86: 0
B87: RAXIL EASY FS60 100X50ML BOT IN | F87: 0 | G87: 0 | H87: 0 | I87: 0 | J87: 0 | K87: 0 | L87: 0 | M87: 0 | N87: 0
B88: REGENT (T) SC50 10X1L BOT IN | F88: 60 | G88: 180 | H88: 0 | I88: 227 | J88: 0 | K88: 0 | L88: 0 | M88: 0 | N88: 13
B89: REGENT (T) SC50 20X250ML BOT IN | F89: 0 | G89: 745 | H89: 0 | I89: 695.75 | J89: 0 | K89: 0 | L89: 0 | M89: 0 | N89: 49.25
B90: REGENT (T) SC50 20X500ML BOT IN | F90: 14.5 | G90: 550 | H90: 0 | I90: 564.5 | J90: 0 | K90: 0 | L90: 0 | M90: 0 | N90: 0
B91: REGENT (T) SC50 50X100ML BOT IN | F91: 52 | G91: 250 | H91: 0 | I91: 292.4 | J91: 0 | K91: 0 | L91: 0 | M91: 0 | N91: 9.6
B92: REGENT GR0 3 20X1KG BAG IN | F92: 80 | G92: 4760 | H92: 0 | I92: 4815 | J92: 0 | K92: 0 | L92: 0 | M92: 0 | N92: 25
B93: REGENT GR0 3 4X5KG BAG IN | F93: 90 | G93: 9220 | H93: 0 | I93: 9240 | J93: 0 | K93: 0 | L93: 0 | M93: 0 | N93: 70
B94: SECTIN WG60 20X600GR BAG IN | F94: 0 | G94: 12 | H94: 0 | I94: 12 | J94: 0 | K94: 0 | L94: 0 | M94: 0 | N94: 0
B95: SECTIN WG60 50X100GR BAG IN | F95: 2.2 | G95: 0 | H95: 0 | I95: 2.2 | J95: 0 | K95: 0 | L95: 0 | M95: 0 | N95: 0
B96: SENCOR WP70 60X100GR BAG IN | F96: 0 | G96: 0 | H96: 0 | I96: 0 | J96: 0 | K96: 0 | L96: 0 | M96: 0 | N96: 0
B97: SIVANTO PRIME SL200 50X100ML BOT IN | F97: 5 | G97: -5 | H97: 0 | I97: 0 | J97: 0 | K97: 0 | L97: 0 | M97: 0 | N97: 0
B98: SOLOMON OD300 10X1L BOT IN | F98: 0 | G98: 20 | H98: 0 | I98: 20 | J98: 0 | K98: 0 | L98: 0 | M98: 0 | N98: 0
B99: SOLOMON OD300 20X500ML BOT IN | F99: 0 | G99: 30 | H99: 0 | I99: 30 | J99: 0 | K99: 0 | L99: 0 | M99: 0 | N99: 0
B100: SOLOMON OD300 40X250ML BOT IN | F100: 2.25 | G100: 130 | H100: 0 | I100: 112.75 | J100: 0 | K100: 0 | L100: 0 | M100: 0 | N100: 19.5
B101: SOLOMON OD300 50X100ML BOT IN | F101: 0 | G101: 95 | H101: 0 | I101: 91.1 | J101: 0 | K101: 0 | L101: 0 | M101: 0 | N101: 3.9
B102: SPINTOR SC495 20X75ML BOT IN | F102: 0 | G102: 0 | H102: 0 | I102: 0 | J102: 0 | K102: 0 | L102: 0 | M102: 0 | N102: 0
B103: VELUM PRIME SC400 20X500ML BOT IN | F103: 6 | G103: 17 | H103: 0 | I103: 16.5 | J103: 0 | K103: 0 | L103: 0 | M103: 0 | N103: 6.5
B104: VELUM PRIME SC400 40X250ML BOT IN | F104: 8.5 | G104: 25.25 | H104: 0 | I104: 33.75 | J104: 0 | K104: 0 | L104: 0 | M104: 0 | N104: 0
B105: WHIPSUPER (T) EC90 10X1L BOT IN | F105: 0 | G105: 0 | H105: 0 | I105: 0 | J105: 0 | K105: 0 | L105: 0 | M105: 0 | N105: 0
B106: WHIPSUPER (T) EC90 20X500ML BOT IN | F106: 0 | G106: 0 | H106: 0 | I106: 0 | J106: 0 | K106: 0 | L106: 0 | M106: 0 | N106: 0
B107: WHIPSUPER (T) EC90 40X250ML BOT IN | F107: 0 | G107: 0 | H107: 0 | I107: 0 | J107: 0 | K107: 0 | L107: 0 | M107: 0 | N107: 0
B108: WHIPSUPER (T) EC90 50X100ML BOT IN | F108: 0 | G108: 0 | H108: 0 | I108: 0 | J108: 0 | K108: 0 | L108: 0 | M108: 0 | N108: 0
B109: Grand Total | F109: 911.586 | G109: 21263.33 | H109: 0 | I109: 21309.415 | J109: 0 | K109: 0 | L109: 0 | M109: 0 | N109: 865.501

Sheet Zylem SNS Report
A2: Company Name:-BAYER
A3: Stock and Sales FOR THE PERIOD 01-Apr-2020 TO 31-Mar-2021
A4: Generated on 7/27/2021 8:07:46 AM
A5: DISTRIBUTOR PRODUCTWISE
A6: OUTPUT IN : PIC,DETAILS AS : Column,CONSIDER : Voucher Date,INCLUDE VALIDATION : False
A7: DISTRIBUTOR:Gupta Traders and Auto Agencies,
A8: DISTRIBUTOR | B8: SAPCODE | C8: PRODUCT | D8: ITEMALIAS | E8: Opening Qty | F8: Purchase Qty | G8: Purchase Return Qty | H8: Sales Qty | I8: Sales Return Qty | J8: Transfer Qty | K8: Consignment Qty | L8: Adjustment Qty | M8: CLSG
A9: Gupta Traders and Auto Agencies | B9: 9064856 | C9: ADMIRE (T) WG70 150X30GR BOT IN | D9: 79234988 | E9: 24 | F9: 0 | G9: 0 | H9: 3 | I9: 0 | J9: 0 | K9: 0 | L9: 0 | M9: 21
A10: Gupta Traders and Auto Agencies | B10: 9064856 | C10: ADMIRE WG70 125X(8X2GR) BAG IN | D10: 6101665 | E10: 1.83 | F10: 20 | G10: 0 | H10: 17.02 | I10: 0 | J10: 0 | K10: 0 | L10: 0 | M10: 4.81
A11: Gupta Traders and Auto Agencies | B11: 9064856 | C11: ALIETTE WP80 20X250GR BAG IN | D11: 3822358 | E11: 1.25 | F11: 25 | G11: 0 | H11: 21.25 | I11: 0 | J11: 0 | K11: 0 | L11: 0 | M11: 5
A12: Gupta Traders and Auto Agencies | B12: 9064856 | C12: ALIETTE WP80 20X500GR BAG IN | D12: 3822366 | E12: 0 | F12: 10 | G12: 0 | H12: 10 | I12: 0 | J12: 0 | K12: 0 | L12: 0 | M12: 0
A13: Gupta Traders and Auto Agencies | B13: 9064856 | C13: ALIETTE WP80 40X100GR BAG IN | D13: 3822331 | E13: 2.9 | F13: 16 | G13: 0 | H13: 12.4 | I13: 0 | J13: 0 | K13: 0 | L13: 0 | M13: 6.5
A14: Gupta Traders and Auto Agencies | B14: 9064856 | C14: AMBITION 10X1L BOT IN | D14: 86212544 | E14: 0 | F14: 30 | G14: 0 | H14: 10 | I14: 0 | J14: 0 | K14: 0 | L14: 0 | M14: 20
A15: Gupta Traders and Auto Agencies | B15: 9064856 | C15: AMBITION 20X500ML BOT IN | D15: 86228564 | E15: 5.5 | F15: 80 | G15: 0 | H15: 73 | I15: 0 | J15: 0 | K15: 0 | L15: 0 | M15: 12.5
A16: Gupta Traders and Auto Agencies | B16: 9064856 | C16: AMBITION 40X250ML BOT IN | D16: 86232308 | E16: 20 | F16: 20 | G16: 0 | H16: 17.75 | I16: 0 | J16: 0 | K16: 0 | L16: 0 | M16: 22.25
A17: Gupta Traders and Auto Agencies | B17: 9064856 | C17: ANTRACOL (T) WP70 10X1KG BAG IN | D17: 6077322 | E17: 5 | F17: 30 | G17: 0 | H17: 35 | I17: 0 | J17: 0 | K17: 0 | L17: 0 | M17: 0
A18: Gupta Traders and Auto Agencies | B18: 9064856 | C18: ANTRACOL (T) WP70 20X500GR BAG IN | D18: 5999978 | E18: 0 | F18: 320 | G18: 0 | H18: 320 | I18: 0 | J18: 0 | K18: 0 | L18: 0 | M18: 0
A19: Gupta Traders and Auto Agencies | B19: 9064856 | C19: ANTRACOL (T) WP70 40X250GR BAG IN | D19: 6112179 | E19: 10 | F19: 490 | G19: 10 | H19: 490 | I19: 0 | J19: 0 | K19: 0 | L19: 0 | M19: 0
A20: Gupta Traders and Auto Agencies | B20: 9064856 | C20: ANTRACOL (T) WP70 50X100GR BAG IN | D20: 6113191 | E20: 0 | F20: 45 | G20: 0 | H20: 44.5 | I20: 0 | J20: 0 | K20: 0 | L20: 0 | M20: 0.5
A21: Gupta Traders and Auto Agencies | B21: 9064856 | C21: DECIS EC 28 10X1L BOT IN | D21: 3823303 | E21: 75 | F21: 0 | G21: 0 | H21: 59 | I21: 0 | J21: 0 | K21: 0 | L21: 0 | M21: 16
A22: Gupta Traders and Auto Agencies | B22: 9064856 | C22: DECIS EC 28 20X500ML BOT IN | D22: 3823370 | E22: 120.5 | F22: 0 | G22: 0 | H22: 87.5 | I22: 0 | J22: 0 | K22: 0 | L22: 0 | M22: 33
A23: Gupta Traders and Auto Agencies | B23: 9064856 | C23: DECIS EC 28 40X250ML BOT IN | D23: 3823346 | E23: 0 | F23: 30 | G23: 0 | H23: 13.75 | I23: 0 | J23: 0 | K23: 0 | L23: 0 | M23: 16.25
A24: Gupta Traders and Auto Agencies | B24: 9064856 | C24: EVERGOL XTEND FS308 100X40ML BOT IN | D24: 85402838 | E24: 2.84 | F24: 48 | G24: 0 | H24: 50.84 | I24: 0 | J24: 0 | K24: 0 | L24: 0 | M24: 0
A25: Gupta Traders and Auto Agencies | B25: 9064856 | C25: EVERGOL XTEND FS308 50X100ML BOT IN | D25: 84065757 | E25: 7 | F25: 0 | G25: 0 | H25: 7 | I25: 0 | J25: 0 | K25: 0 | L25: 0 | M25: 0
A26: Gupta Traders and Auto Agencies | B26: 9064856 | C26: FAME (T) SC480 10X(20X10ML) BOT IN | D26: 79305885 | E26: 1.3 | F26: 4 | G26: 0 | H26: 1.86 | I26: 0 | J26: 0 | K26: 0 | L26: 0 | M26: 3.44
A27: Gupta Traders and Auto Agencies | B27: 9064856 | C27: FAME (T) SC480 20X100ML BOT IN | D27: 79266197 | E27: 2.4 | F27: 8 | G27: 0 | H27: 8.5 | I27: 1.5 | J27: 0 | K27: 0 | L27: 0 | M27: 3.4
A28: Gupta Traders and Auto Agencies | B28: 9064856 | C28: FAME (T) SC480 40X50ML BOT IN | D28: 79224699 | E28: 0 | F28: 12 | G28: 0 | H28: 9.95 | I28: 0 | J28: 0 | K28: 0 | L28: 0 | M28: 2.05
A29: Gupta Traders and Auto Agencies | B29: 9064856 | C29: FAME (T) SC480 4X500ML BOT IN | D29: 80554966 | E29: 0 | F29: 0 | G29: 0 | H29: 0 | I29: 0 | J29: 0 | K29: 0 | L29: 0 | M29: 0
A30: Gupta Traders and Auto Agencies | B30: 9064856 | C30: FAME (T) SC480 8X250ML BOT IN | D30: 80183291 | E30: 6.75 | F30: 12 | G30: 0 | H30: 10.75 | I30: 0 | J30: 0 | K30: 0 | L30: 0 | M30: 8
A31: Gupta Traders and Auto Agencies | B31: 9064856 | C31: FENOS QUICK SC150 50X100ML BOT IN | D31: 80942990 | E31: 0 | F31: 5 | G31: 0 | H31: 3.4 | I31: 0 | J31: 0 | K31: 0 | L31: 0 | M31: 1.6
A32: Gupta Traders and Auto Agencies | B32: 9064856 | C32: FOLICUR (T) EC250 10X1L BOT IN | D32: 79504438 | E32: 0 | F32: 10 | G32: 0 | H32: 10 | I32: 0 | J32: 0 | K32: 0 | L32: 0 | M32: 0
A33: Gupta Traders and Auto Agencies | B33: 9064856 | C33: FOLICUR (T) EC250 20X500ML BOT IN | D33: 79652933 | E33: 0 | F33: 10 | G33: 0 | H33: 10 | I33: 0 | J33: 0 | K33: 0 | L33: 0 | M33: 0
A34: Gupta Traders and Auto Agencies | B34: 9064856 | C34: FOLICUR (T) EC250 40X250ML BOT IN | D34: 79682271 | E34: 7.25 | F34: 30 | G34: 0 | H34: 28.75 | I34: 0 | J34: 0 | K34: 0 | L34: 0 | M34: 8.5
A35: Gupta Traders and Auto Agencies | B35: 9064856 | C35: FOLICUR (T) EC250 50X100ML BOT IN | D35: 79629125 | E35: 4.5 | F35: 15 | G35: 0 | H35: 19 | I35: 0 | J35: 0 | K35: 0 | L35: 0 | M35: 0.5
A36: Gupta Traders and Auto Agencies | B36: 9064856 | C36: FOOST WP50 24X500G BAG IN | D36: 85811770 | E36: 43.5 | F36: 0 | G36: 0 | H36: 43.5 | I36: 0 | J36: 0 | K36: 0 | L36: 0 | M36: 0
A37: Gupta Traders and Auto Agencies | B37: 9064856 | C37: GAUCHO FS600 2X(5X1L) BOT IN | D37: 3823907 | E37: 63 | F37: 440 | G37: 110 | H37: 325 | I37: 0 | J37: 0 | K37: 0 | L37: 0 | M37: 68
A38: Gupta Traders and Auto Agencies | B38: 9064856 | C38: GAUCHO FS600 100X50ML BOT IN | D38: 80034733 | E38: 19.1 | F38: 150 | G38: 0 | H38: 142.95 | I38: 2.5 | J38: 0 | K38: 0 | L38: 0 | M38: 28.65
A39: Gupta Traders and Auto Agencies | B39: 9064856 | C39: GAUCHO FS600 2X5L BOT IN | D39: 3823915 | E39: 0 | F39: 20 | G39: 0 | H39: 20 | I39: 0 | J39: 0 | K39: 0 | L39: 0 | M39: 0
A40: Gupta Traders and Auto Agencies | B40: 9064856 | C40: GAUCHO FS600 40X250ML BOT IN | D40: 84995681 | E40: 58.5 | F40: 1700 | G40: 100 | H40: 1639 | I40: 0 | J40: 0 | K40: 0 | L40: 0 | M40: 19.5
A41: Gupta Traders and Auto Agencies | B41: 9064856 | C41: GAUCHO FS600 50X100ML BOT IN | D41: 79664141 | E41: 69.1 | F41: 910 | G41: 50 | H41: 744.3 | I41: 5 | J41: 0 | K41: 0 | L41: 0 | M41: 189.8
A42: Gupta Traders and Auto Agencies | B42: 9064856 | C42: GLAMORE WG80 50X(10X5GR) BAG IN | D42: 80044461 | E42: 0 | F42: 2.5 | G42: 0 | H42: 1.8 | I42: 0 | J42: 0 | K42: 0 | L42: 0 | M42: 0.7
A43: Gupta Traders and Auto Agencies | B43: 9064856 | C43: INFINITO SC687 5 50X100ML BOT IN | D43: 79632487 | E43: 0 | F43: 10 | G43: 0 | H43: 4.2 | I43: 0 | J43: 0 | K43: 0 | L43: 0 | M43: 5.8
A44: Gupta Traders and Auto Agencies | B44: 9064856 | C44: JUMP WG80 160X(10X2GR) BAG IN | D44: 79215304 | E44: 1.51 | F44: 20.8 | G44: 0 | H44: 18.13 | I44: 0 | J44: 0 | K44: 0 | L44: 0 | M44: 4.18
A45: Gupta Traders and Auto Agencies | B45: 9064856 | C45: JUMP WG80 80X40GR BAG IN | D45: 79267509 | E45: 0 | F45: 3.2 | G45: 0 | H45: 2.96 | I45: 0 | J45: 0 | K45: 0 | L45: 0 | M45: 0.24
A46: Gupta Traders and Auto Agencies | B46: 9064856 | C46: LARVIN (T) WP75 20X250GR BAG IN | D46: 6003167 | E46: 0 | F46: 65 | G46: 0 | H46: 55.25 | I46: 0 | J46: 0 | K46: 0 | L46: 0 | M46: 9.75
A47: Gupta Traders and Auto Agencies | B47: 9064856 | C47: LARVIN (T) WP75 20X500GR BAG IN | D47: 6005291 | E47: 0 | F47: 32.5 | G47: 0 | H47: 32.5 | I47: 0 | J47: 0 | K47: 0 | L47: 0 | M47: 0
A48: Gupta Traders and Auto Agencies | B48: 9064856 | C48: LARVIN (T) WP75 40X100GR BAG IN | D48: 5980436 | E48: 0 | F48: 20 | G48: 0 | H48: 20 | I48: 0 | J48: 0 | K48: 0 | L48: 0 | M48: 0
A49: Gupta Traders and Auto Agencies | B49: 9064856 | C49: LAUDIS SC630 10X57.5ML BOT IN | D49: 84470481 | E49: 0 | F49: 11.5 | G49: 0 | H49: 8.63 | I49: 0 | J49: 0 | K49: 0 | L49: 0 | M49: 2.87
A50: Gupta Traders and Auto Agencies | B50: 9064856 | C50: LAUDIS SC630 8X115ML BOT IN | D50: 80491085 | E50: 0 | F50: 5.52 | G50: 1.84 | H50: 2.3 | I50: 0 | J50: 0 | K50: 0 | L50: 0 | M50: 1.38
A51: Gupta Traders and Auto Agencies | B51: 9064856 | C51: LESENTA WG80 100X40GR BAG IN | D51: 80500823 | E51: 0 | F51: 4 | G51: 0 | H51: 2.68 | I51: 0 | J51: 0 | K51: 0 | L51: 0 | M51: 1.32
A52: Gupta Traders and Auto Agencies | B52: 9064856 | C52: LUNA EXPERIENCE SC400 40X250ML BOT IN | D52: 80549652 | E52: 0 | F52: 40 | G52: 0 | H52: 18.5 | I52: 0 | J52: 0 | K52: 0 | L52: 0 | M52: 21.5
A53: Gupta Traders and Auto Agencies | B53: 9064856 | C53: LUNA EXPERIENCE SC400 50X100ML BOT IN | D53: 80199414 | E53: 0 | F53: 45 | G53: 0 | H53: 37.5 | I53: 0.9 | J53: 0 | K53: 0 | L53: 0 | M53: 8.4
A54: Gupta Traders and Auto Agencies | B54: 9064856 | C54: MOVENTO ENERGY SC240 40X250ML BOT IN | D54: 79679505 | E54: 2.5 | F54: 0 | G54: 0 | H54: 2.5 | I54: 0 | J54: 0 | K54: 0 | L54: 0 | M54: 0
A55: Gupta Traders and Auto Agencies | B55: 9064856 | C55: MOVENTO ENERGY SC240 50X100ML BOT IN | D55: 79722605 | E55: 8.7 | F55: 0 | G55: 0 | H55: 8.7 | I55: 0 | J55: 0 | K55: 0 | L55: 0 | M55: 0
A56: Gupta Traders and Auto Agencies | B56: 9064856 | C56: NATIVO WG75 100X50GR BAG IN | D56: 80580061 | E56: 5 | F56: 15 | G56: 0 | H56: 12.15 | I56: 0 | J56: 0 | K56: 0 | L56: 0 | M56: 7.85
A57: Gupta Traders and Auto Agencies | B57: 9064856 | C57: NATIVO WG75 10X1KG BAG IN | D57: 80525346 | E57: 0 | F57: 20 | G57: 0 | H57: 20 | I57: 0 | J57: 0 | K57: 0 | L57: 0 | M57: 0
A58: Gupta Traders and Auto Agencies | B58: 9064856 | C58: NATIVO WG75 20X500GR BAG IN | D58: 79198698 | E58: 0 | F58: 10 | G58: 0 | H58: 10 | I58: 0 | J58: 0 | K58: 0 | L58: 0 | M58: 0
A59: Gupta Traders and Auto Agencies | B59: 9064856 | C59: NATIVO WG75 40X250GR BAG IN | D59: 79237790 | E59: 2.25 | F59: 36 | G59: 0 | H59: 29.5 | I59: 0 | J59: 0 | K59: 0 | L59: 0 | M59: 8.75
A60: Gupta Traders and Auto Agencies | B60: 9064856 | C60: NATIVO WG75 50X100GR BAG IN | D60: 79304102 | E60: 3.8 | F60: 35 | G60: 0 | H60: 25.9 | I60: 0 | J60: 0 | K60: 0 | L60: 0 | M60: 12.9
A61: Gupta Traders and Auto Agencies | B61: 9064856 | C61: OBERON (T) SC240 40X200ML BOT IN | D61: 79971362 | E61: 0 | F61: 152 | G61: 0 | H61: 150.2 | I61: 0 | J61: 0 | K61: 0 | L61: 0 | M61: 1.8
A62: Gupta Traders and Auto Agencies | B62: 9064856 | C62: OBERON (T) SC240 50X100ML BOT IN | D62: 79998538 | E62: 0.2 | F62: 139.9 | G62: 0 | H62: 131.4 | I62: 0 | J62: 0 | K62: 0 | L62: 0 | M62: 8.7
A63: Gupta Traders and Auto Agencies | B63: 9064856 | C63: PLANOFIX SL4 5 50X100ML BOT IN | D63: 3825098 | E63: 3.4 | F63: 125 | G63: 0 | H63: 95.7 | I63: 0 | J63: 0 | K63: 0 | L63: 0 | M63: 32.7
A64: Gupta Traders and Auto Agencies | B64: 9064856 | C64: PROFILER WG71 11 20X250GR BAG IN | D64: 80532261 | E64: 0 | F64: 5 | G64: 0 | H64: 5 | I64: 0 | J64: 0 | K64: 0 | L64: 0 | M64: 0
A65: Gupta Traders and Auto Agencies | B65: 9064856 | C65: RAFT EC60 40X250ML BOT IN | D65: 3825330 | E65: 0 | F65: 0 | G65: 0 | H65: 0 | I65: 0 | J65: 0 | K65: 0 | L65: 0 | M65: 0
A66: Gupta Traders and Auto Agencies | B66: 9064856 | C66: REGENT (T) SC50 20X250ML BOT IN | D66: 5976951 | E66: 0 | F66: 745 | G66: 0 | H66: 695.75 | I66: 0 | J66: 0 | K66: 0 | L66: 0 | M66: 49.25
A67: Gupta Traders and Auto Agencies | B67: 9064856 | C67: REGENT (T) SC50 20X500ML BOT IN | D67: 5987678 | E67: 14.5 | F67: 550 | G67: 0 | H67: 564.5 | I67: 0 | J67: 0 | K67: 0 | L67: 0 | M67: 0
A68: Gupta Traders and Auto Agencies | B68: 9064856 | C68: REGENT (T) SC50 50X100ML BOT IN | D68: 5975343 | E68: 52 | F68: 250 | G68: 0 | H68: 292.4 | I68: 0 | J68: 0 | K68: 0 | L68: 0 | M68: 9.6
A69: Gupta Traders and Auto Agencies | B69: 9064856 | C69: REGENT GR0 3 20X1KG BAG IN | D69: 79667140 | E69: 80 | F69: 4760 | G69: 0 | H69: 4815 | I69: 0 | J69: 0 | K69: 0 | L69: 0 | M69: 25
A70: Gupta Traders and Auto Agencies | B70: 9064856 | C70: REGENT GR0 3 4X5KG BAG IN | D70: 80018703 | E70: 90 | F70: 9220 | G70: 0 | H70: 9270 | I70: 30 | J70: 0 | K70: 0 | L70: 0 | M70: 70
A71: Gupta Traders and Auto Agencies | B71: 9064856 | C71: SECTIN WG60 50X100GR BAG IN | D71: 5950812 | E71: 2.2 | F71: 0 | G71: 0 | H71: 2.2 | I71: 0 | J71: 0 | K71: 0 | L71: 0 | M71: 0
A72: Gupta Traders and Auto Agencies | B72: 9064856 | C72: SIVANTO PRIME SL200 50X100ML BOT IN | D72: 80961197 | E72: 5 | F72: 0 | G72: 5 | H72: 0 | I72: 0 | J72: 0 | K72: 0 | L72: 0 | M72: 0
A73: Gupta Traders and Auto Agencies | B73: 9064856 | C73: SOLOMON OD300 10X1L BOT IN | D73: 79637365 | E73: 0 | F73: 20 | G73: 0 | H73: 20 | I73: 0 | J73: 0 | K73: 0 | L73: 0 | M73: 0
A74: Gupta Traders and Auto Agencies | B74: 9064856 | C74: SOLOMON OD300 20X500ML BOT IN | D74: 79987870 | E74: 0 | F74: 30 | G74: 0 | H74: 30 | I74: 0 | J74: 0 | K74: 0 | L74: 0 | M74: 0
A75: Gupta Traders and Auto Agencies | B75: 9064856 | C75: SOLOMON OD300 40X250ML BOT IN | D75: 79706723 | E75: 2.25 | F75: 130 | G75: 0 | H75: 112.75 | I75: 0 | J75: 0 | K75: 0 | L75: 0 | M75: 19.5
A76: Gupta Traders and Auto Agencies | B76: 9064856 | C76: SOLOMON OD300 50X100ML BOT IN | D76: 79641931 | E76: 0 | F76: 95 | G76: 0 | H76: 91.1 | I76: 0 | J76: 0 | K76: 0 | L76: 0 | M76: 3.9
A77: Gupta Traders and Auto Agencies | B77: 9064856 | C77: VELUM PRIME SC400 20X500ML BOT IN | D77: 84407038 | E77: 6 | F77: 17 | G77: 0 | H77: 16.5 | I77: 0 | J77: 0 | K77: 0 | L77: 0 | M77: 6.5
A78: Gupta Traders and Auto Agencies | B78: 9064856 | C78: VELUM PRIME SC400 40X250ML BOT IN | D78: 84474886 | E78: 8.5 | F78: 25.25 | G78: 0 | H78: 33.75 | I78: 0 | J78: 0 | K78: 0 | L78: 0 | M78: 0
A79: Gupta Traders and Auto Agencies | B79: 9064856 | C79: WHIPSUPER (T) EC90 40X250ML BOT IN | D79: 5966131 | E79: 0 | F79: 0 | G79: 0 | H79: 0 | I79: 0 | J79: 0 | K79: 0 | L79: 0 | M79: 0
A80: Gupta Traders and Auto Agencies | B80: 9064856 | C80: SECTIN WG60 20X600GR BAG IN | D80: 6000664 | E80: 0 | F80: 12 | G80: 0 | H80: 12 | I80: 0 | J80: 0 | K80: 0 | L80: 0 | M80: 0
A81: Gupta Traders and Auto Agencies | B81: 9064856 | C81: BUONOS SC430 40X250ML BOT IN | D81: 86224801 | E81: 0 | F81: 10 | G81: 0 | H81: 5 | I81: 0 | J81: 0 | K81: 0 | L81: 0 | M81: 5
A82: Gupta Traders and Auto Agencies | B82: 9064856 | C82: REGENT (T) SC50 10X1L BOT IN | D82: 5962667 | E82: 60 | F82: 180 | G82: 0 | H82: 227 | I82: 0 | J82: 0 | K82: 0 | L82: 0 | M82: 13
A83: GRANDTOTAL | E83: 899.03 | F83: 21332.17 | G83: 276.84 | H83: 21172.42 | I83: 39.9 | J83: 0 | K83: 0 | L83: 0 | M83: 821.84

Sheet OPG
A1: ADMIRE (T) WG70 150X30GR BOT IN | B1: =VLOOKUP(A1,'[2]Product Master Sheet'!$B$2:$F$1506,5,0) -> 13 | C1: 49

Sheet Reco
B1: Zylem Report -01-Apr-2020 TO 31-Mar-2021 | K1: Dealer Report -01-Apr-2020 TO 31-Mar-2021 | T1: Difference (+/-)
A3: DEALER CODE | B3: Opening Qty | C3: Purchase Qty | D3: Purchase Return Qty | E3: Sales Qty | F3: Sales Return Qty | G3: Transfer Qty | H3: Consignment Qty | I3: Adjustment Qty | J3: CLSG | K3: Opening Qty | L3: Purchase Qty | M3: Purchase Return Qty | N3: Sales Qty | O3: Sales Return Qty | P3: Transfer Qty | Q3: Consignment Qty | R3: Adjustment Qty | S3: CLSG | T3: Opening Stock Qty | U3: Purchase Qty | V3: Purchase Return Qty | W3: Sales Qty | X3: Sales Return Qty | Y3: Transfer Qty | Z3: Consignment Qty | AA3: Adjustments Qty | AB3: CLSG | AC3: Remark
A4: ADMIRE (T) WG70 150X30GR BOT IN | B4: 24 | C4: 0 | D4: 0 | E4: 3 | F4: 0 | G4: 0 | H4: 0 | I4: 0 | J4: 21 | K4: 24 | L4: 0 | M4: 0 | N4: 3 | O4: 0 | P4: 0 | Q4: 0 | R4: 0 | S4: 21 | T4: 0 | U4: 0 | V4: 0 | W4: 0 | X4: 0 | Y4: 0 | Z4: 0 | AA4: 0 | AB4: 0 | AC4: Ok
A5: ADMIRE WG70 125X(8X2GR) BAG IN | B5: 1.83 | C5: 20 | D5: 0 | E5: 17.02 | F5: 0 | G5: 0 | H5: 0 | I5: 0 | J5: 4.81 | K5: 1.838 | L5: 20 | M5: 0 | N5: 17.018 | O5: 0 | P5: 0 | Q5: 0 | R5: 0 | S5: 4.82 | T5: -0.008 | U5: 0 | V5: 0 | W5: 0.002 | X5: 0 | Y5: 0 | Z5: 0 | AA5: 0 | AB5: -0.01 | AC5: Issue
A6: ALIETTE WP80 20X250GR BAG IN | B6: 1.25 | C6: 25 | D6: 0 | E6: 21.25 | F6: 0 | G6: 0 | H6: 0 | I6: 0 | J6: 5 | K6: 1.25 | L6: 25 | M6: 0 | N6: 21.25 | O6: 0 | P6: 0 | Q6: 0 | R6: 0 | S6: 5 | T6: 0 | U6: 0 | V6: 0 | W6: 0 | X6: 0 | Y6: 0 | Z6: 0 | AA6: 0 | AB6: 0 | AC6: Ok
A7: ALIETTE WP80 20X500GR BAG IN | B7: 0 | C7: 10 | D7: 0 | E7: 10 | F7: 0 | G7: 0 | H7: 0 | I7: 0 | J7: 0 | K7: 0 | L7: 10 | M7: 0 | N7: 10 | O7: 0 | P7: 0 | Q7: 0 | R7: 0 | S7: 0 | T7: 0 | U7: 0 | V7: 0 | W7: 0 | X7: 0 | Y7: 0 | Z7: 0 | AA7: 0 | AB7: 0 | AC7: Ok
A8: ALIETTE WP80 40X100GR BAG IN | B8: 2.9 | C8: 16 | D8: 0 | E8: 12.4 | F8: 0 | G8: 0 | H8: 0 | I8: 0 | J8: 6.5 | K8: 2.9 | L8: 16 | M8: 0 | N8: 12.4 | O8: 0 | P8: 0 | Q8: 0 | R8: 0 | S8: 6.5 | T8: 0 | U8: 0 | V8: 0 | W8: 0 | X8: 0 | Y8: 0 | Z8: 0 | AA8: 0 | AB8: 0 | AC8: Ok
A9: AMBITION 10X1L BOT IN | B9: 0 | C9: 30 | D9: 0 | E9: 10 | F9: 0 | G9: 0 | H9: 0 | I9: 0 | J9: 20 | K9: 0 | L9: 30 | M9: 0 | N9: 10 | O9: 0 | P9: 0 | Q9: 0 | R9: 0 | S9: 20 | T9: 0 | U9: 0 | V9: 0 | W9: 0 | X9: 0 | Y9: 0 | Z9: 0 | AA9: 0 | AB9: 0 | AC9: Ok
A10: AMBITION 20X500ML BOT IN | B10: 5.5 | C10: 80 | D10: 0 | E10: 73 | F10: 0 | G10: 0 | H10: 0 | I10: 0 | J10: 12.5 | K10: 5.5 | L10: 80 | M10: 0 | N10: 73 | O10: 0 | P10: 0 | Q10: 0 | R10: 0 | S10: 12.5 | T10: 0 | U10: 0 | V10: 0 | W10: 0 | X10: 0 | Y10: 0 | Z10: 0 | AA10: 0 | AB10: 0 | AC10: Ok
A11: AMBITION 40X250ML BOT IN | B11: 20 | C11: 20 | D11: 0 | E11: 17.75 | F11: 0 | G11: 0 | H11: 0 | I11: 0 | J11: 22.25 | K11: 20 | L11: 20 | M11: 0 | N11: 17.75 | O11: 0 | P11: 0 | Q11: 0 | R11: 0 | S11: 22.25 | T11: 0 | U11: 0 | V11: 0 | W11: 0 | X11: 0 | Y11: 0 | Z11: 0 | AA11: 0 | AB11: 0 | AC11: Ok
A12: ANTRACOL (T) WP70 10X1KG BAG IN | B12: 5 | C12: 30 | D12: 0 | E12: 35 | F12: 0 | G12: 0 | H12: 0 | I12: 0 | J12: 0 | K12: 5 | L12: 30 | M12: 0 | N12: 35 | O12: 0 | P12: 0 | Q12: 0 | R12: 0 | S12: 0 | T12: 0 | U12: 0 | V12: 0 | W12: 0 | X12: 0 | Y12: 0 | Z12: 0 | AA12: 0 | AB12: 0 | AC12: Ok
A13: ANTRACOL (T) WP70 20X500GR BAG IN | B13: 0 | C13: 320 | D13: 0 | E13: 320 | F13: 0 | G13: 0 | H13: 0 | I13: 0 | J13: 0 | K13: 0 | L13: 320 | M13: 0 | N13: 320 | O13: 0 | P13: 0 | Q13: 0 | R13: 0 | S13: 0 | T13: 0 | U13: 0 | V13: 0 | W13: 0 | X13: 0 | Y13: 0 | Z13: 0 | AA13: 0 | AB13: 0 | AC13: Ok
A14: ANTRACOL (T) WP70 40X250GR BAG IN | B14: 10 | C14: 490 | D14: 10 | E14: 490 | F14: 0 | G14: 0 | H14: 0 | I14: 0 | J14: 0 | K14: 10 | L14: 480 | M14: 0 | N14: 490 | O14: 0 | P14: 0 | Q14: 0 | R14: 0 | S14: 0 | T14: 0 | U14: 10 | V14: 10 | W14: 0 | X14: 0 | Y14: 0 | Z14: 0 | AA14: 0 | AB14: 0 | AC14: Ok
A15: ANTRACOL (T) WP70 50X100GR BAG IN | B15: 0 | C15: 45 | D15: 0 | E15: 44.5 | F15: 0 | G15: 0 | H15: 0 | I15: 0 | J15: 0.5 | K15: 0 | L15: 45 | M15: 0 | N15: 44.5 | O15: 0 | P15: 0 | Q15: 0 | R15: 0 | S15: 0.5 | T15: 0 | U15: 0 | V15: 0 | W15: 0 | X15: 0 | Y15: 0 | Z15: 0 | AA15: 0 | AB15: 0 | AC15: Ok
A16: DECIS EC 28 10X1L BOT IN | B16: 75 | C16: 0 | D16: 0 | E16: 59 | F16: 0 | G16: 0 | H16: 0 | I16: 0 | J16: 16 | K16: 75 | L16: 0 | M16: 0 | N16: 59 | O16: 0 | P16: 0 | Q16: 0 | R16: 0 | S16: 16 | T16: 0 | U16: 0 | V16: 0 | W16: 0 | X16: 0 | Y16: 0 | Z16: 0 | AA16: 0 | AB16: 0 | AC16: Ok
A17: DECIS EC 28 20X500ML BOT IN | B17: 120.5 | C17: 0 | D17: 0 | E17: 87.5 | F17: 0 | G17: 0 | H17: 0 | I17: 0 | J17: 33 | K17: 120.5 | L17: 0 | M17: 0 | N17: 87.5 | O17: 0 | P17: 0 | Q17: 0 | R17: 0 | S17: 33 | T17: 0 | U17: 0 | V17: 0 | W17: 0 | X17: 0 | Y17: 0 | Z17: 0 | AA17: 0 | AB17: 0 | AC17: Ok
A18: DECIS EC 28 40X250ML BOT IN | B18: 0 | C18: 30 | D18: 0 | E18: 13.75 | F18: 0 | G18: 0 | H18: 0 | I18: 0 | J18: 16.25 | K18: 0 | L18: 30 | M18: 0 | N18: 13.75 | O18: 0 | P18: 0 | Q18: 0 | R18: 0 | S18: 16.25 | T18: 0 | U18: 0 | V18: 0 | W18: 0 | X18: 0 | Y18: 0 | Z18: 0 | AA18: 0 | AB18: 0 | AC18: Ok
A19: EVERGOL XTEND FS308 100X40ML BOT IN | B19: 2.84 | C19: 48 | D19: 0 | E19: 50.84 | F19: 0 | G19: 0 | H19: 0 | I19: 0 | J19: 0 | K19: 2.84 | L19: 48 | M19: 0 | N19: 50.84 | O19: 0 | P19: 0 | Q19: 0 | R19: 0 | S19: 0 | T19: 0 | U19: 0 | V19: 0 | W19: 0 | X19: 0 | Y19: 0 | Z19: 0 | AA19: 0 | AB19: 0 | AC19: Ok
A20: EVERGOL XTEND FS308 50X100ML BOT IN | B20: 7 | C20: 0 | D20: 0 | E20: 7 | F20: 0 | G20: 0 | H20: 0 | I20: 0 | J20: 0 | K20: 7 | L20: 0 | M20: 0 | N20: 7 | O20: 0 | P20: 0 | Q20: 0 | R20: 0 | S20: 0 | T20: 0 | U20: 0 | V20: 0 | W20: 0 | X20: 0 | Y20: 0 | Z20: 0 | AA20: 0 | AB20: 0 | AC20: Ok
A21: FAME (T) SC480 10X(20X10ML) BOT IN | B21: 1.3 | C21: 4 | D21: 0 | E21: 1.86 | F21: 0 | G21: 0 | H21: 0 | I21: 0 | J21: 3.44 | K21: 1.3 | L21: 4 | M21: 0 | N21: 1.86 | O21: 0 | P21: 0 | Q21: 0 | R21: 0 | S21: 3.44 | T21: 0 | U21: 0 | V21: 0 | W21: 0 | X21: 0 | Y21: 0 | Z21: 0 | AA21: 0 | AB21: 0 | AC21: Ok
A22: FAME (T) SC480 20X100ML BOT IN | B22: 2.4 | C22: 8 | D22: 0 | E22: 8.5 | F22: 1.5 | G22: 0 | H22: 0 | I22: 0 | J22: 3.4 | K22: 2.4 | L22: 8 | M22: 0 | N22: 7 | O22: 0 | P22: 0 | Q22: 0 | R22: 0 | S22: 3.4 | T22: 0 | U22: 0 | V22: 0 | W22: 1.5 | X22: 1.5 | Y22: 0 | Z22: 0 | AA22: 0 | AB22: 0 | AC22: Ok
A23: FAME (T) SC480 40X50ML BOT IN | B23: 0 | C23: 12 | D23: 0 | E23: 9.95 | F23: 0 | G23: 0 | H23: 0 | I23: 0 | J23: 2.05 | K23: 0 | L23: 12 | M23: 0 | N23: 9.95 | O23: 0 | P23: 0 | Q23: 0 | R23: 0 | S23: 2.05 | T23: 0 | U23: 0 | V23: 0 | W23: 0 | X23: 0 | Y23: 0 | Z23: 0 | AA23: 0 | AB23: 0 | AC23: Ok
A24: FAME (T) SC480 4X500ML BOT IN | B24: 0 | C24: 0 | D24: 0 | E24: 0 | F24: 0 | G24: 0 | H24: 0 | I24: 0 | J24: 0 | K24: 0 | L24: 0 | M24: 0 | N24: 0 | O24: 0 | P24: 0 | Q24: 0 | R24: 0 | S24: 0 | T24: 0 | U24: 0 | V24: 0 | W24: 0 | X24: 0 | Y24: 0 | Z24: 0 | AA24: 0 | AB24: 0 | AC24: Ok
A25: FAME (T) SC480 8X250ML BOT IN | B25: 6.75 | C25: 12 | D25: 0 | E25: 10.75 | F25: 0 | G25: 0 | H25: 0 | I25: 0 | J25: 8 | K25: 6.75 | L25: 12 | M25: 0 | N25: 10.75 | O25: 0 | P25: 0 | Q25: 0 | R25: 0 | S25: 8 | T25: 0 | U25: 0 | V25: 0 | W25: 0 | X25: 0 | Y25: 0 | Z25: 0 | AA25: 0 | AB25: 0 | AC25: Ok
A26: FENOS QUICK SC150 50X100ML BOT IN | B26: 0 | C26: 5 | D26: 0 | E26: 3.4 | F26: 0 | G26: 0 | H26: 0 | I26: 0 | J26: 1.6 | K26: 0 | L26: 5 | M26: 0 | N26: 3.4 | O26: 0 | P26: 0 | Q26: 0 | R26: 0 | S26: 1.6 | T26: 0 | U26: 0 | V26: 0 | W26: 0 | X26: 0 | Y26: 0 | Z26: 0 | AA26: 0 | AB26: 0 | AC26: Ok
A27: FOLICUR (T) EC250 10X1L BOT IN | B27: 0 | C27: 10 | D27: 0 | E27: 10 | F27: 0 | G27: 0 | H27: 0 | I27: 0 | J27: 0 | K27: 0 | L27: 10 | M27: 0 | N27: 10 | O27: 0 | P27: 0 | Q27: 0 | R27: 0 | S27: 0 | T27: 0 | U27: 0 | V27: 0 | W27: 0 | X27: 0 | Y27: 0 | Z27: 0 | AA27: 0 | AB27: 0 | AC27: Ok
A28: FOLICUR (T) EC250 20X500ML BOT IN | B28: 0 | C28: 10 | D28: 0 | E28: 10 | F28: 0 | G28: 0 | H28: 0 | I28: 0 | J28: 0 | K28: 0 | L28: 10 | M28: 0 | N28: 10 | O28: 0 | P28: 0 | Q28: 0 | R28: 0 | S28: 0 | T28: 0 | U28: 0 | V28: 0 | W28: 0 | X28: 0 | Y28: 0 | Z28: 0 | AA28: 0 | AB28: 0 | AC28: Ok
A29: FOLICUR (T) EC250 40X250ML BOT IN | B29: 7.25 | C29: 30 | D29: 0 | E29: 28.75 | F29: 0 | G29: 0 | H29: 0 | I29: 0 | J29: 8.5 | K29: 7.25 | L29: 30 | M29: 0 | N29: 28.75 | O29: 0 | P29: 0 | Q29: 0 | R29: 0 | S29: 8.5 | T29: 0 | U29: 0 | V29: 0 | W29: 0 | X29: 0 | Y29: 0 | Z29: 0 | AA29: 0 | AB29: 0 | AC29: Ok
A30: FOLICUR (T) EC250 50X100ML BOT IN | B30: 4.5 | C30: 15 | D30: 0 | E30: 19 | F30: 0 | G30: 0 | H30: 0 | I30: 0 | J30: 0.5 | K30: 4.5 | L30: 15 | M30: 0 | N30: 19 | O30: 0 | P30: 0 | Q30: 0 | R30: 0 | S30: 0.5 | T30: 0 | U30: 0 | V30: 0 | W30: 0 | X30: 0 | Y30: 0 | Z30: 0 | AA30: 0 | AB30: 0 | AC30: Ok
A31: FOOST WP50 24X500G BAG IN | B31: 43.5 | C31: 0 | D31: 0 | E31: 43.5 | F31: 0 | G31: 0 | H31: 0 | I31: 0 | J31: 0 | K31: 43.5 | L31: 0 | M31: 0 | N31: 43.5 | O31: 0 | P31: 0 | Q31: 0 | R31: 0 | S31: 0 | T31: 0 | U31: 0 | V31: 0 | W31: 0 | X31: 0 | Y31: 0 | Z31: 0 | AA31: 0 | AB31: 0 | AC31: Ok
A32: GAUCHO FS600 2X(5X1L) BOT IN | B32: 63 | C32: 440 | D32: 110 | E32: 325 | F32: 0 | G32: 0 | H32: 0 | I32: 0 | J32: 68 | K32: 63 | L32: 330 | M32: 0 | N32: 325 | O32: 0 | P32: 0 | Q32: 0 | R32: 0 | S32: 68 | T32: 0 | U32: 110 | V32: 110 | W32: 0 | X32: 0 | Y32: 0 | Z32: 0 | AA32: 0 | AB32: 0 | AC32: Ok
A33: GAUCHO FS600 100X50ML BOT IN | B33: 19.1 | C33: 150 | D33: 0 | E33: 142.95 | F33: 2.5 | G33: 0 | H33: 0 | I33: 0 | J33: 28.65 | K33: 19.1 | L33: 150 | M33: 0 | N33: 140.45 | O33: 0 | P33: 0 | Q33: 0 | R33: 0 | S33: 28.65 | T33: 0 | U33: 0 | V33: 0 | W33: 2.5 | X33: 2.5 | Y33: 0 | Z33: 0 | AA33: 0 | AB33: 0 | AC33: Ok
A34: GAUCHO FS600 2X5L BOT IN | B34: 0 | C34: 20 | D34: 0 | E34: 20 | F34: 0 | G34: 0 | H34: 0 | I34: 0 | J34: 0 | K34: 0 | L34: 20 | M34: 0 | N34: 20 | O34: 0 | P34: 0 | Q34: 0 | R34: 0 | S34: 0 | T34: 0 | U34: 0 | V34: 0 | W34: 0 | X34: 0 | Y34: 0 | Z34: 0 | AA34: 0 | AB34: 0 | AC34: Ok
A35: GAUCHO FS600 40X250ML BOT IN | B35: 58.5 | C35: 1700 | D35: 100 | E35: 1639 | F35: 0 | G35: 0 | H35: 0 | I35: 0 | J35: 19.5 | K35: 58.5 | L35: 1600 | M35: 0 | N35: 1639 | O35: 0 | P35: 0 | Q35: 0 | R35: 0 | S35: 19.5 | T35: 0 | U35: 100 | V35: 100 | W35: 0 | X35: 0 | Y35: 0 | Z35: 0 | AA35: 0 | AB35: 0 | AC35: Ok
A36: GAUCHO FS600 50X100ML BOT IN | B36: 69.1 | C36: 910 | D36: 50 | E36: 744.3 | F36: 5 | G36: 0 | H36: 0 | I36: 0 | J36: 189.8 | K36: 69.1 | L36: 860 | M36: 0 | N36: 739.3 | O36: 0 | P36: 0 | Q36: 0 | R36: 0 | S36: 189.8 | T36: 0 | U36: 50 | V36: 50 | W36: 5 | X36: 5 | Y36: 0 | Z36: 0 | AA36: 0 | AB36: 0 | AC36: Ok
A37: GLAMORE WG80 50X(10X5GR) BAG IN | B37: 0 | C37: 2.5 | D37: 0 | E37: 1.8 | F37: 0 | G37: 0 | H37: 0 | I37: 0 | J37: 0.7 | K37: 0 | L37: 2.5 | M37: 0 | N37: 1.8 | O37: 0 | P37: 0 | Q37: 0 | R37: 0 | S37: 0.7 | T37: 0 | U37: 0 | V37: 0 | W37: 0 | X37: 0 | Y37: 0 | Z37: 0 | AA37: 0 | AB37: 0 | AC37: Ok
A38: INFINITO SC687 5 50X100ML BOT IN | B38: 0 | C38: 10 | D38: 0 | E38: 4.2 | F38: 0 | G38: 0 | H38: 0 | I38: 0 | J38: 5.8 | K38: 0 | L38: 10 | M38: 0 | N38: 4.2 | O38: 0 | P38: 0 | Q38: 0 | R38: 0 | S38: 5.8 | T38: 0 | U38: 0 | V38: 0 | W38: 0 | X38: 0 | Y38: 0 | Z38: 0 | AA38: 0 | AB38: 0 | AC38: Ok
A39: JUMP WG80 160X(10X2GR) BAG IN | B39: 1.51 | C39: 20.8 | D39: 0 | E39: 18.13 | F39: 0 | G39: 0 | H39: 0 | I39: 0 | J39: 4.18 | K39: 1.508 | L39: 20.8 | M39: 0 | N39: 18.132 | O39: 0 | P39: 0 | Q39: 0 | R39: 0 | S39: 4.176 | T39: 0.002 | U39: 0 | V39: 0 | W39: -0.002 | X39: 0 | Y39: 0 | Z39: 0 | AA39: 0 | AB39: 0.004 | AC39: Issue
A40: JUMP WG80 80X40GR BAG IN | B40: 0 | C40: 3.2 | D40: 0 | E40: 2.96 | F40: 0 | G40: 0 | H40: 0 | I40: 0 | J40: 0.24 | K40: 0 | L40: 3.2 | M40: 0 | N40: 2.96 | O40: 0 | P40: 0 | Q40: 0 | R40: 0 | S40: 0.24 | T40: 0 | U40: 0 | V40: 0 | W40: 0 | X40: 0 | Y40: 0 | Z40: 0 | AA40: 0 | AB40: 0 | AC40: Ok
A41: LARVIN (T) WP75 20X250GR BAG IN | B41: 0 | C41: 65 | D41: 0 | E41: 55.25 | F41: 0 | G41: 0 | H41: 0 | I41: 0 | J41: 9.75 | K41: 0 | L41: 65 | M41: 0 | N41: 55.25 | O41: 0 | P41: 0 | Q41: 0 | R41: 0 | S41: 9.75 | T41: 0 | U41: 0 | V41: 0 | W41: 0 | X41: 0 | Y41: 0 | Z41: 0 | AA41: 0 | AB41: 0 | AC41: Ok
A42: LARVIN (T) WP75 20X500GR BAG IN | B42: 0 | C42: 32.5 | D42: 0 | E42: 32.5 | F42: 0 | G42: 0 | H42: 0 | I42: 0 | J42: 0 | K42: 0 | L42: 32.5 | M42: 0 | N42: 32.5 | O42: 0 | P42: 0 | Q42: 0 | R42: 0 | S42: 0 | T42: 0 | U42: 0 | V42: 0 | W42: 0 | X42: 0 | Y42: 0 | Z42: 0 | AA42: 0 | AB42: 0 | AC42: Ok
A43: LARVIN (T) WP75 40X100GR BAG IN | B43: 0 | C43: 20 | D43: 0 | E43: 20 | F43: 0 | G43: 0 | H43: 0 | I43: 0 | J43: 0 | K43: 0 | L43: 20 | M43: 0 | N43: 20 | O43: 0 | P43: 0 | Q43: 0 | R43: 0 | S43: 0 | T43: 0 | U43: 0 | V43: 0 | W43: 0 | X43: 0 | Y43: 0 | Z43: 0 | AA43: 0 | AB43: 0 | AC43: Ok
A44: LAUDIS SC630 10X57.5ML BOT IN | B44: 0 | C44: 11.5 | D44: 0 | E44: 8.63 | F44: 0 | G44: 0 | H44: 0 | I44: 0 | J44: 2.87 | K44: 0 | L44: 11.5 | M44: 0 | N44: 8.625 | O44: 0 | P44: 0 | Q44: 0 | R44: 0 | S44: 2.875 | T44: 0 | U44: 0 | V44: 0 | W44: 0.005 | X44: 0 | Y44: 0 | Z44: 0 | AA44: 0 | AB44: -0.005 | AC44: Issue
A45: LAUDIS SC630 8X115ML BOT IN | B45: 0 | C45: 5.52 | D45: 1.84 | E45: 2.3 | F45: 0 | G45: 0 | H45: 0 | I45: 0 | J45: 1.38 | K45: 0 | L45: 3.68 | M45: 0 | N45: 2.3 | O45: 0 | P45: 0 | Q45: 0 | R45: 0 | S45: 1.38 | T45: 0 | U45: 1.84 | V45: 1.84 | W45: 0 | X45: 0 | Y45: 0 | Z45: 0 | AA45: 0 | AB45: 0 | AC45: Ok
A46: LESENTA WG80 100X40GR BAG IN | B46: 0 | C46: 4 | D46: 0 | E46: 2.68 | F46: 0 | G46: 0 | H46: 0 | I46: 0 | J46: 1.32 | K46: 0 | L46: 4 | M46: 0 | N46: 2.68 | O46: 0 | P46: 0 | Q46: 0 | R46: 0 | S46: 1.32 | T46: 0 | U46: 0 | V46: 0 | W46: 0 | X46: 0 | Y46: 0 | Z46: 0 | AA46: 0 | AB46: 0 | AC46: Ok
A47: LUNA EXPERIENCE SC400 40X250ML BOT IN | B47: 0 | C47: 40 | D47: 0 | E47: 18.5 | F47: 0 | G47: 0 | H47: 0 | I47: 0 | J47: 21.5 | K47: 0 | L47: 40 | M47: 0 | N47: 18.5 | O47: 0 | P47: 0 | Q47: 0 | R47: 0 | S47: 21.5 | T47: 0 | U47: 0 | V47: 0 | W47: 0 | X47: 0 | Y47: 0 | Z47: 0 | AA47: 0 | AB47: 0 | AC47: Ok
A48: LUNA EXPERIENCE SC400 50X100ML BOT IN | B48: 0 | C48: 45 | D48: 0 | E48: 37.5 | F48: 0.9 | G48: 0 | H48: 0 | I48: 0 | J48: 8.4 | K48: 0 | L48: 45 | M48: 0 | N48: 36.6 | O48: 0 | P48: 0 | Q48: 0 | R48: 0 | S48: 8.4 | T48: 0 | U48: 0 | V48: 0 | W48: 0.9 | X48: 0.9 | Y48: 0 | Z48: 0 | AA48: 0 | AB48: 0 | AC48: Ok
A49: MOVENTO ENERGY SC240 40X250ML BOT IN | B49: 2.5 | C49: 0 | D49: 0 | E49: 2.5 | F49: 0 | G49: 0 | H49: 0 | I49: 0 | J49: 0 | K49: 2.5 | L49: 0 | M49: 0 | N49: 2.5 | O49: 0 | P49: 0 | Q49: 0 | R49: 0 | S49: 0 | T49: 0 | U49: 0 | V49: 0 | W49: 0 | X49: 0 | Y49: 0 | Z49: 0 | AA49: 0 | AB49: 0 | AC49: Ok
A50: MOVENTO ENERGY SC240 50X100ML BOT IN | B50: 8.7 | C50: 0 | D50: 0 | E50: 8.7 | F50: 0 | G50: 0 | H50: 0 | I50: 0 | J50: 0 | K50: 8.7 | L50: 0 | M50: 0 | N50: 8.7 | O50: 0 | P50: 0 | Q50: 0 | R50: 0 | S50: 0 | T50: 0 | U50: 0 | V50: 0 | W50: 0 | X50: 0 | Y50: 0 | Z50: 0 | AA50: 0 | AB50: 0 | AC50: Ok
A51: NATIVO WG75 100X50GR BAG IN | B51: 5 | C51: 15 | D51: 0 | E51: 12.15 | F51: 0 | G51: 0 | H51: 0 | I51: 0 | J51: 7.85 | K51: 5 | L51: 15 | M51: 0 | N51: 12.15 | O51: 0 | P51: 0 | Q51: 0 | R51: 0 | S51: 7.85 | T51: 0 | U51: 0 | V51: 0 | W51: 0 | X51: 0 | Y51: 0 | Z51: 0 | AA51: 0 | AB51: 0 | AC51: Ok
A52: NATIVO WG75 10X1KG BAG IN | B52: 0 | C52: 20 | D52: 0 | E52: 20 | F52: 0 | G52: 0 | H52: 0 | I52: 0 | J52: 0 | K52: 0 | L52: 20 | M52: 0 | N52: 20 | O52: 0 | P52: 0 | Q52: 0 | R52: 0 | S52: 0 | T52: 0 | U52: 0 | V52: 0 | W52: 0 | X52: 0 | Y52: 0 | Z52: 0 | AA52: 0 | AB52: 0 | AC52: Ok
A53: NATIVO WG75 20X500GR BAG IN | B53: 0 | C53: 10 | D53: 0 | E53: 10 | F53: 0 | G53: 0 | H53: 0 | I53: 0 | J53: 0 | K53: 0 | L53: 10 | M53: 0 | N53: 10 | O53: 0 | P53: 0 | Q53: 0 | R53: 0 | S53: 0 | T53: 0 | U53: 0 | V53: 0 | W53: 0 | X53: 0 | Y53: 0 | Z53: 0 | AA53: 0 | AB53: 0 | AC53: Ok
A54: NATIVO WG75 40X250GR BAG IN | B54: 2.25 | C54: 36 | D54: 0 | E54: 29.5 | F54: 0 | G54: 0 | H54: 0 | I54: 0 | J54: 8.75 | K54: 2.25 | L54: 36 | M54: 0 | N54: 29.5 | O54: 0 | P54: 0 | Q54: 0 | R54: 0 | S54: 8.75 | T54: 0 | U54: 0 | V54: 0 | W54: 0 | X54: 0 | Y54: 0 | Z54: 0 | AA54: 0 | AB54: 0 | AC54: Ok
A55: NATIVO WG75 50X100GR BAG IN | B55: 3.8 | C55: 35 | D55: 0 | E55: 25.9 | F55: 0 | G55: 0 | H55: 0 | I55: 0 | J55: 12.9 | K55: 3.8 | L55: 35 | M55: 0 | N55: 25.9 | O55: 0 | P55: 0 | Q55: 0 | R55: 0 | S55: 12.9 | T55: 0 | U55: 0 | V55: 0 | W55: 0 | X55: 0 | Y55: 0 | Z55: 0 | AA55: 0 | AB55: 0 | AC55: Ok
A56: OBERON (T) SC240 40X200ML BOT IN | B56: 0 | C56: 152 | D56: 0 | E56: 150.2 | F56: 0 | G56: 0 | H56: 0 | I56: 0 | J56: 1.8 | K56: 0 | L56: 152 | M56: 0 | N56: 150.2 | O56: 0 | P56: 0 | Q56: 0 | R56: 0 | S56: 1.8 | T56: 0 | U56: 0 | V56: 0 | W56: 0 | X56: 0 | Y56: 0 | Z56: 0 | AA56: 0 | AB56: 0 | AC56: Ok
A57: OBERON (T) SC240 50X100ML BOT IN | B57: 0.2 | C57: 139.9 | D57: 0 | E57: 131.4 | F57: 0 | G57: 0 | H57: 0 | I57: 0 | J57: 8.7 | K57: 0.2 | L57: 139.9 | M57: 0 | N57: 131.4 | O57: 0 | P57: 0 | Q57: 0 | R57: 0 | S57: 8.7 | T57: 0 | U57: 0 | V57: 0 | W57: 0 | X57: 0 | Y57: 0 | Z57: 0 | AA57: 0 | AB57: 0 | AC57: Ok
A58: PLANOFIX SL4 5 50X100ML BOT IN | B58: 3.4 | C58: 125 | D58: 0 | E58: 95.7 | F58: 0 | G58: 0 | H58: 0 | I58: 0 | J58: 32.7 | K58: 3.4 | L58: 125 | M58: 0 | N58: 95.7 | O58: 0 | P58: 0 | Q58: 0 | R58: 0 | S58: 32.7 | T58: 0 | U58: 0 | V58: 0 | W58: 0 | X58: 0 | Y58: 0 | Z58: 0 | AA58: 0 | AB58: 0 | AC58: Ok
A59: PROFILER WG71 11 20X250GR BAG IN | B59: 0 | C59: 5 | D59: 0 | E59: 5 | F59: 0 | G59: 0 | H59: 0 | I59: 0 | J59: 0 | K59: 0 | L59: 5 | M59: 0 | N59: 5 | O59: 0 | P59: 0 | Q59: 0 | R59: 0 | S59: 0 | T59: 0 | U59: 0 | V59: 0 | W59: 0 | X59: 0 | Y59: 0 | Z59: 0 | AA59: 0 | AB59: 0 | AC59: Ok
A60: RAFT EC60 40X250ML BOT IN | B60: 0 | C60: 0 | D60: 0 | E60: 0 | F60: 0 | G60: 0 | H60: 0 | I60: 0 | J60: 0 | K60: 0 | L60: 0 | M60: 0 | N60: 0 | O60: 0 | P60: 0 | Q60: 0 | R60: 0 | S60: 0 | T60: 0 | U60: 0 | V60: 0 | W60: 0 | X60: 0 | Y60: 0 | Z60: 0 | AA60: 0 | AB60: 0 | AC60: Ok
A61: REGENT (T) SC50 20X250ML BOT IN | B61: 0 | C61: 745 | D61: 0 | E61: 695.75 | F61: 0 | G61: 0 | H61: 0 | I61: 0 | J61: 49.25 | K61: 0 | L61: 745 | M61: 0 | N61: 695.75 | O61: 0 | P61: 0 | Q61: 0 | R61: 0 | S61: 49.25 | T61: 0 | U61: 0 | V61: 0 | W61: 0 | X61: 0 | Y61: 0 | Z61: 0 | AA61: 0 | AB61: 0 | AC61: Ok
A62: REGENT (T) SC50 20X500ML BOT IN | B62: 14.5 | C62: 550 | D62: 0 | E62: 564.5 | F62: 0 | G62: 0 | H62: 0 | I62: 0 | J62: 0 | K62: 14.5 | L62: 550 | M62: 0 | N62: 564.5 | O62: 0 | P62: 0 | Q62: 0 | R62: 0 | S62: 0 | T62: 0 | U62: 0 | V62: 0 | W62: 0 | X62: 0 | Y62: 0 | Z62: 0 | AA62: 0 | AB62: 0 | AC62: Ok
A63: REGENT (T) SC50 50X100ML BOT IN | B63: 52 | C63: 250 | D63: 0 | E63: 292.4 | F63: 0 | G63: 0 | H63: 0 | I63: 0 | J63: 9.6 | K63: 52 | L63: 250 | M63: 0 | N63: 292.4 | O63: 0 | P63: 0 | Q63: 0 | R63: 0 | S63: 9.6 | T63: 0 | U63: 0 | V63: 0 | W63: 0 | X63: 0 | Y63: 0 | Z63: 0 | AA63: 0 | AB63: 0 | AC63: Ok
A64: REGENT GR0 3 20X1KG BAG IN | B64: 80 | C64: 4760 | D64: 0 | E64: 4815 | F64: 0 | G64: 0 | H64: 0 | I64: 0 | J64: 25 | K64: 80 | L64: 4760 | M64: 0 | N64: 4815 | O64: 0 | P64: 0 | Q64: 0 | R64: 0 | S64: 25 | T64: 0 | U64: 0 | V64: 0 | W64: 0 | X64: 0 | Y64: 0 | Z64: 0 | AA64: 0 | AB64: 0 | AC64: Ok
A65: REGENT GR0 3 4X5KG BAG IN | B65: 90 | C65: 9220 | D65: 0 | E65: 9270 | F65: 30 | G65: 0 | H65: 0 | I65: 0 | J65: 70 | K65: 90 | L65: 9220 | M65: 0 | N65: 9240 | O65: 0 | P65: 0 | Q65: 0 | R65: 0 | S65: 70 | T65: 0 | U65: 0 | V65: 0 | W65: 30 | X65: 30 | Y65: 0 | Z65: 0 | AA65: 0 | AB65: 0 | AC65: Ok
A66: SECTIN WG60 50X100GR BAG IN | B66: 2.2 | C66: 0 | D66: 0 | E66: 2.2 | F66: 0 | G66: 0 | H66: 0 | I66: 0 | J66: 0 | K66: 2.2 | L66: 0 | M66: 0 | N66: 2.2 | O66: 0 | P66: 0 | Q66: 0 | R66: 0 | S66: 0 | T66: 0 | U66: 0 | V66: 0 | W66: 0 | X66: 0 | Y66: 0 | Z66: 0 | AA66: 0 | AB66: 0 | AC66: Ok
A67: SIVANTO PRIME SL200 50X100ML BOT IN | B67: 5 | C67: 0 | D67: 5 | E67: 0 | F67: 0 | G67: 0 | H67: 0 | I67: 0 | J67: 0 | K67: 5 | L67: -5 | M67: 0 | N67: 0 | O67: 0 | P67: 0 | Q67: 0 | R67: 0 | S67: 0 | T67: 0 | U67: 5 | V67: 5 | W67: 0 | X67: 0 | Y67: 0 | Z67: 0 | AA67: 0 | AB67: 0 | AC67: Ok
A68: SOLOMON OD300 10X1L BOT IN | B68: 0 | C68: 20 | D68: 0 | E68: 20 | F68: 0 | G68: 0 | H68: 0 | I68: 0 | J68: 0 | K68: 0 | L68: 20 | M68: 0 | N68: 20 | O68: 0 | P68: 0 | Q68: 0 | R68: 0 | S68: 0 | T68: 0 | U68: 0 | V68: 0 | W68: 0 | X68: 0 | Y68: 0 | Z68: 0 | AA68: 0 | AB68: 0 | AC68: Ok
A69: SOLOMON OD300 20X500ML BOT IN | B69: 0 | C69: 30 | D69: 0 | E69: 30 | F69: 0 | G69: 0 | H69: 0 | I69: 0 | J69: 0 | K69: 0 | L69: 30 | M69: 0 | N69: 30 | O69: 0 | P69: 0 | Q69: 0 | R69: 0 | S69: 0 | T69: 0 | U69: 0 | V69: 0 | W69: 0 | X69: 0 | Y69: 0 | Z69: 0 | AA69: 0 | AB69: 0 | AC69: Ok
A70: SOLOMON OD300 40X250ML BOT IN | B70: 2.25 | C70: 130 | D70: 0 | E70: 112.75 | F70: 0 | G70: 0 | H70: 0 | I70: 0 | J70: 19.5 | K70: 2.25 | L70: 130 | M70: 0 | N70: 112.75 | O70: 0 | P70: 0 | Q70: 0 | R70: 0 | S70: 19.5 | T70: 0 | U70: 0 | V70: 0 | W70: 0 | X70: 0 | Y70: 0 | Z70: 0 | AA70: 0 | AB70: 0 | AC70: Ok
A71: SOLOMON OD300 50X100ML BOT IN | B71: 0 | C71: 95 | D71: 0 | E71: 91.1 | F71: 0 | G71: 0 | H71: 0 | I71: 0 | J71: 3.9 | K71: 0 | L71: 95 | M71: 0 | N71: 91.1 | O71: 0 | P71: 0 | Q71: 0 | R71: 0 | S71: 3.9 | T71: 0 | U71: 0 | V71: 0 | W71: 0 | X71: 0 | Y71: 0 | Z71: 0 | AA71: 0 | AB71: 0 | AC71: Ok
A72: VELUM PRIME SC400 20X500ML BOT IN | B72: 6 | C72: 17 | D72: 0 | E72: 16.5 | F72: 0 | G72: 0 | H72: 0 | I72: 0 | J72: 6.5 | K72: 6 | L72: 17 | M72: 0 | N72: 16.5 | O72: 0 | P72: 0 | Q72: 0 | R72: 0 | S72: 6.5 | T72: 0 | U72: 0 | V72: 0 | W72: 0 | X72: 0 | Y72: 0 | Z72: 0 | AA72: 0 | AB72: 0 | AC72: Ok
A73: VELUM PRIME SC400 40X250ML BOT IN | B73: 8.5 | C73: 25.25 | D73: 0 | E73: 33.75 | F73: 0 | G73: 0 | H73: 0 | I73: 0 | J73: 0 | K73: 8.5 | L73: 25.25 | M73: 0 | N73: 33.75 | O73: 0 | P73: 0 | Q73: 0 | R73: 0 | S73: 0 | T73: 0 | U73: 0 | V73: 0 | W73: 0 | X73: 0 | Y73: 0 | Z73: 0 | AA73: 0 | AB73: 0 | AC73: Ok
A74: WHIPSUPER (T) EC90 40X250ML BOT IN | B74: 0 | C74: 0 | D74: 0 | E74: 0 | F74: 0 | G74: 0 | H74: 0 | I74: 0 | J74: 0 | K74: 0 | L74: 0 | M74: 0 | N74: 0 | O74: 0 | P74: 0 | Q74: 0 | R74: 0 | S74: 0 | T74: 0 | U74: 0 | V74: 0 | W74: 0 | X74: 0 | Y74: 0 | Z74: 0 | AA74: 0 | AB74: 0 | AC74: Ok
A75: SECTIN WG60 20X600GR BAG IN | B75: 0 | C75: 12 | D75: 0 | E75: 12 | F75: 0 | G75: 0 | H75: 0 | I75: 0 | J75: 0 | K75: 0 | L75: 12 | M75: 0 | N75: 12 | O75: 0 | P75: 0 | Q75: 0 | R75: 0 | S75: 0 | T75: 0 | U75: 0 | V75: 0 | W75: 0 | X75: 0 | Y75: 0 | Z75: 0 | AA75: 0 | AB75: 0 | AC75: Ok
A76: BUONOS SC430 40X250ML BOT IN | B76: 0 | C76: 10 | D76: 0 | E76: 5 | F76: 0 | G76: 0 | H76: 0 | I76: 0 | J76: 5 | K76: 0 | L76: 10 | M76: 0 | N76: 5 | O76: 0 | P76: 0 | Q76: 0 | R76: 0 | S76: 5 | T76: 0 | U76: 0 | V76: 0 | W76: 0 | X76: 0 | Y76: 0 | Z76: 0 | AA76: 0 | AB76: 0 | AC76: Ok
A77: REGENT (T) SC50 10X1L BOT IN | B77: 60 | C77: 180 | D77: 0 | E77: 227 | F77: 0 | G77: 0 | H77: 0 | I77: 0 | J77: 13 | K77: 60 | L77: 180 | M77: 0 | N77: 227 | O77: 0 | P77: 0 | Q77: 0 | R77: 0 | S77: 13 | T77: 0 | U77: 0 | V77: 0 | W77: 0 | X77: 0 | Y77: 0 | Z77: 0 | AA77: 0 | AB77: 0 | AC77: Ok
A78: ADMIRE (T) WG70 60X75GR BOT IN | B78: 0 | C78: 0 | D78: 0 | E78: 0 | F78: 0 | G78: 0 | H78: 0 | I78: 0 | J78: 0 | K78: 0 | L78: 0 | M78: 0 | N78: 0 | O78: 0 | P78: 0 | Q78: 0 | R78: 0 | S78: 0 | T78: 0 | U78: 0 | V78: 0 | W78: 0 | X78: 0 | Y78: 0 | Z78: 0 | AA78: 0 | AB78: 0 | AC78: Ok
A79: ADUE WG70 6X100G BOT IN | B79: 0 | C79: 0 | D79: 0 | E79: 0 | F79: 0 | G79: 0 | H79: 0 | I79: 0 | J79: 0 | K79: 0 | L79: 0 | M79: 0 | N79: 0 | O79: 0 | P79: 0 | Q79: 0 | R79: 0 | S79: 0 | T79: 0 | U79: 0 | V79: 0 | W79: 0 | X79: 0 | Y79: 0 | Z79: 0 | AA79: 0 | AB79: 0 | AC79: Ok
A80: ALANTO (T) SC240 50X100ML BOT IN | B80: 0 | C80: 0 | D80: 0 | E80: 0 | F80: 0 | G80: 0 | H80: 0 | I80: 0 | J80: 0 | K80: 0 | L80: 0 | M80: 0 | N80: 0 | O80: 0 | P80: 0 | Q80: 0 | R80: 0 | S80: 0 | T80: 0 | U80: 0 | V80: 0 | W80: 0 | X80: 0 | Y80: 0 | Z80: 0 | AA80: 0 | AB80: 0 | AC80: Ok
A81: ALIETTE WP80 10X1KG BAG IN | B81: 0 | C81: 0 | D81: 0 | E81: 0 | F81: 0 | G81: 0 | H81: 0 | I81: 0 | J81: 0 | K81: 0 | L81: 0 | M81: 0 | N81: 0 | O81: 0 | P81: 0 | Q81: 0 | R81: 0 | S81: 0 | T81: 0 | U81: 0 | V81: 0 | W81: 0 | X81: 0 | Y81: 0 | Z81: 0 | AA81: 0 | AB81: 0 | AC81: Ok
A82: ATLANTIS KL3 6 15X160GR BOT IN | B82: 0 | C82: 0 | D82: 0 | E82: 0 | F82: 0 | G82: 0 | H82: 0 | I82: 0 | J82: 0 | K82: 0 | L82: 0 | M82: 0 | N82: 0 | O82: 0 | P82: 0 | Q82: 0 | R82: 0 | S82: 0 | T82: 0 | U82: 0 | V82: 0 | W82: 0 | X82: 0 | Y82: 0 | Z82: 0 | AA82: 0 | AB82: 0 | AC82: Ok
A83: BELT EXPERT SC480 50X100ML BOT IN | B83: 0 | C83: 0 | D83: 0 | E83: 0 | F83: 0 | G83: 0 | H83: 0 | I83: 0 | J83: 0 | K83: 0 | L83: 0 | M83: 0 | N83: 0 | O83: 0 | P83: 0 | Q83: 0 | R83: 0 | S83: 0 | T83: 0 | U83: 0 | V83: 0 | W83: 0 | X83: 0 | Y83: 0 | Z83: 0 | AA83: 0 | AB83: 0 | AC83: Ok
A84: CONFIDOR (T) SL200 100X50ML BOT IN | B84: 0 | C84: 0 | D84: 0 | E84: 0 | F84: 0 | G84: 0 | H84: 0 | I84: 0 | J84: 0 | K84: 0 | L84: 0 | M84: 0 | N84: 0 | O84: 0 | P84: 0 | Q84: 0 | R84: 0 | S84: 0 | T84: 0 | U84: 0 | V84: 0 | W84: 0 | X84: 0 | Y84: 0 | Z84: 0 | AA84: 0 | AB84: 0 | AC84: Ok
A85: CONFIDOR (T) SL200 20X250ML BOT IN | B85: 0 | C85: 0 | D85: 0 | E85: 0 | F85: 0 | G85: 0 | H85: 0 | I85: 0 | J85: 0 | K85: 0 | L85: 0 | M85: 0 | N85: 0 | O85: 0 | P85: 0 | Q85: 0 | R85: 0 | S85: 0 | T85: 0 | U85: 0 | V85: 0 | W85: 0 | X85: 0 | Y85: 0 | Z85: 0 | AA85: 0 | AB85: 0 | AC85: Ok
A86: CONFIDOR (T) SL200 20X500ML BOT IN | B86: 0 | C86: 0 | D86: 0 | E86: 0 | F86: 0 | G86: 0 | H86: 0 | I86: 0 | J86: 0 | K86: 0 | L86: 0 | M86: 0 | N86: 0 | O86: 0 | P86: 0 | Q86: 0 | R86: 0 | S86: 0 | T86: 0 | U86: 0 | V86: 0 | W86: 0 | X86: 0 | Y86: 0 | Z86: 0 | AA86: 0 | AB86: 0 | AC86: Ok
A87: CONFIDOR (T) SL200 50X100ML BOT IN | B87: 0 | C87: 0 | D87: 0 | E87: 0 | F87: 0 | G87: 0 | H87: 0 | I87: 0 | J87: 0 | K87: 0 | L87: 0 | M87: 0 | N87: 0 | O87: 0 | P87: 0 | Q87: 0 | R87: 0 | S87: 0 | T87: 0 | U87: 0 | V87: 0 | W87: 0 | X87: 0 | Y87: 0 | Z87: 0 | AA87: 0 | AB87: 0 | AC87: Ok
A88: CONFIDOR SUPER (T) SC350 20X250ML BOT IN | B88: 0 | C88: 0 | D88: 0 | E88: 0 | F88: 0 | G88: 0 | H88: 0 | I88: 0 | J88: 0 | K88: 0 | L88: 0 | M88: 0 | N88: 0 | O88: 0 | P88: 0 | Q88: 0 | R88: 0 | S88: 0 | T88: 0 | U88: 0 | V88: 0 | W88: 0 | X88: 0 | Y88: 0 | Z88: 0 | AA88: 0 | AB88: 0 | AC88: Ok
A89: CONFIDOR SUPER (T) SC350 50X100ML BOT IN | B89: 0 | C89: 0 | D89: 0 | E89: 0 | F89: 0 | G89: 0 | H89: 0 | I89: 0 | J89: 0 | K89: 0 | L89: 0 | M89: 0 | N89: 0 | O89: 0 | P89: 0 | Q89: 0 | R89: 0 | S89: 0 | T89: 0 | U89: 0 | V89: 0 | W89: 0 | X89: 0 | Y89: 0 | Z89: 0 | AA89: 0 | AB89: 0 | AC89: Ok
A90: CONFIDOR SUPER (T) SC350 50X50ML BOT IN | B90: 0 | C90: 0 | D90: 0 | E90: 0 | F90: 0 | G90: 0 | H90: 0 | I90: 0 | J90: 0 | K90: 0 | L90: 0 | M90: 0 | N90: 0 | O90: 0 | P90: 0 | Q90: 0 | R90: 0 | S90: 0 | T90: 0 | U90: 0 | V90: 0 | W90: 0 | X90: 0 | Y90: 0 | Z90: 0 | AA90: 0 | AB90: 0 | AC90: Ok
A91: DECIS EC 28 50X100ML BOT IN | B91: 0 | C91: 0 | D91: 0 | E91: 0 | F91: 0 | G91: 0 | H91: 0 | I91: 0 | J91: 0 | K91: 0 | L91: 0 | M91: 0 | N91: 0 | O91: 0 | P91: 0 | Q91: 0 | R91: 0 | S91: 0 | T91: 0 | U91: 0 | V91: 0 | W91: 0 | X91: 0 | Y91: 0 | Z91: 0 | AA91: 0 | AB91: 0 | AC91: Ok
A92: DECIS EC101-2 40X250ML BOT IN | B92: 0 | C92: 0 | D92: 0 | E92: 0 | F92: 0 | G92: 0 | H92: 0 | I92: 0 | J92: 0 | K92: 0 | L92: 0 | M92: 0 | N92: 0 | O92: 0 | P92: 0 | Q92: 0 | R92: 0 | S92: 0 | T92: 0 | U92: 0 | V92: 0 | W92: 0 | X92: 0 | Y92: 0 | Z92: 0 | AA92: 0 | AB92: 0 | AC92: Ok
A93: DECIS EC101-2 50X100ML BOX IN | B93: 0 | C93: 0 | D93: 0 | E93: 0 | F93: 0 | G93: 0 | H93: 0 | I93: 0 | J93: 0 | K93: 0 | L93: 0 | M93: 0 | N93: 0 | O93: 0 | P93: 0 | Q93: 0 | R93: 0 | S93: 0 | T93: 0 | U93: 0 | V93: 0 | W93: 0 | X93: 0 | Y93: 0 | Z93: 0 | AA93: 0 | AB93: 0 | AC93: Ok
A94: DECIS EC24,6 2X5L BOT IN | B94: 0 | C94: 0 | D94: 0 | E94: 0 | F94: 0 | G94: 0 | H94: 0 | I94: 0 | J94: 0 | K94: 0 | L94: 0 | M94: 0 | N94: 0 | O94: 0 | P94: 0 | Q94: 0 | R94: 0 | S94: 0 | T94: 0 | U94: 0 | V94: 0 | W94: 0 | X94: 0 | Y94: 0 | Z94: 0 | AA94: 0 | AB94: 0 | AC94: Ok
A95: FITREST SG5 40X100GR BOT IN | B95: 0 | C95: 0 | D95: 0 | E95: 0 | F95: 0 | G95: 0 | H95: 0 | I95: 0 | J95: 0 | K95: 0 | L95: 0 | M95: 0 | N95: 0 | O95: 0 | P95: 0 | Q95: 0 | R95: 0 | S95: 0 | T95: 0 | U95: 0 | V95: 0 | W95: 0 | X95: 0 | Y95: 0 | Z95: 0 | AA95: 0 | AB95: 0 | AC95: Ok
A96: LAUDIS SC630 3X230ML BOT IN | B96: 0 | C96: 0 | D96: 0 | E96: 0 | F96: 0 | G96: 0 | H96: 0 | I96: 0 | J96: 0 | K96: 0 | L96: 0 | M96: 0 | N96: 0 | O96: 0 | P96: 0 | Q96: 0 | R96: 0 | S96: 0 | T96: 0 | U96: 0 | V96: 0 | W96: 0 | X96: 0 | Y96: 0 | Z96: 0 | AA96: 0 | AB96: 0 | AC96: Ok
A97: MELODY DUO WP66 8 10X400GR BAG IN | B97: 0 | C97: 0 | D97: 0 | E97: 0 | F97: 0 | G97: 0 | H97: 0 | I97: 0 | J97: 0 | K97: 0 | L97: 0 | M97: 0 | N97: 0 | O97: 0 | P97: 0 | Q97: 0 | R97: 0 | S97: 0 | T97: 0 | U97: 0 | V97: 0 | W97: 0 | X97: 0 | Y97: 0 | Z97: 0 | AA97: 0 | AB97: 0 | AC97: Ok
A98: MELODY DUO WP66 8 50X100GR BAG IN | B98: 0 | C98: 0 | D98: 0 | E98: 0 | F98: 0 | G98: 0 | H98: 0 | I98: 0 | J98: 0 | K98: 0 | L98: 0 | M98: 0 | N98: 0 | O98: 0 | P98: 0 | Q98: 0 | R98: 0 | S98: 0 | T98: 0 | U98: 0 | V98: 0 | W98: 0 | X98: 0 | Y98: 0 | Z98: 0 | AA98: 0 | AB98: 0 | AC98: Ok
A99: OBERON (T) SC240 100X50ML BOT IN | B99: 0 | C99: 0 | D99: 0 | E99: 0 | F99: 0 | G99: 0 | H99: 0 | I99: 0 | J99: 0 | K99: 0 | L99: 0 | M99: 0 | N99: 0 | O99: 0 | P99: 0 | Q99: 0 | R99: 0 | S99: 0 | T99: 0 | U99: 0 | V99: 0 | W99: 0 | X99: 0 | Y99: 0 | Z99: 0 | AA99: 0 | AB99: 0 | AC99: Ok
A100: RAFT EC60 10X1L BOT IN | B100: 0 | C100: 0 | D100: 0 | E100: 0 | F100: 0 | G100: 0 | H100: 0 | I100: 0 | J100: 0 | K100: 0 | L100: 0 | M100: 0 | N100: 0 | O100: 0 | P100: 0 | Q100: 0 | R100: 0 | S100: 0 | T100: 0 | U100: 0 | V100: 0 | W100: 0 | X100: 0 | Y100: 0 | Z100: 0 | AA100: 0 | AB100: 0 | AC100: Ok
A101: RAFT EC60 20X500ML BOT IN | B101: 0 | C101: 0 | D101: 0 | E101: 0 | F101: 0 | G101: 0 | H101: 0 | I101: 0 | J101: 0 | K101: 0 | L101: 0 | M101: 0 | N101: 0 | O101: 0 | P101: 0 | Q101: 0 | R101: 0 | S101: 0 | T101: 0 | U101: 0 | V101: 0 | W101: 0 | X101: 0 | Y101: 0 | Z101: 0 | AA101: 0 | AB101: 0 | AC101: Ok
A102: RAXIL (T) DS2 5X(25X40GR) BAG IN | B102: 0 | C102: 0 | D102: 0 | E102: 0 | F102: 0 | G102: 0 | H102: 0 | I102: 0 | J102: 0 | K102: 0 | L102: 0 | M102: 0 | N102: 0 | O102: 0 | P102: 0 | Q102: 0 | R102: 0 | S102: 0 | T102: 0 | U102: 0 | V102: 0 | W102: 0 | X102: 0 | Y102: 0 | Z102: 0 | AA102: 0 | AB102: 0 | AC102: Ok
A103: RAXIL EASY FS60 100X50ML BOT IN | B103: 0 | C103: 0 | D103: 0 | E103: 0 | F103: 0 | G103: 0 | H103: 0 | I103: 0 | J103: 0 | K103: 0 | L103: 0 | M103: 0 | N103: 0 | O103: 0 | P103: 0 | Q103: 0 | R103: 0 | S103: 0 | T103: 0 | U103: 0 | V103: 0 | W103: 0 | X103: 0 | Y103: 0 | Z103: 0 | AA103: 0 | AB103: 0 | AC103: Ok
A104: SENCOR WP70 60X100GR BAG IN | B104: 0 | C104: 0 | D104: 0 | E104: 0 | F104: 0 | G104: 0 | H104: 0 | I104: 0 | J104: 0 | K104: 0 | L104: 0 | M104: 0 | N104: 0 | O104: 0 | P104: 0 | Q104: 0 | R104: 0 | S104: 0 | T104: 0 | U104: 0 | V104: 0 | W104: 0 | X104: 0 | Y104: 0 | Z104: 0 | AA104: 0 | AB104: 0 | AC104: Ok
A105: SPINTOR SC495 20X75ML BOT IN | B105: 0 | C105: 0 | D105: 0 | E105: 0 | F105: 0 | G105: 0 | H105: 0 | I105: 0 | J105: 0 | K105: 0 | L105: 0 | M105: 0 | N105: 0 | O105: 0 | P105: 0 | Q105: 0 | R105: 0 | S105: 0 | T105: 0 | U105: 0 | V105: 0 | W105: 0 | X105: 0 | Y105: 0 | Z105: 0 | AA105: 0 | AB105: 0 | AC105: Ok
A106: WHIPSUPER (T) EC90 10X1L BOT IN | B106: 0 | C106: 0 | D106: 0 | E106: 0 | F106: 0 | G106: 0 | H106: 0 | I106: 0 | J106: 0 | K106: 0 | L106: 0 | M106: 0 | N106: 0 | O106: 0 | P106: 0 | Q106: 0 | R106: 0 | S106: 0 | T106: 0 | U106: 0 | V106: 0 | W106: 0 | X106: 0 | Y106: 0 | Z106: 0 | AA106: 0 | AB106: 0 | AC106: Ok
A107: WHIPSUPER (T) EC90 20X500ML BOT IN | B107: 0 | C107: 0 | D107: 0 | E107: 0 | F107: 0 | G107: 0 | H107: 0 | I107: 0 | J107: 0 | K107: 0 | L107: 0 | M107: 0 | N107: 0 | O107: 0 | P107: 0 | Q107: 0 | R107: 0 | S107: 0 | T107: 0 | U107: 0 | V107: 0 | W107: 0 | X107: 0 | Y107: 0 | Z107: 0 | AA107: 0 | AB107: 0 | AC107: Ok
A108: WHIPSUPER (T) EC90 50X100ML BOT IN | B108: 0 | C108: 0 | D108: 0 | E108: 0 | F108: 0 | G108: 0 | H108: 0 | I108: 0 | J108: 0 | K108: 0 | L108: 0 | M108: 0 | N108: 0 | O108: 0 | P108: 0 | Q108: 0 | R108: 0 | S108: 0 | T108: 0 | U108: 0 | V108: 0 | W108: 0 | X108: 0 | Y108: 0 | Z108: 0 | AA108: 0 | AB108: 0 | AC108: Ok
A109: Total | B109: =SUM(B4:B108) -> 899.03 | C109: =SUM(C4:C108) -> 21332.17 | D109: 276.84 | E109: 21172.42 | F109: 39.9 | G109: 0 | H109: 0 | I109: 0 | J109: 821.84 | K109: 899.036 | L109: 21055.33 | M109: 0 | N109: 21132.515 | O109: 0 | P109: 0 | Q109: 0 | R109: 0 | S109: 821.851 | T109: -0.006 | U109: 276.84 | V109: 276.84 | W109: 39.905 | X109: 39.9 | Y109: 0 | Z109: 0 | AA109: 0 | AB109: -0.011
